{"text_format":"1","workbook":"xlsx","n_sheets":3,"sheets":["Sheet1","Sheet2","Sheet3"],"not_rendered":{"charts":2,"images":0,"macros":0,"external_links":0,"defined_names":25,"comments":0,"pivot_tables":0},"unopened":[],"bounds":{"document_bytes":16777216,"sheet_cells":100000,"rows_first":2000,"rows_last":500,"rows_between":2000,"halvings":0,"cell_chars":16384,"cell_head_chars":4096},"cells_cut":0,"cells_raw":0,"read":"whole","date_system":"1900"}

{"sheet":"Sheet1","index":0,"n_rows":259,"n_cols":17,"rows_kept":259,"cut":false,"hidden":false,"merged":[]}
[]
[null,null,null,null,null,null,null,null,null,null,null,null,null,null,null,null,"first conclusion: 1 sample per ns is not enough to smoothly represent spacefence waveform, 3 samples per ns is."]
[null,"E_Layer_Bottom",56,"Minimum","Maximum","Actual","Actual",null,null,"time",null,"Station Signal","Station Signal",null,"Station Signal","Station Signal"]
[null,"F_Layer_Top",{"$f":"311","v":311},"Propagation","Propagation","Propagation","Propagation",null,null,"ns",null,"A Known Signal","A Unknown Signal",null,"B Known Signal","B Unknown Signal"]
[null,null,"Geographic Distance","Distance","Distance","Distance","Time",null,null,{"$f":"0","v":0},null,{"$f":"KnownNoiseA*RANDBETWEEN(0,100)/100 + KnownAmplitudeA*COS(2*PI()*KnownFrequencyA*time+KnownPhaseA)","v":4.2772995988192897E-2},{"$f":"UnknownNoiseA*RANDBETWEEN(0,100)/100 + UnknownAmplitudeA*COS(2*PI()*UnknownFrequencyA*time+UnknownPhaseA)","v":-0.24687684843522742},null,{"$f":"KnownNoiseB*RANDBETWEEN(0,100)/100 + KnownAmplitudeB*COS(2*PI()*KnownFrequencyB*time+KnownPhaseB)","v":0.39857810844822561},{"$f":"UnknownNoiseB*RANDBETWEEN(0,100)/100 + UnknownAmplitudeB*COS(2*PI()*UnknownFrequencyB*time+UnknownPhaseB)","v":1.0493724617387514}]
[null,null,"miles","miles","miles","miles","ns",null,null,{"$f":"J5+1/samplesPerNanosecond","v":0.33333333333333331},null,{"$f":"KnownNoiseA*RANDBETWEEN(0,100)/100 + KnownAmplitudeA*COS(2*PI()*KnownFrequencyA*time+KnownPhaseA)","v":0.12361596187241586},{"$f":"UnknownNoiseA*RANDBETWEEN(0,100)/100 + UnknownAmplitudeA*COS(2*PI()*UnknownFrequencyA*time+UnknownPhaseA)","v":0.16966253472491047},null,{"$f":"KnownNoiseB*RANDBETWEEN(0,100)/100 + KnownAmplitudeB*COS(2*PI()*KnownFrequencyB*time+KnownPhaseB)","v":0.42185589361737846},{"$f":"UnknownNoiseB*RANDBETWEEN(0,100)/100 + UnknownAmplitudeB*COS(2*PI()*UnknownFrequencyB*time+UnknownPhaseB)","v":1.0350662273013229}]
[null,null,null,null,null,null,null,null,null,{"$f":"J6+1/samplesPerNanosecond","v":0.66666666666666663},null,{"$f":"KnownNoiseA*RANDBETWEEN(0,100)/100 + KnownAmplitudeA*COS(2*PI()*KnownFrequencyA*time+KnownPhaseA)","v":0.17334381529504989},{"$f":"UnknownNoiseA*RANDBETWEEN(0,100)/100 + UnknownAmplitudeA*COS(2*PI()*UnknownFrequencyA*time+UnknownPhaseA)","v":0.62128068195311759},null,{"$f":"KnownNoiseB*RANDBETWEEN(0,100)/100 + KnownAmplitudeB*COS(2*PI()*KnownFrequencyB*time+KnownPhaseB)","v":0.48449008910630242},{"$f":"UnknownNoiseB*RANDBETWEEN(0,100)/100 + UnknownAmplitudeB*COS(2*PI()*UnknownFrequencyB*time+UnknownPhaseB)","v":0.83280594133743957}]
[null,"A_To_Known",100,{"$f":"2*SQRT(A_To_Known^2/4 +E_Layer_Bottom^2)","v":150.14659503298768},{"$f":"2*SQRT(A_To_Known^2/4 +F_Layer_Top^2)","v":629.98730145932302},{"$f":"RANDBETWEEN(D8,E8)","v":206},{"$f":"F8/185723.55 *1000000000","v":1109175.4384406286},null,null,{"$f":"J7+1/samplesPerNanosecond","v":1},null,{"$f":"KnownNoiseA*RANDBETWEEN(0,100)/100 + KnownAmplitudeA*COS(2*PI()*KnownFrequencyA*time+KnownPhaseA)","v":0.17088335095847795},{"$f":"UnknownNoiseA*RANDBETWEEN(0,100)/100 + UnknownAmplitudeA*COS(2*PI()*UnknownFrequencyA*time+UnknownPhaseA)","v":0.95535958811419919},null,{"$f":"KnownNoiseB*RANDBETWEEN(0,100)/100 + KnownAmplitudeB*COS(2*PI()*KnownFrequencyB*time+KnownPhaseB)","v":0.51941291697899095},{"$f":"UnknownNoiseB*RANDBETWEEN(0,100)/100 + UnknownAmplitudeB*COS(2*PI()*UnknownFrequencyB*time+UnknownPhaseB)","v":0.3919056595389348}]
[null,"A_To_Unknown",500,{"$f":"A_To_Unknown","v":500},{"$f":"A_To_Unknown","v":500},{"$f":"A_To_Unknown","v":500},{"$f":"F9/185723.55 *1000000000","v":2692173.3942733705},null,null,{"$f":"J8+1/samplesPerNanosecond","v":1.3333333333333333},null,{"$f":"KnownNoiseA*RANDBETWEEN(0,100)/100 + KnownAmplitudeA*COS(2*PI()*KnownFrequencyA*time+KnownPhaseA)","v":0.26916169486314717},{"$f":"UnknownNoiseA*RANDBETWEEN(0,100)/100 + UnknownAmplitudeA*COS(2*PI()*UnknownFrequencyA*time+UnknownPhaseA)","v":1.0275265285638449},null,{"$f":"KnownNoiseB*RANDBETWEEN(0,100)/100 + KnownAmplitudeB*COS(2*PI()*KnownFrequencyB*time+KnownPhaseB)","v":0.56955784813016419},{"$f":"UnknownNoiseB*RANDBETWEEN(0,100)/100 + UnknownAmplitudeB*COS(2*PI()*UnknownFrequencyB*time+UnknownPhaseB)","v":-4.9415755831882791E-2}]
[null,null,null,null,null,null,null,null,null,{"$f":"J9+1/samplesPerNanosecond","v":1.6666666666666665},null,{"$f":"KnownNoiseA*RANDBETWEEN(0,100)/100 + KnownAmplitudeA*COS(2*PI()*KnownFrequencyA*time+KnownPhaseA)","v":0.28910643030887223},{"$f":"UnknownNoiseA*RANDBETWEEN(0,100)/100 + UnknownAmplitudeA*COS(2*PI()*UnknownFrequencyA*time+UnknownPhaseA)","v":0.94080041901157252},null,{"$f":"KnownNoiseB*RANDBETWEEN(0,100)/100 + KnownAmplitudeB*COS(2*PI()*KnownFrequencyB*time+KnownPhaseB)","v":0.54085971731606142},{"$f":"UnknownNoiseB*RANDBETWEEN(0,100)/100 + UnknownAmplitudeB*COS(2*PI()*UnknownFrequencyB*time+UnknownPhaseB)","v":-0.43696669221655288}]
[null,"B_To_Known",50,{"$f":"2*SQRT(B_To_Known^2/4 +E_Layer_Bottom^2)","v":122.65398485169571},{"$f":"2*SQRT(B_To_Known^2/4 +F_Layer_Top^2)","v":624.00641022348475},{"$f":"RANDBETWEEN(D11,E11)","v":315},{"$f":"F11/185723.55 *1000000000","v":1696069.2383922234},null,null,{"$f":"J10+1/samplesPerNanosecond","v":1.9999999999999998},null,{"$f":"KnownNoiseA*RANDBETWEEN(0,100)/100 + KnownAmplitudeA*COS(2*PI()*KnownFrequencyA*time+KnownPhaseA)","v":0.28964572654711668},{"$f":"UnknownNoiseA*RANDBETWEEN(0,100)/100 + UnknownAmplitudeA*COS(2*PI()*UnknownFrequencyA*time+UnknownPhaseA)","v":0.73761774719334872},null,{"$f":"KnownNoiseB*RANDBETWEEN(0,100)/100 + KnownAmplitudeB*COS(2*PI()*KnownFrequencyB*time+KnownPhaseB)","v":0.65225483893164138},{"$f":"UnknownNoiseB*RANDBETWEEN(0,100)/100 + UnknownAmplitudeB*COS(2*PI()*UnknownFrequencyB*time+UnknownPhaseB)","v":-0.75752720203392077}]
[null,"B_To_Unknown",550,{"$f":"B_To_Unknown","v":550},{"$f":"B_To_Unknown","v":550},{"$f":"B_To_Unknown","v":550},{"$f":"F12/185723.55 *1000000000","v":2961390.7337007076},null,null,{"$f":"J11+1/samplesPerNanosecond","v":2.333333333333333},null,{"$f":"KnownNoiseA*RANDBETWEEN(0,100)/100 + KnownAmplitudeA*COS(2*PI()*KnownFrequencyA*time+KnownPhaseA)","v":0.350708464098475},{"$f":"UnknownNoiseA*RANDBETWEEN(0,100)/100 + UnknownAmplitudeA*COS(2*PI()*UnknownFrequencyA*time+UnknownPhaseA)","v":0.31772691243837275},null,{"$f":"KnownNoiseB*RANDBETWEEN(0,100)/100 + KnownAmplitudeB*COS(2*PI()*KnownFrequencyB*time+KnownPhaseB)","v":0.62268111809506943},{"$f":"UnknownNoiseB*RANDBETWEEN(0,100)/100 + UnknownAmplitudeB*COS(2*PI()*UnknownFrequencyB*time+UnknownPhaseB)","v":-0.97919555174645512}]
[null,null,null,null,null,null,null,null,null,{"$f":"J12+1/samplesPerNanosecond","v":2.6666666666666665},null,{"$f":"KnownNoiseA*RANDBETWEEN(0,100)/100 + KnownAmplitudeA*COS(2*PI()*KnownFrequencyA*time+KnownPhaseA)","v":0.4462243588628737},{"$f":"UnknownNoiseA*RANDBETWEEN(0,100)/100 + UnknownAmplitudeA*COS(2*PI()*UnknownFrequencyA*time+UnknownPhaseA)","v":-9.4424196666875584E-2},null,{"$f":"KnownNoiseB*RANDBETWEEN(0,100)/100 + KnownAmplitudeB*COS(2*PI()*KnownFrequencyB*time+KnownPhaseB)","v":0.66607815903217327},{"$f":"UnknownNoiseB*RANDBETWEEN(0,100)/100 + UnknownAmplitudeB*COS(2*PI()*UnknownFrequencyB*time+UnknownPhaseB)","v":-0.92464695649230555}]
[null,"A_To_B",{"$f":"SQRT(A_To_Known^2 +B_To_Known^2)","v":111.80339887498948},{"$f":"2*SQRT(A_To_B^2/4 +E_Layer_Bottom^2)","v":158.25296205758679},{"$f":"2*SQRT(A_To_B^2/4 +F_Layer_Top^2)","v":631.96835363805997},{"$f":"RANDBETWEEN(D14,E14)","v":264},{"$f":"F14/185723.55 *1000000000","v":1421467.5521763396},null,null,{"$f":"J13+1/samplesPerNanosecond","v":3},null,{"$f":"KnownNoiseA*RANDBETWEEN(0,100)/100 + KnownAmplitudeA*COS(2*PI()*KnownFrequencyA*time+KnownPhaseA)","v":0.39012408697206541},{"$f":"UnknownNoiseA*RANDBETWEEN(0,100)/100 + UnknownAmplitudeA*COS(2*PI()*UnknownFrequencyA*time+UnknownPhaseA)","v":-0.57267228391094338},null,{"$f":"KnownNoiseB*RANDBETWEEN(0,100)/100 + KnownAmplitudeB*COS(2*PI()*KnownFrequencyB*time+KnownPhaseB)","v":0.72238737235557893},{"$f":"UnknownNoiseB*RANDBETWEEN(0,100)/100 + UnknownAmplitudeB*COS(2*PI()*UnknownFrequencyB*time+UnknownPhaseB)","v":-0.6476369887599005}]
[null,null,null,null,null,null,null,null,null,{"$f":"J14+1/samplesPerNanosecond","v":3.3333333333333335},null,{"$f":"KnownNoiseA*RANDBETWEEN(0,100)/100 + KnownAmplitudeA*COS(2*PI()*KnownFrequencyA*time+KnownPhaseA)","v":0.48333940465264974},{"$f":"UnknownNoiseA*RANDBETWEEN(0,100)/100 + UnknownAmplitudeA*COS(2*PI()*UnknownFrequencyA*time+UnknownPhaseA)","v":-0.87727855327196047},null,{"$f":"KnownNoiseB*RANDBETWEEN(0,100)/100 + KnownAmplitudeB*COS(2*PI()*KnownFrequencyB*time+KnownPhaseB)","v":0.68555207636749671},{"$f":"UnknownNoiseB*RANDBETWEEN(0,100)/100 + UnknownAmplitudeB*COS(2*PI()*UnknownFrequencyB*time+UnknownPhaseB)","v":-0.32644123869429531}]
[null,null,null,null,null,null,null,null,null,{"$f":"J15+1/samplesPerNanosecond","v":3.666666666666667},null,{"$f":"KnownNoiseA*RANDBETWEEN(0,100)/100 + KnownAmplitudeA*COS(2*PI()*KnownFrequencyA*time+KnownPhaseA)","v":0.56480326947005344},{"$f":"UnknownNoiseA*RANDBETWEEN(0,100)/100 + UnknownAmplitudeA*COS(2*PI()*UnknownFrequencyA*time+UnknownPhaseA)","v":-0.95357488669131851},null,{"$f":"KnownNoiseB*RANDBETWEEN(0,100)/100 + KnownAmplitudeB*COS(2*PI()*KnownFrequencyB*time+KnownPhaseB)","v":0.73051759777015635},{"$f":"UnknownNoiseB*RANDBETWEEN(0,100)/100 + UnknownAmplitudeB*COS(2*PI()*UnknownFrequencyB*time+UnknownPhaseB)","v":0.13645485023935086}]
[null,null,null,"Noise","Amplitude","Frequency","Phase",null,null,{"$f":"J16+1/samplesPerNanosecond","v":4},null,{"$f":"KnownNoiseA*RANDBETWEEN(0,100)/100 + KnownAmplitudeA*COS(2*PI()*KnownFrequencyA*time+KnownPhaseA)","v":0.57144995727667425},{"$f":"UnknownNoiseA*RANDBETWEEN(0,100)/100 + UnknownAmplitudeA*COS(2*PI()*UnknownFrequencyA*time+UnknownPhaseA)","v":-0.84876725146443843},null,{"$f":"KnownNoiseB*RANDBETWEEN(0,100)/100 + KnownAmplitudeB*COS(2*PI()*KnownFrequencyB*time+KnownPhaseB)","v":0.76223136701292493},{"$f":"UnknownNoiseB*RANDBETWEEN(0,100)/100 + UnknownAmplitudeB*COS(2*PI()*UnknownFrequencyB*time+UnknownPhaseB)","v":0.52754285737820206}]
[null,null,null,null,null,"GHz","ns",null,null,{"$f":"J17+1/samplesPerNanosecond","v":4.333333333333333},null,{"$f":"KnownNoiseA*RANDBETWEEN(0,100)/100 + KnownAmplitudeA*COS(2*PI()*KnownFrequencyA*time+KnownPhaseA)","v":0.58821517692241665},{"$f":"UnknownNoiseA*RANDBETWEEN(0,100)/100 + UnknownAmplitudeA*COS(2*PI()*UnknownFrequencyA*time+UnknownPhaseA)","v":-0.6035216219111289},null,{"$f":"KnownNoiseB*RANDBETWEEN(0,100)/100 + KnownAmplitudeB*COS(2*PI()*KnownFrequencyB*time+KnownPhaseB)","v":0.84564301006860698},{"$f":"UnknownNoiseB*RANDBETWEEN(0,100)/100 + UnknownAmplitudeB*COS(2*PI()*UnknownFrequencyB*time+UnknownPhaseB)","v":0.9242995401439329}]
[null,null,"A's Known Signal",0.1,1,0.02,{"$f":"G8","v":1109175.4384406286},null,null,{"$f":"J18+1/samplesPerNanosecond","v":4.6666666666666661},null,{"$f":"KnownNoiseA*RANDBETWEEN(0,100)/100 + KnownAmplitudeA*COS(2*PI()*KnownFrequencyA*time+KnownPhaseA)","v":0.65703618445603384},{"$f":"UnknownNoiseA*RANDBETWEEN(0,100)/100 + UnknownAmplitudeA*COS(2*PI()*UnknownFrequencyA*time+UnknownPhaseA)","v":-0.17540976925011426},null,{"$f":"KnownNoiseB*RANDBETWEEN(0,100)/100 + KnownAmplitudeB*COS(2*PI()*KnownFrequencyB*time+KnownPhaseB)","v":0.86870443790510588},{"$f":"UnknownNoiseB*RANDBETWEEN(0,100)/100 + UnknownAmplitudeB*COS(2*PI()*UnknownFrequencyB*time+UnknownPhaseB)","v":0.99439321302225148}]
[null,null,"A's Unknown Signal",0.1,1,0.216,{"$f":"G9","v":2692173.3942733705},null,null,{"$f":"J19+1/samplesPerNanosecond","v":4.9999999999999991},null,{"$f":"KnownNoiseA*RANDBETWEEN(0,100)/100 + KnownAmplitudeA*COS(2*PI()*KnownFrequencyA*time+KnownPhaseA)","v":0.70085189161127837},{"$f":"UnknownNoiseA*RANDBETWEEN(0,100)/100 + UnknownAmplitudeA*COS(2*PI()*UnknownFrequencyA*time+UnknownPhaseA)","v":0.22107000395516133},null,{"$f":"KnownNoiseB*RANDBETWEEN(0,100)/100 + KnownAmplitudeB*COS(2*PI()*KnownFrequencyB*time+KnownPhaseB)","v":0.88836992963278583},{"$f":"UnknownNoiseB*RANDBETWEEN(0,100)/100 + UnknownAmplitudeB*COS(2*PI()*UnknownFrequencyB*time+UnknownPhaseB)","v":0.9486266050702995}]
[null,null,null,null,null,null,null,null,null,{"$f":"J20+1/samplesPerNanosecond","v":5.3333333333333321},null,{"$f":"KnownNoiseA*RANDBETWEEN(0,100)/100 + KnownAmplitudeA*COS(2*PI()*KnownFrequencyA*time+KnownPhaseA)","v":0.65860297434363635},{"$f":"UnknownNoiseA*RANDBETWEEN(0,100)/100 + UnknownAmplitudeA*COS(2*PI()*UnknownFrequencyA*time+UnknownPhaseA)","v":0.71068827772828547},null,{"$f":"KnownNoiseB*RANDBETWEEN(0,100)/100 + KnownAmplitudeB*COS(2*PI()*KnownFrequencyB*time+KnownPhaseB)","v":0.91659621374661127},{"$f":"UnknownNoiseB*RANDBETWEEN(0,100)/100 + UnknownAmplitudeB*COS(2*PI()*UnknownFrequencyB*time+UnknownPhaseB)","v":0.71501223510827994}]
[null,null,"B's Known Signal",0.1,1,0.02,{"$f":"G11","v":1696069.2383922234},null,null,{"$f":"J21+1/samplesPerNanosecond","v":5.6666666666666652},null,{"$f":"KnownNoiseA*RANDBETWEEN(0,100)/100 + KnownAmplitudeA*COS(2*PI()*KnownFrequencyA*time+KnownPhaseA)","v":0.74623197629793891},{"$f":"UnknownNoiseA*RANDBETWEEN(0,100)/100 + UnknownAmplitudeA*COS(2*PI()*UnknownFrequencyA*time+UnknownPhaseA)","v":0.92163772590115312},null,{"$f":"KnownNoiseB*RANDBETWEEN(0,100)/100 + KnownAmplitudeB*COS(2*PI()*KnownFrequencyB*time+KnownPhaseB)","v":0.93134254356877122},{"$f":"UnknownNoiseB*RANDBETWEEN(0,100)/100 + UnknownAmplitudeB*COS(2*PI()*UnknownFrequencyB*time+UnknownPhaseB)","v":0.39575799813852419}]
[null,null,"B's Unknown Signal",0.1,1,0.216,{"$f":"G12","v":2961390.7337007076},null,null,{"$f":"J22+1/samplesPerNanosecond","v":5.9999999999999982},null,{"$f":"KnownNoiseA*RANDBETWEEN(0,100)/100 + KnownAmplitudeA*COS(2*PI()*KnownFrequencyA*time+KnownPhaseA)","v":0.72868340910583085},{"$f":"UnknownNoiseA*RANDBETWEEN(0,100)/100 + UnknownAmplitudeA*COS(2*PI()*UnknownFrequencyA*time+UnknownPhaseA)","v":1.04299189189792},null,{"$f":"KnownNoiseB*RANDBETWEEN(0,100)/100 + KnownAmplitudeB*COS(2*PI()*KnownFrequencyB*time+KnownPhaseB)","v":0.9565707684057565},{"$f":"UnknownNoiseB*RANDBETWEEN(0,100)/100 + UnknownAmplitudeB*COS(2*PI()*UnknownFrequencyB*time+UnknownPhaseB)","v":-5.8431758453367816E-2}]
[null,null,null,null,null,null,null,null,null,{"$f":"J23+1/samplesPerNanosecond","v":6.3333333333333313},null,{"$f":"KnownNoiseA*RANDBETWEEN(0,100)/100 + KnownAmplitudeA*COS(2*PI()*KnownFrequencyA*time+KnownPhaseA)","v":0.76490385078591239},{"$f":"UnknownNoiseA*RANDBETWEEN(0,100)/100 + UnknownAmplitudeA*COS(2*PI()*UnknownFrequencyA*time+UnknownPhaseA)","v":0.9891581921806949},null,{"$f":"KnownNoiseB*RANDBETWEEN(0,100)/100 + KnownAmplitudeB*COS(2*PI()*KnownFrequencyB*time+KnownPhaseB)","v":0.93324540120278621},{"$f":"UnknownNoiseB*RANDBETWEEN(0,100)/100 + UnknownAmplitudeB*COS(2*PI()*UnknownFrequencyB*time+UnknownPhaseB)","v":-0.48978834165079693}]
[null,null,null,null,null,"Phase Difference Between  the Known Signal Common to A and B",{"$f":"ABS(KnownPhaseA-KnownPhaseB)","v":586893.79995159479},null,null,{"$f":"J24+1/samplesPerNanosecond","v":6.6666666666666643},null,{"$f":"KnownNoiseA*RANDBETWEEN(0,100)/100 + KnownAmplitudeA*COS(2*PI()*KnownFrequencyA*time+KnownPhaseA)","v":0.80684203890616502},{"$f":"UnknownNoiseA*RANDBETWEEN(0,100)/100 + UnknownAmplitudeA*COS(2*PI()*UnknownFrequencyA*time+UnknownPhaseA)","v":0.69802092908015689},null,{"$f":"KnownNoiseB*RANDBETWEEN(0,100)/100 + KnownAmplitudeB*COS(2*PI()*KnownFrequencyB*time+KnownPhaseB)","v":0.9513336803989132},{"$f":"UnknownNoiseB*RANDBETWEEN(0,100)/100 + UnknownAmplitudeB*COS(2*PI()*UnknownFrequencyB*time+UnknownPhaseB)","v":-0.77453923243149436}]
[null,null,null,null,null,"Phase Difference Between  the Unknown Signal Common to A and B",{"$f":"ABS(UnknownPhaseA-UnknownPhaseB)","v":269217.33942733705},null,null,{"$f":"J25+1/samplesPerNanosecond","v":6.9999999999999973},null,{"$f":"KnownNoiseA*RANDBETWEEN(0,100)/100 + KnownAmplitudeA*COS(2*PI()*KnownFrequencyA*time+KnownPhaseA)","v":0.83944896008084091},{"$f":"UnknownNoiseA*RANDBETWEEN(0,100)/100 + UnknownAmplitudeA*COS(2*PI()*UnknownFrequencyA*time+UnknownPhaseA)","v":0.26194077809924371},null,{"$f":"KnownNoiseB*RANDBETWEEN(0,100)/100 + KnownAmplitudeB*COS(2*PI()*KnownFrequencyB*time+KnownPhaseB)","v":1.0118056271559823},{"$f":"UnknownNoiseB*RANDBETWEEN(0,100)/100 + UnknownAmplitudeB*COS(2*PI()*UnknownFrequencyB*time+UnknownPhaseB)","v":-0.94096342585474779}]
[null,null,null,null,null,null,null,null,null,{"$f":"J26+1/samplesPerNanosecond","v":7.3333333333333304},null,{"$f":"KnownNoiseA*RANDBETWEEN(0,100)/100 + KnownAmplitudeA*COS(2*PI()*KnownFrequencyA*time+KnownPhaseA)","v":0.84667793702453442},{"$f":"UnknownNoiseA*RANDBETWEEN(0,100)/100 + UnknownAmplitudeA*COS(2*PI()*UnknownFrequencyA*time+UnknownPhaseA)","v":-0.19658438976968651},null,{"$f":"KnownNoiseB*RANDBETWEEN(0,100)/100 + KnownAmplitudeB*COS(2*PI()*KnownFrequencyB*time+KnownPhaseB)","v":0.98963409859376983},{"$f":"UnknownNoiseB*RANDBETWEEN(0,100)/100 + UnknownAmplitudeB*COS(2*PI()*UnknownFrequencyB*time+UnknownPhaseB)","v":-0.85301023886115135}]
[null,null,null,null,null,null,null,null,null,{"$f":"J27+1/samplesPerNanosecond","v":7.6666666666666634},null,{"$f":"KnownNoiseA*RANDBETWEEN(0,100)/100 + KnownAmplitudeA*COS(2*PI()*KnownFrequencyA*time+KnownPhaseA)","v":0.88648470925859035},{"$f":"UnknownNoiseA*RANDBETWEEN(0,100)/100 + UnknownAmplitudeA*COS(2*PI()*UnknownFrequencyA*time+UnknownPhaseA)","v":-0.54831602125569257},null,{"$f":"KnownNoiseB*RANDBETWEEN(0,100)/100 + KnownAmplitudeB*COS(2*PI()*KnownFrequencyB*time+KnownPhaseB)","v":0.99179483472082763},{"$f":"UnknownNoiseB*RANDBETWEEN(0,100)/100 + UnknownAmplitudeB*COS(2*PI()*UnknownFrequencyB*time+UnknownPhaseB)","v":-0.67094281224089225}]
[null,null,"samplesPerNanosecond",3,null,null,null,null,null,{"$f":"J28+1/samplesPerNanosecond","v":7.9999999999999964},null,{"$f":"KnownNoiseA*RANDBETWEEN(0,100)/100 + KnownAmplitudeA*COS(2*PI()*KnownFrequencyA*time+KnownPhaseA)","v":0.9078275117592024},{"$f":"UnknownNoiseA*RANDBETWEEN(0,100)/100 + UnknownAmplitudeA*COS(2*PI()*UnknownFrequencyA*time+UnknownPhaseA)","v":-0.88542993130489989},null,{"$f":"KnownNoiseB*RANDBETWEEN(0,100)/100 + KnownAmplitudeB*COS(2*PI()*KnownFrequencyB*time+KnownPhaseB)","v":0.98126650155529194},{"$f":"UnknownNoiseB*RANDBETWEEN(0,100)/100 + UnknownAmplitudeB*COS(2*PI()*UnknownFrequencyB*time+UnknownPhaseB)","v":-0.20687089671392495}]
[null,null,null,null,null,null,null,null,null,{"$f":"J29+1/samplesPerNanosecond","v":8.3333333333333304},null,{"$f":"KnownNoiseA*RANDBETWEEN(0,100)/100 + KnownAmplitudeA*COS(2*PI()*KnownFrequencyA*time+KnownPhaseA)","v":0.91866714777040948},{"$f":"UnknownNoiseA*RANDBETWEEN(0,100)/100 + UnknownAmplitudeA*COS(2*PI()*UnknownFrequencyA*time+UnknownPhaseA)","v":-0.91077728079422382},null,{"$f":"KnownNoiseB*RANDBETWEEN(0,100)/100 + KnownAmplitudeB*COS(2*PI()*KnownFrequencyB*time+KnownPhaseB)","v":1.0220307282792593},{"$f":"UnknownNoiseB*RANDBETWEEN(0,100)/100 + UnknownAmplitudeB*COS(2*PI()*UnknownFrequencyB*time+UnknownPhaseB)","v":0.23633070452341187}]
[null,null,"minimum Sample Buffer Size",{"$f":"samplesPerNanosecond*G25","v":1760681.3998547844},"samples","till B sees what A does",null,null,null,{"$f":"J30+1/samplesPerNanosecond","v":8.6666666666666643},null,{"$f":"KnownNoiseA*RANDBETWEEN(0,100)/100 + KnownAmplitudeA*COS(2*PI()*KnownFrequencyA*time+KnownPhaseA)","v":0.94696705725781494},{"$f":"UnknownNoiseA*RANDBETWEEN(0,100)/100 + UnknownAmplitudeA*COS(2*PI()*UnknownFrequencyA*time+UnknownPhaseA)","v":-0.88597994206955444},null,{"$f":"KnownNoiseB*RANDBETWEEN(0,100)/100 + KnownAmplitudeB*COS(2*PI()*KnownFrequencyB*time+KnownPhaseB)","v":1.0540721393636028},{"$f":"UnknownNoiseB*RANDBETWEEN(0,100)/100 + UnknownAmplitudeB*COS(2*PI()*UnknownFrequencyB*time+UnknownPhaseB)","v":0.59668972593114711}]
[null,null,null,null,null,null,null,null,null,{"$f":"J31+1/samplesPerNanosecond","v":8.9999999999999982},null,{"$f":"KnownNoiseA*RANDBETWEEN(0,100)/100 + KnownAmplitudeA*COS(2*PI()*KnownFrequencyA*time+KnownPhaseA)","v":0.96869338183631903},{"$f":"UnknownNoiseA*RANDBETWEEN(0,100)/100 + UnknownAmplitudeA*COS(2*PI()*UnknownFrequencyA*time+UnknownPhaseA)","v":-0.56312798647853768},null,{"$f":"KnownNoiseB*RANDBETWEEN(0,100)/100 + KnownAmplitudeB*COS(2*PI()*KnownFrequencyB*time+KnownPhaseB)","v":0.99937838185877603},{"$f":"UnknownNoiseB*RANDBETWEEN(0,100)/100 + UnknownAmplitudeB*COS(2*PI()*UnknownFrequencyB*time+UnknownPhaseB)","v":0.89823791593262292}]
[null,null,"notice the variation in subsequent runs due to variation in path",null,null,null,null,null,null,{"$f":"J32+1/samplesPerNanosecond","v":9.3333333333333321},null,{"$f":"KnownNoiseA*RANDBETWEEN(0,100)/100 + KnownAmplitudeA*COS(2*PI()*KnownFrequencyA*time+KnownPhaseA)","v":1.0248150233122697},{"$f":"UnknownNoiseA*RANDBETWEEN(0,100)/100 + UnknownAmplitudeA*COS(2*PI()*UnknownFrequencyA*time+UnknownPhaseA)","v":-0.18433539412498035},null,{"$f":"KnownNoiseB*RANDBETWEEN(0,100)/100 + KnownAmplitudeB*COS(2*PI()*KnownFrequencyB*time+KnownPhaseB)","v":1.0139401467534301},{"$f":"UnknownNoiseB*RANDBETWEEN(0,100)/100 + UnknownAmplitudeB*COS(2*PI()*UnknownFrequencyB*time+UnknownPhaseB)","v":1.0089045668424357}]
[null,null,null,null,null,null,null,null,null,{"$f":"J33+1/samplesPerNanosecond","v":9.6666666666666661},null,{"$f":"KnownNoiseA*RANDBETWEEN(0,100)/100 + KnownAmplitudeA*COS(2*PI()*KnownFrequencyA*time+KnownPhaseA)","v":0.95330369895140499},{"$f":"UnknownNoiseA*RANDBETWEEN(0,100)/100 + UnknownAmplitudeA*COS(2*PI()*UnknownFrequencyA*time+UnknownPhaseA)","v":0.34495187029898949},null,{"$f":"KnownNoiseB*RANDBETWEEN(0,100)/100 + KnownAmplitudeB*COS(2*PI()*KnownFrequencyB*time+KnownPhaseB)","v":1.0487511855359983},{"$f":"UnknownNoiseB*RANDBETWEEN(0,100)/100 + UnknownAmplitudeB*COS(2*PI()*UnknownFrequencyB*time+UnknownPhaseB)","v":0.9538033001464209}]
[null,null,"audio samples to capture a 5 ",5,"second event = ",{"$f":"10000*D35","v":50000},"samples",null,null,{"$f":"J34+1/samplesPerNanosecond","v":10},null,{"$f":"KnownNoiseA*RANDBETWEEN(0,100)/100 + KnownAmplitudeA*COS(2*PI()*KnownFrequencyA*time+KnownPhaseA)","v":1.0231339907601442},{"$f":"UnknownNoiseA*RANDBETWEEN(0,100)/100 + UnknownAmplitudeA*COS(2*PI()*UnknownFrequencyA*time+UnknownPhaseA)","v":0.73754311718969978},null,{"$f":"KnownNoiseB*RANDBETWEEN(0,100)/100 + KnownAmplitudeB*COS(2*PI()*KnownFrequencyB*time+KnownPhaseB)","v":1.0948083210245159},{"$f":"UnknownNoiseB*RANDBETWEEN(0,100)/100 + UnknownAmplitudeB*COS(2*PI()*UnknownFrequencyB*time+UnknownPhaseB)","v":0.67544013319247653}]
[null,null,"at",2,"bytes per sample =",{"$f":"F35*D36/1000000","v":0.1},"megabytes",null,null,{"$f":"J35+1/samplesPerNanosecond","v":10.333333333333334},null,{"$f":"KnownNoiseA*RANDBETWEEN(0,100)/100 + KnownAmplitudeA*COS(2*PI()*KnownFrequencyA*time+KnownPhaseA)","v":1.0582833899043793},{"$f":"UnknownNoiseA*RANDBETWEEN(0,100)/100 + UnknownAmplitudeA*COS(2*PI()*UnknownFrequencyA*time+UnknownPhaseA)","v":0.97664835289497409},null,{"$f":"KnownNoiseB*RANDBETWEEN(0,100)/100 + KnownAmplitudeB*COS(2*PI()*KnownFrequencyB*time+KnownPhaseB)","v":1.0091114529832867},{"$f":"UnknownNoiseB*RANDBETWEEN(0,100)/100 + UnknownAmplitudeB*COS(2*PI()*UnknownFrequencyB*time+UnknownPhaseB)","v":0.27579502202569506}]
[null,null,"RF samples to capture a",null,"second event = ",{"$f":"3000000000*D35","v":15000000000},"samples",null,null,{"$f":"J36+1/samplesPerNanosecond","v":10.666666666666668},null,{"$f":"KnownNoiseA*RANDBETWEEN(0,100)/100 + KnownAmplitudeA*COS(2*PI()*KnownFrequencyA*time+KnownPhaseA)","v":0.99873233667321615},{"$f":"UnknownNoiseA*RANDBETWEEN(0,100)/100 + UnknownAmplitudeA*COS(2*PI()*UnknownFrequencyA*time+UnknownPhaseA)","v":1.0699311889332024},null,{"$f":"KnownNoiseB*RANDBETWEEN(0,100)/100 + KnownAmplitudeB*COS(2*PI()*KnownFrequencyB*time+KnownPhaseB)","v":1.0476635582766138},{"$f":"UnknownNoiseB*RANDBETWEEN(0,100)/100 + UnknownAmplitudeB*COS(2*PI()*UnknownFrequencyB*time+UnknownPhaseB)","v":-9.3135961741522208E-2}]
[null,null,"at",2,"bytes per sample =",{"$f":"F37*D38/1000000000","v":30},"gigabytes!",null,null,{"$f":"J37+1/samplesPerNanosecond","v":11.000000000000002},null,{"$f":"KnownNoiseA*RANDBETWEEN(0,100)/100 + KnownAmplitudeA*COS(2*PI()*KnownFrequencyA*time+KnownPhaseA)","v":1.0584642542982938},{"$f":"UnknownNoiseA*RANDBETWEEN(0,100)/100 + UnknownAmplitudeA*COS(2*PI()*UnknownFrequencyA*time+UnknownPhaseA)","v":0.97823956155335412},null,{"$f":"KnownNoiseB*RANDBETWEEN(0,100)/100 + KnownAmplitudeB*COS(2*PI()*KnownFrequencyB*time+KnownPhaseB)","v":1.058470685721713},{"$f":"UnknownNoiseB*RANDBETWEEN(0,100)/100 + UnknownAmplitudeB*COS(2*PI()*UnknownFrequencyB*time+UnknownPhaseB)","v":-0.52523380845699219}]
[null,null,null,null,null,null,null,null,null,{"$f":"J38+1/samplesPerNanosecond","v":11.333333333333336},null,{"$f":"KnownNoiseA*RANDBETWEEN(0,100)/100 + KnownAmplitudeA*COS(2*PI()*KnownFrequencyA*time+KnownPhaseA)","v":1.0044655784260983},{"$f":"UnknownNoiseA*RANDBETWEEN(0,100)/100 + UnknownAmplitudeA*COS(2*PI()*UnknownFrequencyA*time+UnknownPhaseA)","v":0.67785535855755474},null,{"$f":"KnownNoiseB*RANDBETWEEN(0,100)/100 + KnownAmplitudeB*COS(2*PI()*KnownFrequencyB*time+KnownPhaseB)","v":1.0205419453672526},{"$f":"UnknownNoiseB*RANDBETWEEN(0,100)/100 + UnknownAmplitudeB*COS(2*PI()*UnknownFrequencyB*time+UnknownPhaseB)","v":-0.85838757013693356}]
[null,null,null,null,"audio storage channel bandwidth required =",{"$f":"F36/D35","v":0.02},"megabytes per second",null,null,{"$f":"J39+1/samplesPerNanosecond","v":11.66666666666667},null,{"$f":"KnownNoiseA*RANDBETWEEN(0,100)/100 + KnownAmplitudeA*COS(2*PI()*KnownFrequencyA*time+KnownPhaseA)","v":1.0157257807137172},{"$f":"UnknownNoiseA*RANDBETWEEN(0,100)/100 + UnknownAmplitudeA*COS(2*PI()*UnknownFrequencyA*time+UnknownPhaseA)","v":0.2556091586151738},null,{"$f":"KnownNoiseB*RANDBETWEEN(0,100)/100 + KnownAmplitudeB*COS(2*PI()*KnownFrequencyB*time+KnownPhaseB)","v":1.0708894925253056},{"$f":"UnknownNoiseB*RANDBETWEEN(0,100)/100 + UnknownAmplitudeB*COS(2*PI()*UnknownFrequencyB*time+UnknownPhaseB)","v":-0.95421540991906517}]
[null,null,null,null,"RF storage channel bandwidth required =",{"$f":"F38/D35 *1000","v":6000},"megabytes per second",null,null,{"$f":"J40+1/samplesPerNanosecond","v":12.000000000000004},null,{"$f":"KnownNoiseA*RANDBETWEEN(0,100)/100 + KnownAmplitudeA*COS(2*PI()*KnownFrequencyA*time+KnownPhaseA)","v":1.0052373872713916},{"$f":"UnknownNoiseA*RANDBETWEEN(0,100)/100 + UnknownAmplitudeA*COS(2*PI()*UnknownFrequencyA*time+UnknownPhaseA)","v":-0.22015705452013501},null,{"$f":"KnownNoiseB*RANDBETWEEN(0,100)/100 + KnownAmplitudeB*COS(2*PI()*KnownFrequencyB*time+KnownPhaseB)","v":1.0625285066343875},{"$f":"UnknownNoiseB*RANDBETWEEN(0,100)/100 + UnknownAmplitudeB*COS(2*PI()*UnknownFrequencyB*time+UnknownPhaseB)","v":-0.8810116042259194}]
[null,null,null,null,null,null,null,null,null,{"$f":"J41+1/samplesPerNanosecond","v":12.333333333333337},null,{"$f":"KnownNoiseA*RANDBETWEEN(0,100)/100 + KnownAmplitudeA*COS(2*PI()*KnownFrequencyA*time+KnownPhaseA)","v":1.0549959919156566},{"$f":"UnknownNoiseA*RANDBETWEEN(0,100)/100 + UnknownAmplitudeA*COS(2*PI()*UnknownFrequencyA*time+UnknownPhaseA)","v":-0.62235742128444871},null,{"$f":"KnownNoiseB*RANDBETWEEN(0,100)/100 + KnownAmplitudeB*COS(2*PI()*KnownFrequencyB*time+KnownPhaseB)","v":0.97147716426939501},{"$f":"UnknownNoiseB*RANDBETWEEN(0,100)/100 + UnknownAmplitudeB*COS(2*PI()*UnknownFrequencyB*time+UnknownPhaseB)","v":-0.57851588465166048}]
[null,null,null,null,null,null,null,null,null,{"$f":"J42+1/samplesPerNanosecond","v":12.666666666666671},null,{"$f":"KnownNoiseA*RANDBETWEEN(0,100)/100 + KnownAmplitudeA*COS(2*PI()*KnownFrequencyA*time+KnownPhaseA)","v":1.0000002637877647},{"$f":"UnknownNoiseA*RANDBETWEEN(0,100)/100 + UnknownAmplitudeA*COS(2*PI()*UnknownFrequencyA*time+UnknownPhaseA)","v":-0.88928653667046609},null,{"$f":"KnownNoiseB*RANDBETWEEN(0,100)/100 + KnownAmplitudeB*COS(2*PI()*KnownFrequencyB*time+KnownPhaseB)","v":0.99775660771377117},{"$f":"UnknownNoiseB*RANDBETWEEN(0,100)/100 + UnknownAmplitudeB*COS(2*PI()*UnknownFrequencyB*time+UnknownPhaseB)","v":-0.21154558046146185}]
[null,null,null,null,null,null,null,null,null,{"$f":"J43+1/samplesPerNanosecond","v":13.000000000000005},null,{"$f":"KnownNoiseA*RANDBETWEEN(0,100)/100 + KnownAmplitudeA*COS(2*PI()*KnownFrequencyA*time+KnownPhaseA)","v":1.0632519497422865},{"$f":"UnknownNoiseA*RANDBETWEEN(0,100)/100 + UnknownAmplitudeA*COS(2*PI()*UnknownFrequencyA*time+UnknownPhaseA)","v":-0.93245415072460802},null,{"$f":"KnownNoiseB*RANDBETWEEN(0,100)/100 + KnownAmplitudeB*COS(2*PI()*KnownFrequencyB*time+KnownPhaseB)","v":0.92839090742357888},{"$f":"UnknownNoiseB*RANDBETWEEN(0,100)/100 + UnknownAmplitudeB*COS(2*PI()*UnknownFrequencyB*time+UnknownPhaseB)","v":0.26383186257562474}]
[null,null,"an immediate result appears: because of the enormous variation in atmospheric propagation",null,null,null,null,null,null,{"$f":"J44+1/samplesPerNanosecond","v":13.333333333333339},null,{"$f":"KnownNoiseA*RANDBETWEEN(0,100)/100 + KnownAmplitudeA*COS(2*PI()*KnownFrequencyA*time+KnownPhaseA)","v":1.0697558712260846},{"$f":"UnknownNoiseA*RANDBETWEEN(0,100)/100 + UnknownAmplitudeA*COS(2*PI()*UnknownFrequencyA*time+UnknownPhaseA)","v":-0.85994446610804287},null,{"$f":"KnownNoiseB*RANDBETWEEN(0,100)/100 + KnownAmplitudeB*COS(2*PI()*KnownFrequencyB*time+KnownPhaseB)","v":0.98440701995946212},{"$f":"UnknownNoiseB*RANDBETWEEN(0,100)/100 + UnknownAmplitudeB*COS(2*PI()*UnknownFrequencyB*time+UnknownPhaseB)","v":0.61840761314551751}]
[null,null,"you cannot easily use  ionospheric  relay for timing observations",null,null,null,null,null,null,{"$f":"J45+1/samplesPerNanosecond","v":13.666666666666673},null,{"$f":"KnownNoiseA*RANDBETWEEN(0,100)/100 + KnownAmplitudeA*COS(2*PI()*KnownFrequencyA*time+KnownPhaseA)","v":1.0045199159385945},{"$f":"UnknownNoiseA*RANDBETWEEN(0,100)/100 + UnknownAmplitudeA*COS(2*PI()*UnknownFrequencyA*time+UnknownPhaseA)","v":-0.50821584994347679},null,{"$f":"KnownNoiseB*RANDBETWEEN(0,100)/100 + KnownAmplitudeB*COS(2*PI()*KnownFrequencyB*time+KnownPhaseB)","v":0.97383474101984602},{"$f":"UnknownNoiseB*RANDBETWEEN(0,100)/100 + UnknownAmplitudeB*COS(2*PI()*UnknownFrequencyB*time+UnknownPhaseB)","v":0.96098052106244514}]
[null,null,null,null,null,null,null,null,null,{"$f":"J46+1/samplesPerNanosecond","v":14.000000000000007},null,{"$f":"KnownNoiseA*RANDBETWEEN(0,100)/100 + KnownAmplitudeA*COS(2*PI()*KnownFrequencyA*time+KnownPhaseA)","v":0.97955502379514225},{"$f":"UnknownNoiseA*RANDBETWEEN(0,100)/100 + UnknownAmplitudeA*COS(2*PI()*UnknownFrequencyA*time+UnknownPhaseA)","v":-7.0777689190093585E-2},null,{"$f":"KnownNoiseB*RANDBETWEEN(0,100)/100 + KnownAmplitudeB*COS(2*PI()*KnownFrequencyB*time+KnownPhaseB)","v":0.87270665248667811},{"$f":"UnknownNoiseB*RANDBETWEEN(0,100)/100 + UnknownAmplitudeB*COS(2*PI()*UnknownFrequencyB*time+UnknownPhaseB)","v":1.0968951271280563}]
[null,null,"use GPS.",null,null,null,null,null,null,{"$f":"J47+1/samplesPerNanosecond","v":14.333333333333341},null,{"$f":"KnownNoiseA*RANDBETWEEN(0,100)/100 + KnownAmplitudeA*COS(2*PI()*KnownFrequencyA*time+KnownPhaseA)","v":1.0218751680115061},{"$f":"UnknownNoiseA*RANDBETWEEN(0,100)/100 + UnknownAmplitudeA*COS(2*PI()*UnknownFrequencyA*time+UnknownPhaseA)","v":0.31618465392001455},null,{"$f":"KnownNoiseB*RANDBETWEEN(0,100)/100 + KnownAmplitudeB*COS(2*PI()*KnownFrequencyB*time+KnownPhaseB)","v":0.94205806609038956},{"$f":"UnknownNoiseB*RANDBETWEEN(0,100)/100 + UnknownAmplitudeB*COS(2*PI()*UnknownFrequencyB*time+UnknownPhaseB)","v":0.9856413357446413}]
[null,null,null,null,null,null,null,null,null,{"$f":"J48+1/samplesPerNanosecond","v":14.666666666666675},null,{"$f":"KnownNoiseA*RANDBETWEEN(0,100)/100 + KnownAmplitudeA*COS(2*PI()*KnownFrequencyA*time+KnownPhaseA)","v":1.0044973303044151},{"$f":"UnknownNoiseA*RANDBETWEEN(0,100)/100 + UnknownAmplitudeA*COS(2*PI()*UnknownFrequencyA*time+UnknownPhaseA)","v":0.76474705002225352},null,{"$f":"KnownNoiseB*RANDBETWEEN(0,100)/100 + KnownAmplitudeB*COS(2*PI()*KnownFrequencyB*time+KnownPhaseB)","v":0.84292696070000461},{"$f":"UnknownNoiseB*RANDBETWEEN(0,100)/100 + UnknownAmplitudeB*COS(2*PI()*UnknownFrequencyB*time+UnknownPhaseB)","v":0.6401820195793988}]
[null,null,"even with GPS, you must keep a huge buffer of samples running extremely rapidly",null,null,null,null,null,null,{"$f":"J49+1/samplesPerNanosecond","v":15.000000000000009},null,{"$f":"KnownNoiseA*RANDBETWEEN(0,100)/100 + KnownAmplitudeA*COS(2*PI()*KnownFrequencyA*time+KnownPhaseA)","v":0.96444147119014245},{"$f":"UnknownNoiseA*RANDBETWEEN(0,100)/100 + UnknownAmplitudeA*COS(2*PI()*UnknownFrequencyA*time+UnknownPhaseA)","v":0.97033839459080728},null,{"$f":"KnownNoiseB*RANDBETWEEN(0,100)/100 + KnownAmplitudeB*COS(2*PI()*KnownFrequencyB*time+KnownPhaseB)","v":0.84135391599368659},{"$f":"UnknownNoiseB*RANDBETWEEN(0,100)/100 + UnknownAmplitudeB*COS(2*PI()*UnknownFrequencyB*time+UnknownPhaseB)","v":0.25713788938676396}]
[null,null,"if you trigger an even as interesting, it must look back in the buffer for the latency of your trigger",null,null,null,null,null,null,{"$f":"J50+1/samplesPerNanosecond","v":15.333333333333343},null,{"$f":"KnownNoiseA*RANDBETWEEN(0,100)/100 + KnownAmplitudeA*COS(2*PI()*KnownFrequencyA*time+KnownPhaseA)","v":0.94973049522700415},{"$f":"UnknownNoiseA*RANDBETWEEN(0,100)/100 + UnknownAmplitudeA*COS(2*PI()*UnknownFrequencyA*time+UnknownPhaseA)","v":1.0053470990974287},null,{"$f":"KnownNoiseB*RANDBETWEEN(0,100)/100 + KnownAmplitudeB*COS(2*PI()*KnownFrequencyB*time+KnownPhaseB)","v":0.78938204171477322},{"$f":"UnknownNoiseB*RANDBETWEEN(0,100)/100 + UnknownAmplitudeB*COS(2*PI()*UnknownFrequencyB*time+UnknownPhaseB)","v":-0.18440280856548136}]
[null,null,"this is six gigabytes for every second of latency!",null,null,null,null,null,null,{"$f":"J51+1/samplesPerNanosecond","v":15.666666666666677},null,{"$f":"KnownNoiseA*RANDBETWEEN(0,100)/100 + KnownAmplitudeA*COS(2*PI()*KnownFrequencyA*time+KnownPhaseA)","v":0.92739021030232072},{"$f":"UnknownNoiseA*RANDBETWEEN(0,100)/100 + UnknownAmplitudeA*COS(2*PI()*UnknownFrequencyA*time+UnknownPhaseA)","v":0.93110242157940659},null,{"$f":"KnownNoiseB*RANDBETWEEN(0,100)/100 + KnownAmplitudeB*COS(2*PI()*KnownFrequencyB*time+KnownPhaseB)","v":0.83305690106767605},{"$f":"UnknownNoiseB*RANDBETWEEN(0,100)/100 + UnknownAmplitudeB*COS(2*PI()*UnknownFrequencyB*time+UnknownPhaseB)","v":-0.5991983977893256}]
[null,null,null,null,null,null,null,null,null,{"$f":"J52+1/samplesPerNanosecond","v":16.000000000000011},null,{"$f":"KnownNoiseA*RANDBETWEEN(0,100)/100 + KnownAmplitudeA*COS(2*PI()*KnownFrequencyA*time+KnownPhaseA)","v":0.93744928300981689},{"$f":"UnknownNoiseA*RANDBETWEEN(0,100)/100 + UnknownAmplitudeA*COS(2*PI()*UnknownFrequencyA*time+UnknownPhaseA)","v":0.55822249699228144},null,{"$f":"KnownNoiseB*RANDBETWEEN(0,100)/100 + KnownAmplitudeB*COS(2*PI()*KnownFrequencyB*time+KnownPhaseB)","v":0.72742643193775047},{"$f":"UnknownNoiseB*RANDBETWEEN(0,100)/100 + UnknownAmplitudeB*COS(2*PI()*UnknownFrequencyB*time+UnknownPhaseB)","v":-0.86700944635289778}]
[null,null,"do some latency testing, how long does it take you to trigger an RF recording.",null,null,null,null,null,null,{"$f":"J53+1/samplesPerNanosecond","v":16.333333333333343},null,{"$f":"KnownNoiseA*RANDBETWEEN(0,100)/100 + KnownAmplitudeA*COS(2*PI()*KnownFrequencyA*time+KnownPhaseA)","v":0.97393918774587063},{"$f":"UnknownNoiseA*RANDBETWEEN(0,100)/100 + UnknownAmplitudeA*COS(2*PI()*UnknownFrequencyA*time+UnknownPhaseA)","v":0.20485666947553452},null,{"$f":"KnownNoiseB*RANDBETWEEN(0,100)/100 + KnownAmplitudeB*COS(2*PI()*KnownFrequencyB*time+KnownPhaseB)","v":0.68554086174816231},{"$f":"UnknownNoiseB*RANDBETWEEN(0,100)/100 + UnknownAmplitudeB*COS(2*PI()*UnknownFrequencyB*time+UnknownPhaseB)","v":-0.91094328914049261}]
[null,null,"that’s ALL you're doing. RF recordings, common feature identification, and time difference between common features.",null,null,null,null,null,null,{"$f":"J54+1/samplesPerNanosecond","v":16.666666666666675},null,{"$f":"KnownNoiseA*RANDBETWEEN(0,100)/100 + KnownAmplitudeA*COS(2*PI()*KnownFrequencyA*time+KnownPhaseA)","v":0.91389415172582411},{"$f":"UnknownNoiseA*RANDBETWEEN(0,100)/100 + UnknownAmplitudeA*COS(2*PI()*UnknownFrequencyA*time+UnknownPhaseA)","v":-0.25501949215189834},null,{"$f":"KnownNoiseB*RANDBETWEEN(0,100)/100 + KnownAmplitudeB*COS(2*PI()*KnownFrequencyB*time+KnownPhaseB)","v":0.72645261976793574},{"$f":"UnknownNoiseB*RANDBETWEEN(0,100)/100 + UnknownAmplitudeB*COS(2*PI()*UnknownFrequencyB*time+UnknownPhaseB)","v":-0.88269904478641048}]
[null,null,null,null,null,null,null,null,null,{"$f":"J55+1/samplesPerNanosecond","v":17.000000000000007},null,{"$f":"KnownNoiseA*RANDBETWEEN(0,100)/100 + KnownAmplitudeA*COS(2*PI()*KnownFrequencyA*time+KnownPhaseA)","v":0.83635109532776664},{"$f":"UnknownNoiseA*RANDBETWEEN(0,100)/100 + UnknownAmplitudeA*COS(2*PI()*UnknownFrequencyA*time+UnknownPhaseA)","v":-0.64970038811948516},null,{"$f":"KnownNoiseB*RANDBETWEEN(0,100)/100 + KnownAmplitudeB*COS(2*PI()*KnownFrequencyB*time+KnownPhaseB)","v":0.64721624568267389},{"$f":"UnknownNoiseB*RANDBETWEEN(0,100)/100 + UnknownAmplitudeB*COS(2*PI()*UnknownFrequencyB*time+UnknownPhaseB)","v":-0.55445074965922547}]
[null,null,null,null,null,null,null,null,null,{"$f":"J56+1/samplesPerNanosecond","v":17.333333333333339},null,{"$f":"KnownNoiseA*RANDBETWEEN(0,100)/100 + KnownAmplitudeA*COS(2*PI()*KnownFrequencyA*time+KnownPhaseA)","v":0.89134956661988496},{"$f":"UnknownNoiseA*RANDBETWEEN(0,100)/100 + UnknownAmplitudeA*COS(2*PI()*UnknownFrequencyA*time+UnknownPhaseA)","v":-0.92579820949251135},null,{"$f":"KnownNoiseB*RANDBETWEEN(0,100)/100 + KnownAmplitudeB*COS(2*PI()*KnownFrequencyB*time+KnownPhaseB)","v":0.65188829287675931},{"$f":"UnknownNoiseB*RANDBETWEEN(0,100)/100 + UnknownAmplitudeB*COS(2*PI()*UnknownFrequencyB*time+UnknownPhaseB)","v":-0.1645873647746442}]
[null,null,null,null,null,null,null,null,null,{"$f":"J57+1/samplesPerNanosecond","v":17.666666666666671},null,{"$f":"KnownNoiseA*RANDBETWEEN(0,100)/100 + KnownAmplitudeA*COS(2*PI()*KnownFrequencyA*time+KnownPhaseA)","v":0.85693167229398448},{"$f":"UnknownNoiseA*RANDBETWEEN(0,100)/100 + UnknownAmplitudeA*COS(2*PI()*UnknownFrequencyA*time+UnknownPhaseA)","v":-0.94761136491062969},null,{"$f":"KnownNoiseB*RANDBETWEEN(0,100)/100 + KnownAmplitudeB*COS(2*PI()*KnownFrequencyB*time+KnownPhaseB)","v":0.55752722971031909},{"$f":"UnknownNoiseB*RANDBETWEEN(0,100)/100 + UnknownAmplitudeB*COS(2*PI()*UnknownFrequencyB*time+UnknownPhaseB)","v":0.34683328017501136}]
[null,null,null,null,null,null,null,null,null,{"$f":"J58+1/samplesPerNanosecond","v":18.000000000000004},null,{"$f":"KnownNoiseA*RANDBETWEEN(0,100)/100 + KnownAmplitudeA*COS(2*PI()*KnownFrequencyA*time+KnownPhaseA)","v":0.7781420042561018},{"$f":"UnknownNoiseA*RANDBETWEEN(0,100)/100 + UnknownAmplitudeA*COS(2*PI()*UnknownFrequencyA*time+UnknownPhaseA)","v":-0.83772153927799442},null,{"$f":"KnownNoiseB*RANDBETWEEN(0,100)/100 + KnownAmplitudeB*COS(2*PI()*KnownFrequencyB*time+KnownPhaseB)","v":0.61919333754578143},{"$f":"UnknownNoiseB*RANDBETWEEN(0,100)/100 + UnknownAmplitudeB*COS(2*PI()*UnknownFrequencyB*time+UnknownPhaseB)","v":0.6555936621046885}]
[null,null,null,null,null,null,null,null,null,{"$f":"J59+1/samplesPerNanosecond","v":18.333333333333336},null,{"$f":"KnownNoiseA*RANDBETWEEN(0,100)/100 + KnownAmplitudeA*COS(2*PI()*KnownFrequencyA*time+KnownPhaseA)","v":0.81502756038970936},{"$f":"UnknownNoiseA*RANDBETWEEN(0,100)/100 + UnknownAmplitudeA*COS(2*PI()*UnknownFrequencyA*time+UnknownPhaseA)","v":-0.49888855955561229},null,{"$f":"KnownNoiseB*RANDBETWEEN(0,100)/100 + KnownAmplitudeB*COS(2*PI()*KnownFrequencyB*time+KnownPhaseB)","v":0.48794860364421433},{"$f":"UnknownNoiseB*RANDBETWEEN(0,100)/100 + UnknownAmplitudeB*COS(2*PI()*UnknownFrequencyB*time+UnknownPhaseB)","v":0.96946737990271159}]
[null,null,null,null,null,null,null,null,null,{"$f":"J60+1/samplesPerNanosecond","v":18.666666666666668},null,{"$f":"KnownNoiseA*RANDBETWEEN(0,100)/100 + KnownAmplitudeA*COS(2*PI()*KnownFrequencyA*time+KnownPhaseA)","v":0.75963766329498372},{"$f":"UnknownNoiseA*RANDBETWEEN(0,100)/100 + UnknownAmplitudeA*COS(2*PI()*UnknownFrequencyA*time+UnknownPhaseA)","v":-8.3861841045072688E-2},null,{"$f":"KnownNoiseB*RANDBETWEEN(0,100)/100 + KnownAmplitudeB*COS(2*PI()*KnownFrequencyB*time+KnownPhaseB)","v":0.51285661398751425},{"$f":"UnknownNoiseB*RANDBETWEEN(0,100)/100 + UnknownAmplitudeB*COS(2*PI()*UnknownFrequencyB*time+UnknownPhaseB)","v":1.0173598655344305}]
[null,null,null,null,null,null,null,null,null,{"$f":"J61+1/samplesPerNanosecond","v":19},null,{"$f":"KnownNoiseA*RANDBETWEEN(0,100)/100 + KnownAmplitudeA*COS(2*PI()*KnownFrequencyA*time+KnownPhaseA)","v":0.75502387268532234},{"$f":"UnknownNoiseA*RANDBETWEEN(0,100)/100 + UnknownAmplitudeA*COS(2*PI()*UnknownFrequencyA*time+UnknownPhaseA)","v":0.42564651462114167},null,{"$f":"KnownNoiseB*RANDBETWEEN(0,100)/100 + KnownAmplitudeB*COS(2*PI()*KnownFrequencyB*time+KnownPhaseB)","v":0.45798244033020685},{"$f":"UnknownNoiseB*RANDBETWEEN(0,100)/100 + UnknownAmplitudeB*COS(2*PI()*UnknownFrequencyB*time+UnknownPhaseB)","v":0.89919164273670638}]
[null,null,null,null,null,null,null,null,null,{"$f":"J62+1/samplesPerNanosecond","v":19.333333333333332},null,{"$f":"KnownNoiseA*RANDBETWEEN(0,100)/100 + KnownAmplitudeA*COS(2*PI()*KnownFrequencyA*time+KnownPhaseA)","v":0.69223989537203745},{"$f":"UnknownNoiseA*RANDBETWEEN(0,100)/100 + UnknownAmplitudeA*COS(2*PI()*UnknownFrequencyA*time+UnknownPhaseA)","v":0.81520609586303361},null,{"$f":"KnownNoiseB*RANDBETWEEN(0,100)/100 + KnownAmplitudeB*COS(2*PI()*KnownFrequencyB*time+KnownPhaseB)","v":0.41139252662596371},{"$f":"UnknownNoiseB*RANDBETWEEN(0,100)/100 + UnknownAmplitudeB*COS(2*PI()*UnknownFrequencyB*time+UnknownPhaseB)","v":0.60133453758409405}]
[null,null,null,null,null,null,null,null,null,{"$f":"J63+1/samplesPerNanosecond","v":19.666666666666664},null,{"$f":"KnownNoiseA*RANDBETWEEN(0,100)/100 + KnownAmplitudeA*COS(2*PI()*KnownFrequencyA*time+KnownPhaseA)","v":0.62434149160464614},{"$f":"UnknownNoiseA*RANDBETWEEN(0,100)/100 + UnknownAmplitudeA*COS(2*PI()*UnknownFrequencyA*time+UnknownPhaseA)","v":1.0356606379751794},null,{"$f":"KnownNoiseB*RANDBETWEEN(0,100)/100 + KnownAmplitudeB*COS(2*PI()*KnownFrequencyB*time+KnownPhaseB)","v":0.34315457312500203},{"$f":"UnknownNoiseB*RANDBETWEEN(0,100)/100 + UnknownAmplitudeB*COS(2*PI()*UnknownFrequencyB*time+UnknownPhaseB)","v":0.25690951326260331}]
[null,null,null,null,null,null,null,null,null,{"$f":"J64+1/samplesPerNanosecond","v":19.999999999999996},null,{"$f":"KnownNoiseA*RANDBETWEEN(0,100)/100 + KnownAmplitudeA*COS(2*PI()*KnownFrequencyA*time+KnownPhaseA)","v":0.59638637599702549},{"$f":"UnknownNoiseA*RANDBETWEEN(0,100)/100 + UnknownAmplitudeA*COS(2*PI()*UnknownFrequencyA*time+UnknownPhaseA)","v":1.0192486760444543},null,{"$f":"KnownNoiseB*RANDBETWEEN(0,100)/100 + KnownAmplitudeB*COS(2*PI()*KnownFrequencyB*time+KnownPhaseB)","v":0.30133741609523412},{"$f":"UnknownNoiseB*RANDBETWEEN(0,100)/100 + UnknownAmplitudeB*COS(2*PI()*UnknownFrequencyB*time+UnknownPhaseB)","v":-0.22010784704298508}]
[null,null,null,null,null,null,null,null,null,{"$f":"J65+1/samplesPerNanosecond","v":20.333333333333329},null,{"$f":"KnownNoiseA*RANDBETWEEN(0,100)/100 + KnownAmplitudeA*COS(2*PI()*KnownFrequencyA*time+KnownPhaseA)","v":0.61543411773713474},{"$f":"UnknownNoiseA*RANDBETWEEN(0,100)/100 + UnknownAmplitudeA*COS(2*PI()*UnknownFrequencyA*time+UnknownPhaseA)","v":0.85381027085584127},null,{"$f":"KnownNoiseB*RANDBETWEEN(0,100)/100 + KnownAmplitudeB*COS(2*PI()*KnownFrequencyB*time+KnownPhaseB)","v":0.33801090880232187},{"$f":"UnknownNoiseB*RANDBETWEEN(0,100)/100 + UnknownAmplitudeB*COS(2*PI()*UnknownFrequencyB*time+UnknownPhaseB)","v":-0.59758115562699388}]
[null,null,null,null,null,null,null,null,null,{"$f":"J66+1/samplesPerNanosecond","v":20.666666666666661},null,{"$f":"KnownNoiseA*RANDBETWEEN(0,100)/100 + KnownAmplitudeA*COS(2*PI()*KnownFrequencyA*time+KnownPhaseA)","v":0.5905460347766962},{"$f":"UnknownNoiseA*RANDBETWEEN(0,100)/100 + UnknownAmplitudeA*COS(2*PI()*UnknownFrequencyA*time+UnknownPhaseA)","v":0.56522751260557391},null,{"$f":"KnownNoiseB*RANDBETWEEN(0,100)/100 + KnownAmplitudeB*COS(2*PI()*KnownFrequencyB*time+KnownPhaseB)","v":0.25624579742301173},{"$f":"UnknownNoiseB*RANDBETWEEN(0,100)/100 + UnknownAmplitudeB*COS(2*PI()*UnknownFrequencyB*time+UnknownPhaseB)","v":-0.91034771625692645}]
[null,null,null,null,null,null,null,null,null,{"$f":"J67+1/samplesPerNanosecond","v":20.999999999999993},null,{"$f":"KnownNoiseA*RANDBETWEEN(0,100)/100 + KnownAmplitudeA*COS(2*PI()*KnownFrequencyA*time+KnownPhaseA)","v":0.52078508680115987},{"$f":"UnknownNoiseA*RANDBETWEEN(0,100)/100 + UnknownAmplitudeA*COS(2*PI()*UnknownFrequencyA*time+UnknownPhaseA)","v":0.15580899070706528},null,{"$f":"KnownNoiseB*RANDBETWEEN(0,100)/100 + KnownAmplitudeB*COS(2*PI()*KnownFrequencyB*time+KnownPhaseB)","v":0.24311359758491102},{"$f":"UnknownNoiseB*RANDBETWEEN(0,100)/100 + UnknownAmplitudeB*COS(2*PI()*UnknownFrequencyB*time+UnknownPhaseB)","v":-0.98414522481946731}]
[null,null,null,null,null,null,null,null,null,{"$f":"J68+1/samplesPerNanosecond","v":21.333333333333325},null,{"$f":"KnownNoiseA*RANDBETWEEN(0,100)/100 + KnownAmplitudeA*COS(2*PI()*KnownFrequencyA*time+KnownPhaseA)","v":0.51621576541305259},{"$f":"UnknownNoiseA*RANDBETWEEN(0,100)/100 + UnknownAmplitudeA*COS(2*PI()*UnknownFrequencyA*time+UnknownPhaseA)","v":-0.29205079799398931},null,{"$f":"KnownNoiseB*RANDBETWEEN(0,100)/100 + KnownAmplitudeB*COS(2*PI()*KnownFrequencyB*time+KnownPhaseB)","v":0.190686469600229},{"$f":"UnknownNoiseB*RANDBETWEEN(0,100)/100 + UnknownAmplitudeB*COS(2*PI()*UnknownFrequencyB*time+UnknownPhaseB)","v":-0.82712639791728482}]
[null,null,null,null,null,null,null,null,null,{"$f":"J69+1/samplesPerNanosecond","v":21.666666666666657},null,{"$f":"KnownNoiseA*RANDBETWEEN(0,100)/100 + KnownAmplitudeA*COS(2*PI()*KnownFrequencyA*time+KnownPhaseA)","v":0.46490397955108337},{"$f":"UnknownNoiseA*RANDBETWEEN(0,100)/100 + UnknownAmplitudeA*COS(2*PI()*UnknownFrequencyA*time+UnknownPhaseA)","v":-0.7352531162727135},null,{"$f":"KnownNoiseB*RANDBETWEEN(0,100)/100 + KnownAmplitudeB*COS(2*PI()*KnownFrequencyB*time+KnownPhaseB)","v":0.12303709026850165},{"$f":"UnknownNoiseB*RANDBETWEEN(0,100)/100 + UnknownAmplitudeB*COS(2*PI()*UnknownFrequencyB*time+UnknownPhaseB)","v":-0.51784608918467234}]
[null,null,null,null,null,null,null,null,null,{"$f":"J70+1/samplesPerNanosecond","v":21.999999999999989},null,{"$f":"KnownNoiseA*RANDBETWEEN(0,100)/100 + KnownAmplitudeA*COS(2*PI()*KnownFrequencyA*time+KnownPhaseA)","v":0.416916941531636},{"$f":"UnknownNoiseA*RANDBETWEEN(0,100)/100 + UnknownAmplitudeA*COS(2*PI()*UnknownFrequencyA*time+UnknownPhaseA)","v":-0.86192071396047787},null,{"$f":"KnownNoiseB*RANDBETWEEN(0,100)/100 + KnownAmplitudeB*COS(2*PI()*KnownFrequencyB*time+KnownPhaseB)","v":8.32385272162533E-2},{"$f":"UnknownNoiseB*RANDBETWEEN(0,100)/100 + UnknownAmplitudeB*COS(2*PI()*UnknownFrequencyB*time+UnknownPhaseB)","v":-6.0119921910540899E-2}]
[null,null,null,null,null,null,null,null,null,{"$f":"J71+1/samplesPerNanosecond","v":22.333333333333321},null,{"$f":"KnownNoiseA*RANDBETWEEN(0,100)/100 + KnownAmplitudeA*COS(2*PI()*KnownFrequencyA*time+KnownPhaseA)","v":0.32632304765603082},{"$f":"UnknownNoiseA*RANDBETWEEN(0,100)/100 + UnknownAmplitudeA*COS(2*PI()*UnknownFrequencyA*time+UnknownPhaseA)","v":-0.95926115656985989},null,{"$f":"KnownNoiseB*RANDBETWEEN(0,100)/100 + KnownAmplitudeB*COS(2*PI()*KnownFrequencyB*time+KnownPhaseB)","v":2.364109095049252E-3},{"$f":"UnknownNoiseB*RANDBETWEEN(0,100)/100 + UnknownAmplitudeB*COS(2*PI()*UnknownFrequencyB*time+UnknownPhaseB)","v":0.36221117593325264}]
[null,null,null,null,null,null,null,null,null,{"$f":"J72+1/samplesPerNanosecond","v":22.666666666666654},null,{"$f":"KnownNoiseA*RANDBETWEEN(0,100)/100 + KnownAmplitudeA*COS(2*PI()*KnownFrequencyA*time+KnownPhaseA)","v":0.36619175884348698},{"$f":"UnknownNoiseA*RANDBETWEEN(0,100)/100 + UnknownAmplitudeA*COS(2*PI()*UnknownFrequencyA*time+UnknownPhaseA)","v":-0.77737740296822233},null,{"$f":"KnownNoiseB*RANDBETWEEN(0,100)/100 + KnownAmplitudeB*COS(2*PI()*KnownFrequencyB*time+KnownPhaseB)","v":-1.9512702369663914E-2},{"$f":"UnknownNoiseB*RANDBETWEEN(0,100)/100 + UnknownAmplitudeB*COS(2*PI()*UnknownFrequencyB*time+UnknownPhaseB)","v":0.74414888544840196}]
[null,null,null,null,null,null,null,null,null,{"$f":"J73+1/samplesPerNanosecond","v":22.999999999999986},null,{"$f":"KnownNoiseA*RANDBETWEEN(0,100)/100 + KnownAmplitudeA*COS(2*PI()*KnownFrequencyA*time+KnownPhaseA)","v":0.29259347945704528},{"$f":"UnknownNoiseA*RANDBETWEEN(0,100)/100 + UnknownAmplitudeA*COS(2*PI()*UnknownFrequencyA*time+UnknownPhaseA)","v":-0.44825303772364972},null,{"$f":"KnownNoiseB*RANDBETWEEN(0,100)/100 + KnownAmplitudeB*COS(2*PI()*KnownFrequencyB*time+KnownPhaseB)","v":6.6815594444075421E-3},{"$f":"UnknownNoiseB*RANDBETWEEN(0,100)/100 + UnknownAmplitudeB*COS(2*PI()*UnknownFrequencyB*time+UnknownPhaseB)","v":0.96564421478335027}]
[null,null,null,null,null,null,null,null,null,{"$f":"J74+1/samplesPerNanosecond","v":23.333333333333318},null,{"$f":"KnownNoiseA*RANDBETWEEN(0,100)/100 + KnownAmplitudeA*COS(2*PI()*KnownFrequencyA*time+KnownPhaseA)","v":0.19459943222335901},{"$f":"UnknownNoiseA*RANDBETWEEN(0,100)/100 + UnknownAmplitudeA*COS(2*PI()*UnknownFrequencyA*time+UnknownPhaseA)","v":3.5286057621292895E-2},null,{"$f":"KnownNoiseB*RANDBETWEEN(0,100)/100 + KnownAmplitudeB*COS(2*PI()*KnownFrequencyB*time+KnownPhaseB)","v":-4.2979764456458583E-2},{"$f":"UnknownNoiseB*RANDBETWEEN(0,100)/100 + UnknownAmplitudeB*COS(2*PI()*UnknownFrequencyB*time+UnknownPhaseB)","v":1.03330013418871}]
[null,null,null,null,null,null,null,null,null,{"$f":"J75+1/samplesPerNanosecond","v":23.66666666666665},null,{"$f":"KnownNoiseA*RANDBETWEEN(0,100)/100 + KnownAmplitudeA*COS(2*PI()*KnownFrequencyA*time+KnownPhaseA)","v":0.18628153508648992},{"$f":"UnknownNoiseA*RANDBETWEEN(0,100)/100 + UnknownAmplitudeA*COS(2*PI()*UnknownFrequencyA*time+UnknownPhaseA)","v":0.47521756005041743},null,{"$f":"KnownNoiseB*RANDBETWEEN(0,100)/100 + KnownAmplitudeB*COS(2*PI()*KnownFrequencyB*time+KnownPhaseB)","v":-0.13242358549077224},{"$f":"UnknownNoiseB*RANDBETWEEN(0,100)/100 + UnknownAmplitudeB*COS(2*PI()*UnknownFrequencyB*time+UnknownPhaseB)","v":0.89251093075656196}]
[null,null,null,null,null,null,null,null,null,{"$f":"J76+1/samplesPerNanosecond","v":23.999999999999982},null,{"$f":"KnownNoiseA*RANDBETWEEN(0,100)/100 + KnownAmplitudeA*COS(2*PI()*KnownFrequencyA*time+KnownPhaseA)","v":0.13971227345078613},{"$f":"UnknownNoiseA*RANDBETWEEN(0,100)/100 + UnknownAmplitudeA*COS(2*PI()*UnknownFrequencyA*time+UnknownPhaseA)","v":0.83183068208509003},null,{"$f":"KnownNoiseB*RANDBETWEEN(0,100)/100 + KnownAmplitudeB*COS(2*PI()*KnownFrequencyB*time+KnownPhaseB)","v":-0.19157719734609274},{"$f":"UnknownNoiseB*RANDBETWEEN(0,100)/100 + UnknownAmplitudeB*COS(2*PI()*UnknownFrequencyB*time+UnknownPhaseB)","v":0.59599834540406915}]
[null,null,null,null,null,null,null,null,null,{"$f":"J77+1/samplesPerNanosecond","v":24.333333333333314},null,{"$f":"KnownNoiseA*RANDBETWEEN(0,100)/100 + KnownAmplitudeA*COS(2*PI()*KnownFrequencyA*time+KnownPhaseA)","v":0.15596457369375594},{"$f":"UnknownNoiseA*RANDBETWEEN(0,100)/100 + UnknownAmplitudeA*COS(2*PI()*UnknownFrequencyA*time+UnknownPhaseA)","v":1.0425738518288197},null,{"$f":"KnownNoiseB*RANDBETWEEN(0,100)/100 + KnownAmplitudeB*COS(2*PI()*KnownFrequencyB*time+KnownPhaseB)","v":-0.23036840282904508},{"$f":"UnknownNoiseB*RANDBETWEEN(0,100)/100 + UnknownAmplitudeB*COS(2*PI()*UnknownFrequencyB*time+UnknownPhaseB)","v":0.17223424835563428}]
[null,null,null,null,null,null,null,null,null,{"$f":"J78+1/samplesPerNanosecond","v":24.666666666666647},null,{"$f":"KnownNoiseA*RANDBETWEEN(0,100)/100 + KnownAmplitudeA*COS(2*PI()*KnownFrequencyA*time+KnownPhaseA)","v":9.3111675930451263E-2},{"$f":"UnknownNoiseA*RANDBETWEEN(0,100)/100 + UnknownAmplitudeA*COS(2*PI()*UnknownFrequencyA*time+UnknownPhaseA)","v":1.0556513250331034},null,{"$f":"KnownNoiseB*RANDBETWEEN(0,100)/100 + KnownAmplitudeB*COS(2*PI()*KnownFrequencyB*time+KnownPhaseB)","v":-0.25572563985117736},{"$f":"UnknownNoiseB*RANDBETWEEN(0,100)/100 + UnknownAmplitudeB*COS(2*PI()*UnknownFrequencyB*time+UnknownPhaseB)","v":-0.26712804311796806}]
[null,null,null,null,null,null,null,null,null,{"$f":"J79+1/samplesPerNanosecond","v":24.999999999999979},null,{"$f":"KnownNoiseA*RANDBETWEEN(0,100)/100 + KnownAmplitudeA*COS(2*PI()*KnownFrequencyA*time+KnownPhaseA)","v":6.8227003900549935E-2},{"$f":"UnknownNoiseA*RANDBETWEEN(0,100)/100 + UnknownAmplitudeA*COS(2*PI()*UnknownFrequencyA*time+UnknownPhaseA)","v":0.80043205172381438},null,{"$f":"KnownNoiseB*RANDBETWEEN(0,100)/100 + KnownAmplitudeB*COS(2*PI()*KnownFrequencyB*time+KnownPhaseB)","v":-0.22957810855337382},{"$f":"UnknownNoiseB*RANDBETWEEN(0,100)/100 + UnknownAmplitudeB*COS(2*PI()*UnknownFrequencyB*time+UnknownPhaseB)","v":-0.6702851237928219}]
[null,null,null,null,null,null,null,null,null,{"$f":"J80+1/samplesPerNanosecond","v":25.333333333333311},null,{"$f":"KnownNoiseA*RANDBETWEEN(0,100)/100 + KnownAmplitudeA*COS(2*PI()*KnownFrequencyA*time+KnownPhaseA)","v":-2.8615961983464638E-2},{"$f":"UnknownNoiseA*RANDBETWEEN(0,100)/100 + UnknownAmplitudeA*COS(2*PI()*UnknownFrequencyA*time+UnknownPhaseA)","v":0.46197901445912221},null,{"$f":"KnownNoiseB*RANDBETWEEN(0,100)/100 + KnownAmplitudeB*COS(2*PI()*KnownFrequencyB*time+KnownPhaseB)","v":-0.31985589372090784},{"$f":"UnknownNoiseB*RANDBETWEEN(0,100)/100 + UnknownAmplitudeB*COS(2*PI()*UnknownFrequencyB*time+UnknownPhaseB)","v":-0.89535100361427522}]
[null,null,null,null,null,null,null,null,null,{"$f":"J81+1/samplesPerNanosecond","v":25.666666666666643},null,{"$f":"KnownNoiseA*RANDBETWEEN(0,100)/100 + KnownAmplitudeA*COS(2*PI()*KnownFrequencyA*time+KnownPhaseA)","v":-0.10434381517421015},{"$f":"UnknownNoiseA*RANDBETWEEN(0,100)/100 + UnknownAmplitudeA*COS(2*PI()*UnknownFrequencyA*time+UnknownPhaseA)","v":0.10859254663034817},null,{"$f":"KnownNoiseB*RANDBETWEEN(0,100)/100 + KnownAmplitudeB*COS(2*PI()*KnownFrequencyB*time+KnownPhaseB)","v":-0.39449008899520094},{"$f":"UnknownNoiseB*RANDBETWEEN(0,100)/100 + UnknownAmplitudeB*COS(2*PI()*UnknownFrequencyB*time+UnknownPhaseB)","v":-0.96782575904094403}]
[null,null,null,null,null,null,null,null,null,{"$f":"J82+1/samplesPerNanosecond","v":25.999999999999975},null,{"$f":"KnownNoiseA*RANDBETWEEN(0,100)/100 + KnownAmplitudeA*COS(2*PI()*KnownFrequencyA*time+KnownPhaseA)","v":-0.12088335106852624},{"$f":"UnknownNoiseA*RANDBETWEEN(0,100)/100 + UnknownAmplitudeA*COS(2*PI()*UnknownFrequencyA*time+UnknownPhaseA)","v":-0.38213216730858574},null,{"$f":"KnownNoiseB*RANDBETWEEN(0,100)/100 + KnownAmplitudeB*COS(2*PI()*KnownFrequencyB*time+KnownPhaseB)","v":-0.40641291707874094},{"$f":"UnknownNoiseB*RANDBETWEEN(0,100)/100 + UnknownAmplitudeB*COS(2*PI()*UnknownFrequencyB*time+UnknownPhaseB)","v":-0.79335320992142133}]
[null,null,null,null,null,null,null,null,null,{"$f":"J83+1/samplesPerNanosecond","v":26.333333333333307},null,{"$f":"KnownNoiseA*RANDBETWEEN(0,100)/100 + KnownAmplitudeA*COS(2*PI()*KnownFrequencyA*time+KnownPhaseA)","v":-0.14116169474382295},{"$f":"UnknownNoiseA*RANDBETWEEN(0,100)/100 + UnknownAmplitudeA*COS(2*PI()*UnknownFrequencyA*time+UnknownPhaseA)","v":-0.70692832255431348},null,{"$f":"KnownNoiseB*RANDBETWEEN(0,100)/100 + KnownAmplitudeB*COS(2*PI()*KnownFrequencyB*time+KnownPhaseB)","v":-0.38755784802357629},{"$f":"UnknownNoiseB*RANDBETWEEN(0,100)/100 + UnknownAmplitudeB*COS(2*PI()*UnknownFrequencyB*time+UnknownPhaseB)","v":-0.45780447412405528}]
[null,null,null,null,null,null,null,null,null,{"$f":"J84+1/samplesPerNanosecond","v":26.666666666666639},null,{"$f":"KnownNoiseA*RANDBETWEEN(0,100)/100 + KnownAmplitudeA*COS(2*PI()*KnownFrequencyA*time+KnownPhaseA)","v":-0.22110643019062051},{"$f":"UnknownNoiseA*RANDBETWEEN(0,100)/100 + UnknownAmplitudeA*COS(2*PI()*UnknownFrequencyA*time+UnknownPhaseA)","v":-0.8766158493157401},null,{"$f":"KnownNoiseB*RANDBETWEEN(0,100)/100 + KnownAmplitudeB*COS(2*PI()*KnownFrequencyB*time+KnownPhaseB)","v":-0.42985971721201283},{"$f":"UnknownNoiseB*RANDBETWEEN(0,100)/100 + UnknownAmplitudeB*COS(2*PI()*UnknownFrequencyB*time+UnknownPhaseB)","v":-9.6268210922639222E-2}]
[null,null,null,null,null,null,null,null,null,{"$f":"J85+1/samplesPerNanosecond","v":26.999999999999972},null,{"$f":"KnownNoiseA*RANDBETWEEN(0,100)/100 + KnownAmplitudeA*COS(2*PI()*KnownFrequencyA*time+KnownPhaseA)","v":-0.24964572665422055},{"$f":"UnknownNoiseA*RANDBETWEEN(0,100)/100 + UnknownAmplitudeA*COS(2*PI()*UnknownFrequencyA*time+UnknownPhaseA)","v":-0.90442209310257926},null,{"$f":"KnownNoiseB*RANDBETWEEN(0,100)/100 + KnownAmplitudeB*COS(2*PI()*KnownFrequencyB*time+KnownPhaseB)","v":-0.48025483902441995},{"$f":"UnknownNoiseB*RANDBETWEEN(0,100)/100 + UnknownAmplitudeB*COS(2*PI()*UnknownFrequencyB*time+UnknownPhaseB)","v":0.42784334219124187}]
[null,null,null,null,null,null,null,null,null,{"$f":"J86+1/samplesPerNanosecond","v":27.333333333333304},null,{"$f":"KnownNoiseA*RANDBETWEEN(0,100)/100 + KnownAmplitudeA*COS(2*PI()*KnownFrequencyA*time+KnownPhaseA)","v":-0.31170846398298846},{"$f":"UnknownNoiseA*RANDBETWEEN(0,100)/100 + UnknownAmplitudeA*COS(2*PI()*UnknownFrequencyA*time+UnknownPhaseA)","v":-0.70898365692676513},null,{"$f":"KnownNoiseB*RANDBETWEEN(0,100)/100 + KnownAmplitudeB*COS(2*PI()*KnownFrequencyB*time+KnownPhaseB)","v":-0.57468111799664257},{"$f":"UnknownNoiseB*RANDBETWEEN(0,100)/100 + UnknownAmplitudeB*COS(2*PI()*UnknownFrequencyB*time+UnknownPhaseB)","v":0.78097841542342805}]
[null,null,null,null,null,null,null,null,null,{"$f":"J87+1/samplesPerNanosecond","v":27.666666666666636},null,{"$f":"KnownNoiseA*RANDBETWEEN(0,100)/100 + KnownAmplitudeA*COS(2*PI()*KnownFrequencyA*time+KnownPhaseA)","v":-0.28322435896707226},{"$f":"UnknownNoiseA*RANDBETWEEN(0,100)/100 + UnknownAmplitudeA*COS(2*PI()*UnknownFrequencyA*time+UnknownPhaseA)","v":-0.42041951156245189},null,{"$f":"KnownNoiseB*RANDBETWEEN(0,100)/100 + KnownAmplitudeB*COS(2*PI()*KnownFrequencyB*time+KnownPhaseB)","v":-0.55907815911948355},{"$f":"UnknownNoiseB*RANDBETWEEN(0,100)/100 + UnknownAmplitudeB*COS(2*PI()*UnknownFrequencyB*time+UnknownPhaseB)","v":0.96946258335527602}]
[null,null,null,null,null,null,null,null,null,{"$f":"J88+1/samplesPerNanosecond","v":27.999999999999968},null,{"$f":"KnownNoiseA*RANDBETWEEN(0,100)/100 + KnownAmplitudeA*COS(2*PI()*KnownFrequencyA*time+KnownPhaseA)","v":-0.36012408686015407},{"$f":"UnknownNoiseA*RANDBETWEEN(0,100)/100 + UnknownAmplitudeA*COS(2*PI()*UnknownFrequencyA*time+UnknownPhaseA)","v":0.10153932932606648},null,{"$f":"KnownNoiseB*RANDBETWEEN(0,100)/100 + KnownAmplitudeB*COS(2*PI()*KnownFrequencyB*time+KnownPhaseB)","v":-0.56138737226346402},{"$f":"UnknownNoiseB*RANDBETWEEN(0,100)/100 + UnknownAmplitudeB*COS(2*PI()*UnknownFrequencyB*time+UnknownPhaseB)","v":1.0017236622445427}]
[null,null,null,null,null,null,null,null,null,{"$f":"J89+1/samplesPerNanosecond","v":28.3333333333333},null,{"$f":"KnownNoiseA*RANDBETWEEN(0,100)/100 + KnownAmplitudeA*COS(2*PI()*KnownFrequencyA*time+KnownPhaseA)","v":-0.39233940454282223},{"$f":"UnknownNoiseA*RANDBETWEEN(0,100)/100 + UnknownAmplitudeA*COS(2*PI()*UnknownFrequencyA*time+UnknownPhaseA)","v":0.46878014684293579},null,{"$f":"KnownNoiseB*RANDBETWEEN(0,100)/100 + KnownAmplitudeB*COS(2*PI()*KnownFrequencyB*time+KnownPhaseB)","v":-0.65955207627878298},{"$f":"UnknownNoiseB*RANDBETWEEN(0,100)/100 + UnknownAmplitudeB*COS(2*PI()*UnknownFrequencyB*time+UnknownPhaseB)","v":0.87666154588166589}]
[null,null,null,null,null,null,null,null,null,{"$f":"J90+1/samplesPerNanosecond","v":28.666666666666632},null,{"$f":"KnownNoiseA*RANDBETWEEN(0,100)/100 + KnownAmplitudeA*COS(2*PI()*KnownFrequencyA*time+KnownPhaseA)","v":-0.4578032695685314},{"$f":"UnknownNoiseA*RANDBETWEEN(0,100)/100 + UnknownAmplitudeA*COS(2*PI()*UnknownFrequencyA*time+UnknownPhaseA)","v":0.84153587006566577},null,{"$f":"KnownNoiseB*RANDBETWEEN(0,100)/100 + KnownAmplitudeB*COS(2*PI()*KnownFrequencyB*time+KnownPhaseB)","v":-0.70151759784812928},{"$f":"UnknownNoiseB*RANDBETWEEN(0,100)/100 + UnknownAmplitudeB*COS(2*PI()*UnknownFrequencyB*time+UnknownPhaseB)","v":0.58827786184794884}]
[null,null,null,null,null,null,null,null,null,{"$f":"J91+1/samplesPerNanosecond","v":28.999999999999964},null,{"$f":"KnownNoiseA*RANDBETWEEN(0,100)/100 + KnownAmplitudeA*COS(2*PI()*KnownFrequencyA*time+KnownPhaseA)","v":-0.43244995717158824},{"$f":"UnknownNoiseA*RANDBETWEEN(0,100)/100 + UnknownAmplitudeA*COS(2*PI()*UnknownFrequencyA*time+UnknownPhaseA)","v":1.0620428901661372},null,{"$f":"KnownNoiseB*RANDBETWEEN(0,100)/100 + KnownAmplitudeB*COS(2*PI()*KnownFrequencyB*time+KnownPhaseB)","v":-0.71023136693147426},{"$f":"UnknownNoiseB*RANDBETWEEN(0,100)/100 + UnknownAmplitudeB*COS(2*PI()*UnknownFrequencyB*time+UnknownPhaseB)","v":0.16723757869585926}]
[null,null,null,null,null,null,null,null,null,{"$f":"J92+1/samplesPerNanosecond","v":29.333333333333297},null,{"$f":"KnownNoiseA*RANDBETWEEN(0,100)/100 + KnownAmplitudeA*COS(2*PI()*KnownFrequencyA*time+KnownPhaseA)","v":-0.49921517701621143},{"$f":"UnknownNoiseA*RANDBETWEEN(0,100)/100 + UnknownAmplitudeA*COS(2*PI()*UnknownFrequencyA*time+UnknownPhaseA)","v":1.0415767636732454},null,{"$f":"KnownNoiseB*RANDBETWEEN(0,100)/100 + KnownAmplitudeB*COS(2*PI()*KnownFrequencyB*time+KnownPhaseB)","v":-0.75764301013966184},{"$f":"UnknownNoiseB*RANDBETWEEN(0,100)/100 + UnknownAmplitudeB*COS(2*PI()*UnknownFrequencyB*time+UnknownPhaseB)","v":-0.35934209406192391}]
[null,null,null,null,null,null,null,null,null,{"$f":"J93+1/samplesPerNanosecond","v":29.666666666666629},null,{"$f":"KnownNoiseA*RANDBETWEEN(0,100)/100 + KnownAmplitudeA*COS(2*PI()*KnownFrequencyA*time+KnownPhaseA)","v":-0.47403618435642658},{"$f":"UnknownNoiseA*RANDBETWEEN(0,100)/100 + UnknownAmplitudeA*COS(2*PI()*UnknownFrequencyA*time+UnknownPhaseA)","v":0.7700419758144349},null,{"$f":"KnownNoiseB*RANDBETWEEN(0,100)/100 + KnownAmplitudeB*COS(2*PI()*KnownFrequencyB*time+KnownPhaseB)","v":-0.7827044378314898},{"$f":"UnknownNoiseB*RANDBETWEEN(0,100)/100 + UnknownAmplitudeB*COS(2*PI()*UnknownFrequencyB*time+UnknownPhaseB)","v":-0.66821758519316576}]
[null,null,null,null,null,null,null,null,null,{"$f":"J94+1/samplesPerNanosecond","v":29.999999999999961},null,{"$f":"KnownNoiseA*RANDBETWEEN(0,100)/100 + KnownAmplitudeA*COS(2*PI()*KnownFrequencyA*time+KnownPhaseA)","v":-0.54085189151467494},{"$f":"UnknownNoiseA*RANDBETWEEN(0,100)/100 + UnknownAmplitudeA*COS(2*PI()*UnknownFrequencyA*time+UnknownPhaseA)","v":0.48858877809915358},null,{"$f":"KnownNoiseB*RANDBETWEEN(0,100)/100 + KnownAmplitudeB*COS(2*PI()*KnownFrequencyB*time+KnownPhaseB)","v":-0.79636992956328401},{"$f":"UnknownNoiseB*RANDBETWEEN(0,100)/100 + UnknownAmplitudeB*COS(2*PI()*UnknownFrequencyB*time+UnknownPhaseB)","v":-0.90197383055874425}]
[null,null,null,null,null,null,null,null,null,{"$f":"J95+1/samplesPerNanosecond","v":30.333333333333293},null,{"$f":"KnownNoiseA*RANDBETWEEN(0,100)/100 + KnownAmplitudeA*COS(2*PI()*KnownFrequencyA*time+KnownPhaseA)","v":-0.60360297442918454},{"$f":"UnknownNoiseA*RANDBETWEEN(0,100)/100 + UnknownAmplitudeA*COS(2*PI()*UnknownFrequencyA*time+UnknownPhaseA)","v":1.9334188340932298E-2},null,{"$f":"KnownNoiseB*RANDBETWEEN(0,100)/100 + KnownAmplitudeB*COS(2*PI()*KnownFrequencyB*time+KnownPhaseB)","v":-0.74459621380637098},{"$f":"UnknownNoiseB*RANDBETWEEN(0,100)/100 + UnknownAmplitudeB*COS(2*PI()*UnknownFrequencyB*time+UnknownPhaseB)","v":-0.92299580315032514}]
[null,null,null,null,null,null,null,null,null,{"$f":"J96+1/samplesPerNanosecond","v":30.666666666666625},null,{"$f":"KnownNoiseA*RANDBETWEEN(0,100)/100 + KnownAmplitudeA*COS(2*PI()*KnownFrequencyA*time+KnownPhaseA)","v":-0.65423197620784634},{"$f":"UnknownNoiseA*RANDBETWEEN(0,100)/100 + UnknownAmplitudeA*COS(2*PI()*UnknownFrequencyA*time+UnknownPhaseA)","v":-0.41814719370421238},null,{"$f":"KnownNoiseB*RANDBETWEEN(0,100)/100 + KnownAmplitudeB*COS(2*PI()*KnownFrequencyB*time+KnownPhaseB)","v":-0.7823425435078567},{"$f":"UnknownNoiseB*RANDBETWEEN(0,100)/100 + UnknownAmplitudeB*COS(2*PI()*UnknownFrequencyB*time+UnknownPhaseB)","v":-0.75144458658573643}]
[null,null,null,null,null,null,null,null,null,{"$f":"J97+1/samplesPerNanosecond","v":30.999999999999957},null,{"$f":"KnownNoiseA*RANDBETWEEN(0,100)/100 + KnownAmplitudeA*COS(2*PI()*KnownFrequencyA*time+KnownPhaseA)","v":-0.65168340918512269},{"$f":"UnknownNoiseA*RANDBETWEEN(0,100)/100 + UnknownAmplitudeA*COS(2*PI()*UnknownFrequencyA*time+UnknownPhaseA)","v":-0.79764346655764495},null,{"$f":"KnownNoiseB*RANDBETWEEN(0,100)/100 + KnownAmplitudeB*COS(2*PI()*KnownFrequencyB*time+KnownPhaseB)","v":-0.81357076845745047},{"$f":"UnknownNoiseB*RANDBETWEEN(0,100)/100 + UnknownAmplitudeB*COS(2*PI()*UnknownFrequencyB*time+UnknownPhaseB)","v":-0.46443210524541212}]
[null,null,null,null,null,null,null,null,null,{"$f":"J98+1/samplesPerNanosecond","v":31.33333333333329},null,{"$f":"KnownNoiseA*RANDBETWEEN(0,100)/100 + KnownAmplitudeA*COS(2*PI()*KnownFrequencyA*time+KnownPhaseA)","v":-0.65790385086186465},{"$f":"UnknownNoiseA*RANDBETWEEN(0,100)/100 + UnknownAmplitudeA*COS(2*PI()*UnknownFrequencyA*time+UnknownPhaseA)","v":-0.94285154654469971},null,{"$f":"KnownNoiseB*RANDBETWEEN(0,100)/100 + KnownAmplitudeB*COS(2*PI()*KnownFrequencyB*time+KnownPhaseB)","v":-0.84424540125030778},{"$f":"UnknownNoiseB*RANDBETWEEN(0,100)/100 + UnknownAmplitudeB*COS(2*PI()*UnknownFrequencyB*time+UnknownPhaseB)","v":-1.5816155905407081E-4}]
[null,null,null,null,null,null,null,null,null,{"$f":"J99+1/samplesPerNanosecond","v":31.666666666666622},null,{"$f":"KnownNoiseA*RANDBETWEEN(0,100)/100 + KnownAmplitudeA*COS(2*PI()*KnownFrequencyA*time+KnownPhaseA)","v":-0.73984203882700772},{"$f":"UnknownNoiseA*RANDBETWEEN(0,100)/100 + UnknownAmplitudeA*COS(2*PI()*UnknownFrequencyA*time+UnknownPhaseA)","v":-0.8871190287804438},null,{"$f":"KnownNoiseB*RANDBETWEEN(0,100)/100 + KnownAmplitudeB*COS(2*PI()*KnownFrequencyB*time+KnownPhaseB)","v":-0.8453336803516609},{"$f":"UnknownNoiseB*RANDBETWEEN(0,100)/100 + UnknownAmplitudeB*COS(2*PI()*UnknownFrequencyB*time+UnknownPhaseB)","v":0.45660945641471795}]
[null,null,null,null,null,null,null,null,null,{"$f":"J100+1/samplesPerNanosecond","v":31.999999999999954},null,{"$f":"KnownNoiseA*RANDBETWEEN(0,100)/100 + KnownAmplitudeA*COS(2*PI()*KnownFrequencyA*time+KnownPhaseA)","v":-0.69244896014972046},{"$f":"UnknownNoiseA*RANDBETWEEN(0,100)/100 + UnknownAmplitudeA*COS(2*PI()*UnknownFrequencyA*time+UnknownPhaseA)","v":-0.65561707808497527},null,{"$f":"KnownNoiseB*RANDBETWEEN(0,100)/100 + KnownAmplitudeB*COS(2*PI()*KnownFrequencyB*time+KnownPhaseB)","v":-0.8688056271949165},{"$f":"UnknownNoiseB*RANDBETWEEN(0,100)/100 + UnknownAmplitudeB*COS(2*PI()*UnknownFrequencyB*time+UnknownPhaseB)","v":0.81299174383416251}]
[null,null,null,null,null,null,null,null,null,{"$f":"J101+1/samplesPerNanosecond","v":32.333333333333286},null,{"$f":"KnownNoiseA*RANDBETWEEN(0,100)/100 + KnownAmplitudeA*COS(2*PI()*KnownFrequencyA*time+KnownPhaseA)","v":-0.74467793695337248},{"$f":"UnknownNoiseA*RANDBETWEEN(0,100)/100 + UnknownAmplitudeA*COS(2*PI()*UnknownFrequencyA*time+UnknownPhaseA)","v":-0.29050123444978049},null,{"$f":"KnownNoiseB*RANDBETWEEN(0,100)/100 + KnownAmplitudeB*COS(2*PI()*KnownFrequencyB*time+KnownPhaseB)","v":-0.93563409855605362},{"$f":"UnknownNoiseB*RANDBETWEEN(0,100)/100 + UnknownAmplitudeB*COS(2*PI()*UnknownFrequencyB*time+UnknownPhaseB)","v":1.0438800009599689}]
[null,null,null,null,null,null,null,null,null,{"$f":"J102+1/samplesPerNanosecond","v":32.666666666666622},null,{"$f":"KnownNoiseA*RANDBETWEEN(0,100)/100 + KnownAmplitudeA*COS(2*PI()*KnownFrequencyA*time+KnownPhaseA)","v":-0.8234847093199138},{"$f":"UnknownNoiseA*RANDBETWEEN(0,100)/100 + UnknownAmplitudeA*COS(2*PI()*UnknownFrequencyA*time+UnknownPhaseA)","v":9.4771029943914592E-2},null,{"$f":"KnownNoiseB*RANDBETWEEN(0,100)/100 + KnownAmplitudeB*COS(2*PI()*KnownFrequencyB*time+KnownPhaseB)","v":-0.88679483475090159},{"$f":"UnknownNoiseB*RANDBETWEEN(0,100)/100 + UnknownAmplitudeB*COS(2*PI()*UnknownFrequencyB*time+UnknownPhaseB)","v":1.0826445363539889}]
[null,null,null,null,null,null,null,null,null,{"$f":"J103+1/samplesPerNanosecond","v":32.999999999999957},null,{"$f":"KnownNoiseA*RANDBETWEEN(0,100)/100 + KnownAmplitudeA*COS(2*PI()*KnownFrequencyA*time+KnownPhaseA)","v":-0.76882751181658315},{"$f":"UnknownNoiseA*RANDBETWEEN(0,100)/100 + UnknownAmplitudeA*COS(2*PI()*UnknownFrequencyA*time+UnknownPhaseA)","v":0.4902191803862575},null,{"$f":"KnownNoiseB*RANDBETWEEN(0,100)/100 + KnownAmplitudeB*COS(2*PI()*KnownFrequencyB*time+KnownPhaseB)","v":-0.96726650158085259},{"$f":"UnknownNoiseB*RANDBETWEEN(0,100)/100 + UnknownAmplitudeB*COS(2*PI()*UnknownFrequencyB*time+UnknownPhaseB)","v":0.82171131176981593}]
[null,null,null,null,null,null,null,null,null,{"$f":"J104+1/samplesPerNanosecond","v":33.333333333333293},null,{"$f":"KnownNoiseA*RANDBETWEEN(0,100)/100 + KnownAmplitudeA*COS(2*PI()*KnownFrequencyA*time+KnownPhaseA)","v":-0.86766714771215792},{"$f":"UnknownNoiseA*RANDBETWEEN(0,100)/100 + UnknownAmplitudeA*COS(2*PI()*UnknownFrequencyA*time+UnknownPhaseA)","v":0.90024157001422478},null,{"$f":"KnownNoiseB*RANDBETWEEN(0,100)/100 + KnownAmplitudeB*COS(2*PI()*KnownFrequencyB*time+KnownPhaseB)","v":-0.95003072825632173},{"$f":"UnknownNoiseB*RANDBETWEEN(0,100)/100 + UnknownAmplitudeB*COS(2*PI()*UnknownFrequencyB*time+UnknownPhaseB)","v":0.51228100215134376}]
[null,null,null,null,null,null,null,null,null,{"$f":"J105+1/samplesPerNanosecond","v":33.666666666666629},null,{"$f":"KnownNoiseA*RANDBETWEEN(0,100)/100 + KnownAmplitudeA*COS(2*PI()*KnownFrequencyA*time+KnownPhaseA)","v":-0.80196705730701534},{"$f":"UnknownNoiseA*RANDBETWEEN(0,100)/100 + UnknownAmplitudeA*COS(2*PI()*UnknownFrequencyA*time+UnknownPhaseA)","v":1.0140387812010023},null,{"$f":"KnownNoiseB*RANDBETWEEN(0,100)/100 + KnownAmplitudeB*COS(2*PI()*KnownFrequencyB*time+KnownPhaseB)","v":-0.93607213938001022},{"$f":"UnknownNoiseB*RANDBETWEEN(0,100)/100 + UnknownAmplitudeB*COS(2*PI()*UnknownFrequencyB*time+UnknownPhaseB)","v":5.8045800209577988E-2}]
[null,null,null,null,null,null,null,null,null,{"$f":"J106+1/samplesPerNanosecond","v":33.999999999999964},null,{"$f":"KnownNoiseA*RANDBETWEEN(0,100)/100 + KnownAmplitudeA*COS(2*PI()*KnownFrequencyA*time+KnownPhaseA)","v":-0.89769338178719793},{"$f":"UnknownNoiseA*RANDBETWEEN(0,100)/100 + UnknownAmplitudeA*COS(2*PI()*UnknownFrequencyA*time+UnknownPhaseA)","v":0.99805296726793191},null,{"$f":"KnownNoiseB*RANDBETWEEN(0,100)/100 + KnownAmplitudeB*COS(2*PI()*KnownFrequencyB*time+KnownPhaseB)","v":-0.91037838184590658},{"$f":"UnknownNoiseB*RANDBETWEEN(0,100)/100 + UnknownAmplitudeB*COS(2*PI()*UnknownFrequencyB*time+UnknownPhaseB)","v":-0.32863073308490637}]
[null,null,null,null,null,null,null,null,null,{"$f":"J107+1/samplesPerNanosecond","v":34.3333333333333},null,{"$f":"KnownNoiseA*RANDBETWEEN(0,100)/100 + KnownAmplitudeA*COS(2*PI()*KnownFrequencyA*time+KnownPhaseA)","v":-0.85181502335294468},{"$f":"UnknownNoiseA*RANDBETWEEN(0,100)/100 + UnknownAmplitudeA*COS(2*PI()*UnknownFrequencyA*time+UnknownPhaseA)","v":0.82871933776497364},null,{"$f":"KnownNoiseB*RANDBETWEEN(0,100)/100 + KnownAmplitudeB*COS(2*PI()*KnownFrequencyB*time+KnownPhaseB)","v":-0.99294014676056963},{"$f":"UnknownNoiseB*RANDBETWEEN(0,100)/100 + UnknownAmplitudeB*COS(2*PI()*UnknownFrequencyB*time+UnknownPhaseB)","v":-0.75229029675197445}]
[null,null,null,null,null,null,null,null,null,{"$f":"J108+1/samplesPerNanosecond","v":34.666666666666636},null,{"$f":"KnownNoiseA*RANDBETWEEN(0,100)/100 + KnownAmplitudeA*COS(2*PI()*KnownFrequencyA*time+KnownPhaseA)","v":-0.87530369898770632},{"$f":"UnknownNoiseA*RANDBETWEEN(0,100)/100 + UnknownAmplitudeA*COS(2*PI()*UnknownFrequencyA*time+UnknownPhaseA)","v":0.37317146320170363},null,{"$f":"KnownNoiseB*RANDBETWEEN(0,100)/100 + KnownAmplitudeB*COS(2*PI()*KnownFrequencyB*time+KnownPhaseB)","v":-0.98975118553848074},{"$f":"UnknownNoiseB*RANDBETWEEN(0,100)/100 + UnknownAmplitudeB*COS(2*PI()*UnknownFrequencyB*time+UnknownPhaseB)","v":-0.87617673247371419}]
[null,null,null,null,null,null,null,null,null,{"$f":"J109+1/samplesPerNanosecond","v":34.999999999999972},null,{"$f":"KnownNoiseA*RANDBETWEEN(0,100)/100 + KnownAmplitudeA*COS(2*PI()*KnownFrequencyA*time+KnownPhaseA)","v":-0.87413399072534426},{"$f":"UnknownNoiseA*RANDBETWEEN(0,100)/100 + UnknownAmplitudeA*COS(2*PI()*UnknownFrequencyA*time+UnknownPhaseA)","v":-1.6839127186694697E-2},null,{"$f":"KnownNoiseB*RANDBETWEEN(0,100)/100 + KnownAmplitudeB*COS(2*PI()*KnownFrequencyB*time+KnownPhaseB)","v":-0.99980832102689554},{"$f":"UnknownNoiseB*RANDBETWEEN(0,100)/100 + UnknownAmplitudeB*COS(2*PI()*UnknownFrequencyB*time+UnknownPhaseB)","v":-0.95867261020889738}]
[null,null,null,null,null,null,null,null,null,{"$f":"J110+1/samplesPerNanosecond","v":35.333333333333307},null,{"$f":"KnownNoiseA*RANDBETWEEN(0,100)/100 + KnownAmplitudeA*COS(2*PI()*KnownFrequencyA*time+KnownPhaseA)","v":-0.87128338993175036},{"$f":"UnknownNoiseA*RANDBETWEEN(0,100)/100 + UnknownAmplitudeA*COS(2*PI()*UnknownFrequencyA*time+UnknownPhaseA)","v":-0.50298216574924592},null,{"$f":"KnownNoiseB*RANDBETWEEN(0,100)/100 + KnownAmplitudeB*COS(2*PI()*KnownFrequencyB*time+KnownPhaseB)","v":-0.9641114529764504},{"$f":"UnknownNoiseB*RANDBETWEEN(0,100)/100 + UnknownAmplitudeB*COS(2*PI()*UnknownFrequencyB*time+UnknownPhaseB)","v":-0.71447102728603507}]
[null,null,null,null,null,null,null,null,null,{"$f":"J111+1/samplesPerNanosecond","v":35.666666666666643},null,{"$f":"KnownNoiseA*RANDBETWEEN(0,100)/100 + KnownAmplitudeA*COS(2*PI()*KnownFrequencyA*time+KnownPhaseA)","v":-0.97773233664828274},{"$f":"UnknownNoiseA*RANDBETWEEN(0,100)/100 + UnknownAmplitudeA*COS(2*PI()*UnknownFrequencyA*time+UnknownPhaseA)","v":-0.82132095941948124},null,{"$f":"KnownNoiseB*RANDBETWEEN(0,100)/100 + KnownAmplitudeB*COS(2*PI()*KnownFrequencyB*time+KnownPhaseB)","v":-0.93066355828915359},{"$f":"UnknownNoiseB*RANDBETWEEN(0,100)/100 + UnknownAmplitudeB*COS(2*PI()*UnknownFrequencyB*time+UnknownPhaseB)","v":-0.40983854449798168}]
[null,null,null,null,null,null,null,null,null,{"$f":"J112+1/samplesPerNanosecond","v":35.999999999999979},null,{"$f":"KnownNoiseA*RANDBETWEEN(0,100)/100 + KnownAmplitudeA*COS(2*PI()*KnownFrequencyA*time+KnownPhaseA)","v":-0.98346425431654261},{"$f":"UnknownNoiseA*RANDBETWEEN(0,100)/100 + UnknownAmplitudeA*COS(2*PI()*UnknownFrequencyA*time+UnknownPhaseA)","v":-0.9736019493878969},null,{"$f":"KnownNoiseB*RANDBETWEEN(0,100)/100 + KnownAmplitudeB*COS(2*PI()*KnownFrequencyB*time+KnownPhaseB)","v":-0.89147068570560584},{"$f":"UnknownNoiseB*RANDBETWEEN(0,100)/100 + UnknownAmplitudeB*COS(2*PI()*UnknownFrequencyB*time+UnknownPhaseB)","v":7.8083643846943843E-2}]
[null,null,null,null,null,null,null,null,null,{"$f":"J113+1/samplesPerNanosecond","v":36.333333333333314},null,{"$f":"KnownNoiseA*RANDBETWEEN(0,100)/100 + KnownAmplitudeA*COS(2*PI()*KnownFrequencyA*time+KnownPhaseA)","v":-0.9704655784397338},{"$f":"UnknownNoiseA*RANDBETWEEN(0,100)/100 + UnknownAmplitudeA*COS(2*PI()*UnknownFrequencyA*time+UnknownPhaseA)","v":-0.8853830422115978},null,{"$f":"KnownNoiseB*RANDBETWEEN(0,100)/100 + KnownAmplitudeB*COS(2*PI()*KnownFrequencyB*time+KnownPhaseB)","v":-0.91554194534654854},{"$f":"UnknownNoiseB*RANDBETWEEN(0,100)/100 + UnknownAmplitudeB*COS(2*PI()*UnknownFrequencyB*time+UnknownPhaseB)","v":0.46839138334076269}]
[null,null,null,null,null,null,null,null,null,{"$f":"J114+1/samplesPerNanosecond","v":36.66666666666665},null,{"$f":"KnownNoiseA*RANDBETWEEN(0,100)/100 + KnownAmplitudeA*COS(2*PI()*KnownFrequencyA*time+KnownPhaseA)","v":-0.98672578070388983},{"$f":"UnknownNoiseA*RANDBETWEEN(0,100)/100 + UnknownAmplitudeA*COS(2*PI()*UnknownFrequencyA*time+UnknownPhaseA)","v":-0.64435942782936095},null,{"$f":"KnownNoiseB*RANDBETWEEN(0,100)/100 + KnownAmplitudeB*COS(2*PI()*KnownFrequencyB*time+KnownPhaseB)","v":-0.90188949255289841},{"$f":"UnknownNoiseB*RANDBETWEEN(0,100)/100 + UnknownAmplitudeB*COS(2*PI()*UnknownFrequencyB*time+UnknownPhaseB)","v":0.8841029494312751}]
[null,null,null,null,null,null,null,null,null,{"$f":"J115+1/samplesPerNanosecond","v":36.999999999999986},null,{"$f":"KnownNoiseA*RANDBETWEEN(0,100)/100 + KnownAmplitudeA*COS(2*PI()*KnownFrequencyA*time+KnownPhaseA)","v":-0.96723738727573705},{"$f":"UnknownNoiseA*RANDBETWEEN(0,100)/100 + UnknownAmplitudeA*COS(2*PI()*UnknownFrequencyA*time+UnknownPhaseA)","v":-0.32061419949994963},null,{"$f":"KnownNoiseB*RANDBETWEEN(0,100)/100 + KnownAmplitudeB*COS(2*PI()*KnownFrequencyB*time+KnownPhaseB)","v":-0.87752850660460591},{"$f":"UnknownNoiseB*RANDBETWEEN(0,100)/100 + UnknownAmplitudeB*COS(2*PI()*UnknownFrequencyB*time+UnknownPhaseB)","v":0.99086004804900296}]
[null,null,null,null,null,null,null,null,null,{"$f":"J116+1/samplesPerNanosecond","v":37.333333333333321},null,{"$f":"KnownNoiseA*RANDBETWEEN(0,100)/100 + KnownAmplitudeA*COS(2*PI()*KnownFrequencyA*time+KnownPhaseA)","v":-0.94099599191600081},{"$f":"UnknownNoiseA*RANDBETWEEN(0,100)/100 + UnknownAmplitudeA*COS(2*PI()*UnknownFrequencyA*time+UnknownPhaseA)","v":0.15085426983994135},null,{"$f":"KnownNoiseB*RANDBETWEEN(0,100)/100 + KnownAmplitudeB*COS(2*PI()*KnownFrequencyB*time+KnownPhaseB)","v":-0.92247716430679572},{"$f":"UnknownNoiseB*RANDBETWEEN(0,100)/100 + UnknownAmplitudeB*COS(2*PI()*UnknownFrequencyB*time+UnknownPhaseB)","v":1.0580831650901596}]
[null,null,null,null,null,null,null,null,null,{"$f":"J117+1/samplesPerNanosecond","v":37.666666666666657},null,{"$f":"KnownNoiseA*RANDBETWEEN(0,100)/100 + KnownAmplitudeA*COS(2*PI()*KnownFrequencyA*time+KnownPhaseA)","v":-0.98700026379319827},{"$f":"UnknownNoiseA*RANDBETWEEN(0,100)/100 + UnknownAmplitudeA*COS(2*PI()*UnknownFrequencyA*time+UnknownPhaseA)","v":0.5484224038252079},null,{"$f":"KnownNoiseB*RANDBETWEEN(0,100)/100 + KnownAmplitudeB*COS(2*PI()*KnownFrequencyB*time+KnownPhaseB)","v":-0.90275660775598188},{"$f":"UnknownNoiseB*RANDBETWEEN(0,100)/100 + UnknownAmplitudeB*COS(2*PI()*UnknownFrequencyB*time+UnknownPhaseB)","v":0.78373335922469634}]
[null,null,null,null,null,null,null,null,null,{"$f":"J118+1/samplesPerNanosecond","v":37.999999999999993},null,{"$f":"KnownNoiseA*RANDBETWEEN(0,100)/100 + KnownAmplitudeA*COS(2*PI()*KnownFrequencyA*time+KnownPhaseA)","v":-0.97325194973266016},{"$f":"UnknownNoiseA*RANDBETWEEN(0,100)/100 + UnknownAmplitudeA*COS(2*PI()*UnknownFrequencyA*time+UnknownPhaseA)","v":0.94187274220454631},null,{"$f":"KnownNoiseB*RANDBETWEEN(0,100)/100 + KnownAmplitudeB*COS(2*PI()*KnownFrequencyB*time+KnownPhaseB)","v":-0.89439090738059268},{"$f":"UnknownNoiseB*RANDBETWEEN(0,100)/100 + UnknownAmplitudeB*COS(2*PI()*UnknownFrequencyB*time+UnknownPhaseB)","v":0.43911890701492506}]
[null,null,null,null,null,null,null,null,null,{"$f":"J119+1/samplesPerNanosecond","v":38.333333333333329},null,{"$f":"KnownNoiseA*RANDBETWEEN(0,100)/100 + KnownAmplitudeA*COS(2*PI()*KnownFrequencyA*time+KnownPhaseA)","v":-0.92375587124165914},{"$f":"UnknownNoiseA*RANDBETWEEN(0,100)/100 + UnknownAmplitudeA*COS(2*PI()*UnknownFrequencyA*time+UnknownPhaseA)","v":1.0945388005319925},null,{"$f":"KnownNoiseB*RANDBETWEEN(0,100)/100 + KnownAmplitudeB*COS(2*PI()*KnownFrequencyB*time+KnownPhaseB)","v":-0.80540702001106212},{"$f":"UnknownNoiseB*RANDBETWEEN(0,100)/100 + UnknownAmplitudeB*COS(2*PI()*UnknownFrequencyB*time+UnknownPhaseB)","v":4.9785701684917569E-2}]
[null,null,null,null,null,null,null,null,null,{"$f":"J120+1/samplesPerNanosecond","v":38.666666666666664},null,{"$f":"KnownNoiseA*RANDBETWEEN(0,100)/100 + KnownAmplitudeA*COS(2*PI()*KnownFrequencyA*time+KnownPhaseA)","v":-0.92351991591972449},{"$f":"UnknownNoiseA*RANDBETWEEN(0,100)/100 + UnknownAmplitudeA*COS(2*PI()*UnknownFrequencyA*time+UnknownPhaseA)","v":1.0301140981004853},null,{"$f":"KnownNoiseB*RANDBETWEEN(0,100)/100 + KnownAmplitudeB*COS(2*PI()*KnownFrequencyB*time+KnownPhaseB)","v":-0.81383474096842101},{"$f":"UnknownNoiseB*RANDBETWEEN(0,100)/100 + UnknownAmplitudeB*COS(2*PI()*UnknownFrequencyB*time+UnknownPhaseB)","v":-0.43887703106778925}]
[null,null,null,null,null,null,null,null,null,{"$f":"J121+1/samplesPerNanosecond","v":39},null,{"$f":"KnownNoiseA*RANDBETWEEN(0,100)/100 + KnownAmplitudeA*COS(2*PI()*KnownFrequencyA*time+KnownPhaseA)","v":-0.8875550238207488},{"$f":"UnknownNoiseA*RANDBETWEEN(0,100)/100 + UnknownAmplitudeA*COS(2*PI()*UnknownFrequencyA*time+UnknownPhaseA)","v":0.72054831316930246},null,{"$f":"KnownNoiseB*RANDBETWEEN(0,100)/100 + KnownAmplitudeB*COS(2*PI()*KnownFrequencyB*time+KnownPhaseB)","v":-0.81370665254730545},{"$f":"UnknownNoiseB*RANDBETWEEN(0,100)/100 + UnknownAmplitudeB*COS(2*PI()*UnknownFrequencyB*time+UnknownPhaseB)","v":-0.75541971426174293}]
[null,null,null,null,null,null,null,null,null,{"$f":"J122+1/samplesPerNanosecond","v":39.333333333333336},null,{"$f":"KnownNoiseA*RANDBETWEEN(0,100)/100 + KnownAmplitudeA*COS(2*PI()*KnownFrequencyA*time+KnownPhaseA)","v":-0.9218751680420656},{"$f":"UnknownNoiseA*RANDBETWEEN(0,100)/100 + UnknownAmplitudeA*COS(2*PI()*UnknownFrequencyA*time+UnknownPhaseA)","v":0.36384432349003687},null,{"$f":"KnownNoiseB*RANDBETWEEN(0,100)/100 + KnownAmplitudeB*COS(2*PI()*KnownFrequencyB*time+KnownPhaseB)","v":-0.795058066155375},{"$f":"UnknownNoiseB*RANDBETWEEN(0,100)/100 + UnknownAmplitudeB*COS(2*PI()*UnknownFrequencyB*time+UnknownPhaseB)","v":-0.91992635777132481}]
[null,null,null,null,null,null,null,null,null,{"$f":"J123+1/samplesPerNanosecond","v":39.666666666666671},null,{"$f":"KnownNoiseA*RANDBETWEEN(0,100)/100 + KnownAmplitudeA*COS(2*PI()*KnownFrequencyA*time+KnownPhaseA)","v":-0.90249733027194756},{"$f":"UnknownNoiseA*RANDBETWEEN(0,100)/100 + UnknownAmplitudeA*COS(2*PI()*UnknownFrequencyA*time+UnknownPhaseA)","v":-0.1038006578034415},null,{"$f":"KnownNoiseB*RANDBETWEEN(0,100)/100 + KnownAmplitudeB*COS(2*PI()*KnownFrequencyB*time+KnownPhaseB)","v":-0.81492696063661529},{"$f":"UnknownNoiseB*RANDBETWEEN(0,100)/100 + UnknownAmplitudeB*COS(2*PI()*UnknownFrequencyB*time+UnknownPhaseB)","v":-0.88487973141110299}]
[null,null,null,null,null,null,null,null,null,{"$f":"J124+1/samplesPerNanosecond","v":40.000000000000007},null,{"$f":"KnownNoiseA*RANDBETWEEN(0,100)/100 + KnownAmplitudeA*COS(2*PI()*KnownFrequencyA*time+KnownPhaseA)","v":-0.86944147123043836},{"$f":"UnknownNoiseA*RANDBETWEEN(0,100)/100 + UnknownAmplitudeA*COS(2*PI()*UnknownFrequencyA*time+UnknownPhaseA)","v":-0.54352635250027714},null,{"$f":"KnownNoiseB*RANDBETWEEN(0,100)/100 + KnownAmplitudeB*COS(2*PI()*KnownFrequencyB*time+KnownPhaseB)","v":-0.71235391606703857},{"$f":"UnknownNoiseB*RANDBETWEEN(0,100)/100 + UnknownAmplitudeB*COS(2*PI()*UnknownFrequencyB*time+UnknownPhaseB)","v":-0.72650824783423029}]
[null,null,null,null,null,null,null,null,null,{"$f":"J125+1/samplesPerNanosecond","v":40.333333333333343},null,{"$f":"KnownNoiseA*RANDBETWEEN(0,100)/100 + KnownAmplitudeA*COS(2*PI()*KnownFrequencyA*time+KnownPhaseA)","v":-0.92873049518574324},{"$f":"UnknownNoiseA*RANDBETWEEN(0,100)/100 + UnknownAmplitudeA*COS(2*PI()*UnknownFrequencyA*time+UnknownPhaseA)","v":-0.78988835877297747},null,{"$f":"KnownNoiseB*RANDBETWEEN(0,100)/100 + KnownAmplitudeB*COS(2*PI()*KnownFrequencyB*time+KnownPhaseB)","v":-0.76538204164395218},{"$f":"UnknownNoiseB*RANDBETWEEN(0,100)/100 + UnknownAmplitudeB*COS(2*PI()*UnknownFrequencyB*time+UnknownPhaseB)","v":-0.36013643991212507}]
[null,null,null,null,null,null,null,null,null,{"$f":"J126+1/samplesPerNanosecond","v":40.666666666666679},null,{"$f":"KnownNoiseA*RANDBETWEEN(0,100)/100 + KnownAmplitudeA*COS(2*PI()*KnownFrequencyA*time+KnownPhaseA)","v":-0.87639021035207043},{"$f":"UnknownNoiseA*RANDBETWEEN(0,100)/100 + UnknownAmplitudeA*COS(2*PI()*UnknownFrequencyA*time+UnknownPhaseA)","v":-0.94984747969211158},null,{"$f":"KnownNoiseB*RANDBETWEEN(0,100)/100 + KnownAmplitudeB*COS(2*PI()*KnownFrequencyB*time+KnownPhaseB)","v":-0.71305690114888021},{"$f":"UnknownNoiseB*RANDBETWEEN(0,100)/100 + UnknownAmplitudeB*COS(2*PI()*UnknownFrequencyB*time+UnknownPhaseB)","v":0.12833029060000398}]
[null,null,null,null,null,null,null,null,null,{"$f":"J127+1/samplesPerNanosecond","v":41.000000000000014},null,{"$f":"KnownNoiseA*RANDBETWEEN(0,100)/100 + KnownAmplitudeA*COS(2*PI()*KnownFrequencyA*time+KnownPhaseA)","v":-0.84144928306416666},{"$f":"UnknownNoiseA*RANDBETWEEN(0,100)/100 + UnknownAmplitudeA*COS(2*PI()*UnknownFrequencyA*time+UnknownPhaseA)","v":-0.91825135777691136},null,{"$f":"KnownNoiseB*RANDBETWEEN(0,100)/100 + KnownAmplitudeB*COS(2*PI()*KnownFrequencyB*time+KnownPhaseB)","v":-0.6954264320226704},{"$f":"UnknownNoiseB*RANDBETWEEN(0,100)/100 + UnknownAmplitudeB*COS(2*PI()*UnknownFrequencyB*time+UnknownPhaseB)","v":0.55207347384897953}]
[null,null,null,null,null,null,null,null,null,{"$f":"J128+1/samplesPerNanosecond","v":41.33333333333335},null,{"$f":"KnownNoiseA*RANDBETWEEN(0,100)/100 + KnownAmplitudeA*COS(2*PI()*KnownFrequencyA*time+KnownPhaseA)","v":-0.81493918769198093},{"$f":"UnknownNoiseA*RANDBETWEEN(0,100)/100 + UnknownAmplitudeA*COS(2*PI()*UnknownFrequencyA*time+UnknownPhaseA)","v":-0.63329724366653684},null,{"$f":"KnownNoiseB*RANDBETWEEN(0,100)/100 + KnownAmplitudeB*COS(2*PI()*KnownFrequencyB*time+KnownPhaseB)","v":-0.61754086166714028},{"$f":"UnknownNoiseB*RANDBETWEEN(0,100)/100 + UnknownAmplitudeB*COS(2*PI()*UnknownFrequencyB*time+UnknownPhaseB)","v":0.85923091684644881}]
[null,null,null,null,null,null,null,null,null,{"$f":"J129+1/samplesPerNanosecond","v":41.666666666666686},null,{"$f":"KnownNoiseA*RANDBETWEEN(0,100)/100 + KnownAmplitudeA*COS(2*PI()*KnownFrequencyA*time+KnownPhaseA)","v":-0.75489415178908037},{"$f":"UnknownNoiseA*RANDBETWEEN(0,100)/100 + UnknownAmplitudeA*COS(2*PI()*UnknownFrequencyA*time+UnknownPhaseA)","v":-0.24587684830066936},null,{"$f":"KnownNoiseB*RANDBETWEEN(0,100)/100 + KnownAmplitudeB*COS(2*PI()*KnownFrequencyB*time+KnownPhaseB)","v":-0.62145261985983402},{"$f":"UnknownNoiseB*RANDBETWEEN(0,100)/100 + UnknownAmplitudeB*COS(2*PI()*UnknownFrequencyB*time+UnknownPhaseB)","v":1.0783724617618757}]
[null,null,null,null,null,null,null,null,null,{"$f":"J130+1/samplesPerNanosecond","v":42.000000000000021},null,{"$f":"KnownNoiseA*RANDBETWEEN(0,100)/100 + KnownAmplitudeA*COS(2*PI()*KnownFrequencyA*time+KnownPhaseA)","v":-0.73535109526591824},{"$f":"UnknownNoiseA*RANDBETWEEN(0,100)/100 + UnknownAmplitudeA*COS(2*PI()*UnknownFrequencyA*time+UnknownPhaseA)","v":0.19666253440391768},null,{"$f":"KnownNoiseB*RANDBETWEEN(0,100)/100 + KnownAmplitudeB*COS(2*PI()*KnownFrequencyB*time+KnownPhaseB)","v":-0.54021624559555192},{"$f":"UnknownNoiseB*RANDBETWEEN(0,100)/100 + UnknownAmplitudeB*COS(2*PI()*UnknownFrequencyB*time+UnknownPhaseB)","v":0.96006622739338854}]
[null,null,null,null,null,null,null,null,null,{"$f":"J131+1/samplesPerNanosecond","v":42.333333333333357},null,{"$f":"KnownNoiseA*RANDBETWEEN(0,100)/100 + KnownAmplitudeA*COS(2*PI()*KnownFrequencyA*time+KnownPhaseA)","v":-0.75134956655421647},{"$f":"UnknownNoiseA*RANDBETWEEN(0,100)/100 + UnknownAmplitudeA*COS(2*PI()*UnknownFrequencyA*time+UnknownPhaseA)","v":0.61728068206818021},null,{"$f":"KnownNoiseB*RANDBETWEEN(0,100)/100 + KnownAmplitudeB*COS(2*PI()*KnownFrequencyB*time+KnownPhaseB)","v":-0.50388829278681435},{"$f":"UnknownNoiseB*RANDBETWEEN(0,100)/100 + UnknownAmplitudeB*COS(2*PI()*UnknownFrequencyB*time+UnknownPhaseB)","v":0.80180594124272031}]
[null,null,null,null,null,null,null,null,null,{"$f":"J132+1/samplesPerNanosecond","v":42.666666666666693},null,{"$f":"KnownNoiseA*RANDBETWEEN(0,100)/100 + KnownAmplitudeA*COS(2*PI()*KnownFrequencyA*time+KnownPhaseA)","v":-0.70693167236974952},{"$f":"UnknownNoiseA*RANDBETWEEN(0,100)/100 + UnknownAmplitudeA*COS(2*PI()*UnknownFrequencyA*time+UnknownPhaseA)","v":0.94735958818240529},null,{"$f":"KnownNoiseB*RANDBETWEEN(0,100)/100 + KnownAmplitudeB*COS(2*PI()*KnownFrequencyB*time+KnownPhaseB)","v":-0.50752722981146203},{"$f":"UnknownNoiseB*RANDBETWEEN(0,100)/100 + UnknownAmplitudeB*COS(2*PI()*UnknownFrequencyB*time+UnknownPhaseB)","v":0.37290565940835385}]
[null,null,null,null,null,null,null,null,null,{"$f":"J133+1/samplesPerNanosecond","v":43.000000000000028},null,{"$f":"KnownNoiseA*RANDBETWEEN(0,100)/100 + KnownAmplitudeA*COS(2*PI()*KnownFrequencyA*time+KnownPhaseA)","v":-0.74014200418314524},{"$f":"UnknownNoiseA*RANDBETWEEN(0,100)/100 + UnknownAmplitudeA*COS(2*PI()*UnknownFrequencyA*time+UnknownPhaseA)","v":1.070526528571472},null,{"$f":"KnownNoiseB*RANDBETWEEN(0,100)/100 + KnownAmplitudeB*COS(2*PI()*KnownFrequencyB*time+KnownPhaseB)","v":-0.49119333745066784},{"$f":"UnknownNoiseB*RANDBETWEEN(0,100)/100 + UnknownAmplitudeB*COS(2*PI()*UnknownFrequencyB*time+UnknownPhaseB)","v":-5.741575597205377E-2}]
[null,null,null,null,null,null,null,null,null,{"$f":"J134+1/samplesPerNanosecond","v":43.333333333333364},null,{"$f":"KnownNoiseA*RANDBETWEEN(0,100)/100 + KnownAmplitudeA*COS(2*PI()*KnownFrequencyA*time+KnownPhaseA)","v":-0.65202756047316124},{"$f":"UnknownNoiseA*RANDBETWEEN(0,100)/100 + UnknownAmplitudeA*COS(2*PI()*UnknownFrequencyA*time+UnknownPhaseA)","v":0.93580041913760659},null,{"$f":"KnownNoiseB*RANDBETWEEN(0,100)/100 + KnownAmplitudeB*COS(2*PI()*KnownFrequencyB*time+KnownPhaseB)","v":-0.4009486037506424},{"$f":"UnknownNoiseB*RANDBETWEEN(0,100)/100 + UnknownAmplitudeB*COS(2*PI()*UnknownFrequencyB*time+UnknownPhaseB)","v":-0.44496669193536859}]
[null,null,null,null,null,null,null,null,null,{"$f":"J135+1/samplesPerNanosecond","v":43.6666666666667},null,{"$f":"KnownNoiseA*RANDBETWEEN(0,100)/100 + KnownAmplitudeA*COS(2*PI()*KnownFrequencyA*time+KnownPhaseA)","v":-0.65363766321525074},{"$f":"UnknownNoiseA*RANDBETWEEN(0,100)/100 + UnknownAmplitudeA*COS(2*PI()*UnknownFrequencyA*time+UnknownPhaseA)","v":0.72761774708771099},null,{"$f":"KnownNoiseB*RANDBETWEEN(0,100)/100 + KnownAmplitudeB*COS(2*PI()*KnownFrequencyB*time+KnownPhaseB)","v":-0.37285661388789931},{"$f":"UnknownNoiseB*RANDBETWEEN(0,100)/100 + UnknownAmplitudeB*COS(2*PI()*UnknownFrequencyB*time+UnknownPhaseB)","v":-0.73352720211241329}]
[null,null,null,null,null,null,null,null,null,{"$f":"J136+1/samplesPerNanosecond","v":44.000000000000036},null,{"$f":"KnownNoiseA*RANDBETWEEN(0,100)/100 + KnownAmplitudeA*COS(2*PI()*KnownFrequencyA*time+KnownPhaseA)","v":-0.59502387260240819},{"$f":"UnknownNoiseA*RANDBETWEEN(0,100)/100 + UnknownAmplitudeA*COS(2*PI()*UnknownFrequencyA*time+UnknownPhaseA)","v":0.28872691230283687},null,{"$f":"KnownNoiseB*RANDBETWEEN(0,100)/100 + KnownAmplitudeB*COS(2*PI()*KnownFrequencyB*time+KnownPhaseB)","v":-0.31698244022860145},{"$f":"UnknownNoiseB*RANDBETWEEN(0,100)/100 + UnknownAmplitudeB*COS(2*PI()*UnknownFrequencyB*time+UnknownPhaseB)","v":-0.89919555176608834}]
[null,null,null,null,null,null,null,null,null,{"$f":"J137+1/samplesPerNanosecond","v":44.333333333333371},null,{"$f":"KnownNoiseA*RANDBETWEEN(0,100)/100 + KnownAmplitudeA*COS(2*PI()*KnownFrequencyA*time+KnownPhaseA)","v":-0.60423989546590606},{"$f":"UnknownNoiseA*RANDBETWEEN(0,100)/100 + UnknownAmplitudeA*COS(2*PI()*UnknownFrequencyA*time+UnknownPhaseA)","v":-0.11742419680504126},null,{"$f":"KnownNoiseB*RANDBETWEEN(0,100)/100 + KnownAmplitudeB*COS(2*PI()*KnownFrequencyB*time+KnownPhaseB)","v":-0.36439252673890948},{"$f":"UnknownNoiseB*RANDBETWEEN(0,100)/100 + UnknownAmplitudeB*COS(2*PI()*UnknownFrequencyB*time+UnknownPhaseB)","v":-0.89064695644912939}]
[null,null,null,null,null,null,null,null,null,{"$f":"J138+1/samplesPerNanosecond","v":44.666666666666707},null,{"$f":"KnownNoiseA*RANDBETWEEN(0,100)/100 + KnownAmplitudeA*COS(2*PI()*KnownFrequencyA*time+KnownPhaseA)","v":-0.57434149151581126},{"$f":"UnknownNoiseA*RANDBETWEEN(0,100)/100 + UnknownAmplitudeA*COS(2*PI()*UnknownFrequencyA*time+UnknownPhaseA)","v":-0.51567228364956452},null,{"$f":"KnownNoiseB*RANDBETWEEN(0,100)/100 + KnownAmplitudeB*COS(2*PI()*KnownFrequencyB*time+KnownPhaseB)","v":-0.3181545730199537},{"$f":"UnknownNoiseB*RANDBETWEEN(0,100)/100 + UnknownAmplitudeB*COS(2*PI()*UnknownFrequencyB*time+UnknownPhaseB)","v":-0.70763698898496563}]
[null,null,null,null,null,null,null,null,null,{"$f":"J139+1/samplesPerNanosecond","v":45.000000000000043},null,{"$f":"KnownNoiseA*RANDBETWEEN(0,100)/100 + KnownAmplitudeA*COS(2*PI()*KnownFrequencyA*time+KnownPhaseA)","v":-0.55838637609702557},{"$f":"UnknownNoiseA*RANDBETWEEN(0,100)/100 + UnknownAmplitudeA*COS(2*PI()*UnknownFrequencyA*time+UnknownPhaseA)","v":-0.81327855333705679},null,{"$f":"KnownNoiseB*RANDBETWEEN(0,100)/100 + KnownAmplitudeB*COS(2*PI()*KnownFrequencyB*time+KnownPhaseB)","v":-0.27133741621154062},{"$f":"UnknownNoiseB*RANDBETWEEN(0,100)/100 + UnknownAmplitudeB*COS(2*PI()*UnknownFrequencyB*time+UnknownPhaseB)","v":-0.25544123856244905}]
[null,null,null,null,null,null,null,null,null,{"$f":"J140+1/samplesPerNanosecond","v":45.333333333333378},null,{"$f":"KnownNoiseA*RANDBETWEEN(0,100)/100 + KnownAmplitudeA*COS(2*PI()*KnownFrequencyA*time+KnownPhaseA)","v":-0.46043411764300207},{"$f":"UnknownNoiseA*RANDBETWEEN(0,100)/100 + UnknownAmplitudeA*COS(2*PI()*UnknownFrequencyA*time+UnknownPhaseA)","v":-0.94657488669541634},null,{"$f":"KnownNoiseB*RANDBETWEEN(0,100)/100 + KnownAmplitudeB*COS(2*PI()*KnownFrequencyB*time+KnownPhaseB)","v":-0.17901090869456743},{"$f":"UnknownNoiseB*RANDBETWEEN(0,100)/100 + UnknownAmplitudeB*COS(2*PI()*UnknownFrequencyB*time+UnknownPhaseB)","v":0.17945485037921827}]
[null,null,null,null,null,null,null,null,null,{"$f":"J141+1/samplesPerNanosecond","v":45.666666666666714},null,{"$f":"KnownNoiseA*RANDBETWEEN(0,100)/100 + KnownAmplitudeA*COS(2*PI()*KnownFrequencyA*time+KnownPhaseA)","v":-0.43654603468016034},{"$f":"UnknownNoiseA*RANDBETWEEN(0,100)/100 + UnknownAmplitudeA*COS(2*PI()*UnknownFrequencyA*time+UnknownPhaseA)","v":-0.82876725159796394},null,{"$f":"KnownNoiseB*RANDBETWEEN(0,100)/100 + KnownAmplitudeB*COS(2*PI()*KnownFrequencyB*time+KnownPhaseB)","v":-0.20824579731418666},{"$f":"UnknownNoiseB*RANDBETWEEN(0,100)/100 + UnknownAmplitudeB*COS(2*PI()*UnknownFrequencyB*time+UnknownPhaseB)","v":0.54854285710120776}]
[null,null,null,null,null,null,null,null,null,{"$f":"J142+1/samplesPerNanosecond","v":46.00000000000005},null,{"$f":"KnownNoiseA*RANDBETWEEN(0,100)/100 + KnownAmplitudeA*COS(2*PI()*KnownFrequencyA*time+KnownPhaseA)","v":-0.38978508690902985},{"$f":"UnknownNoiseA*RANDBETWEEN(0,100)/100 + UnknownAmplitudeA*COS(2*PI()*UnknownFrequencyA*time+UnknownPhaseA)","v":-0.63952162180319472},null,{"$f":"KnownNoiseB*RANDBETWEEN(0,100)/100 + KnownAmplitudeB*COS(2*PI()*KnownFrequencyB*time+KnownPhaseB)","v":-0.13411359770472323},{"$f":"UnknownNoiseB*RANDBETWEEN(0,100)/100 + UnknownAmplitudeB*COS(2*PI()*UnknownFrequencyB*time+UnknownPhaseB)","v":0.84929954021947085}]
[null,null,null,null,null,null,null,null,null,{"$f":"J143+1/samplesPerNanosecond","v":46.333333333333385},null,{"$f":"KnownNoiseA*RANDBETWEEN(0,100)/100 + KnownAmplitudeA*COS(2*PI()*KnownFrequencyA*time+KnownPhaseA)","v":-0.39621576531222191},{"$f":"UnknownNoiseA*RANDBETWEEN(0,100)/100 + UnknownAmplitudeA*COS(2*PI()*UnknownFrequencyA*time+UnknownPhaseA)","v":-0.14540976911368614},null,{"$f":"KnownNoiseB*RANDBETWEEN(0,100)/100 + KnownAmplitudeB*COS(2*PI()*KnownFrequencyB*time+KnownPhaseB)","v":-0.11868646948983702},{"$f":"UnknownNoiseB*RANDBETWEEN(0,100)/100 + UnknownAmplitudeB*COS(2*PI()*UnknownFrequencyB*time+UnknownPhaseB)","v":0.99339321303838102}]
[null,null,null,null,null,null,null,null,null,{"$f":"J144+1/samplesPerNanosecond","v":46.666666666666721},null,{"$f":"KnownNoiseA*RANDBETWEEN(0,100)/100 + KnownAmplitudeA*COS(2*PI()*KnownFrequencyA*time+KnownPhaseA)","v":-0.37790397966326134},{"$f":"UnknownNoiseA*RANDBETWEEN(0,100)/100 + UnknownAmplitudeA*COS(2*PI()*UnknownFrequencyA*time+UnknownPhaseA)","v":0.25607000409263547},null,{"$f":"KnownNoiseB*RANDBETWEEN(0,100)/100 + KnownAmplitudeB*COS(2*PI()*KnownFrequencyB*time+KnownPhaseB)","v":-3.8037090389603401E-2},{"$f":"UnknownNoiseB*RANDBETWEEN(0,100)/100 + UnknownAmplitudeB*COS(2*PI()*UnknownFrequencyB*time+UnknownPhaseB)","v":0.98362660502377575}]
[null,null,null,null,null,null,null,null,null,{"$f":"J145+1/samplesPerNanosecond","v":47.000000000000057},null,{"$f":"KnownNoiseA*RANDBETWEEN(0,100)/100 + KnownAmplitudeA*COS(2*PI()*KnownFrequencyA*time+KnownPhaseA)","v":-0.30991694142721771},{"$f":"UnknownNoiseA*RANDBETWEEN(0,100)/100 + UnknownAmplitudeA*COS(2*PI()*UnknownFrequencyA*time+UnknownPhaseA)","v":0.67068827747184767},null,{"$f":"KnownNoiseB*RANDBETWEEN(0,100)/100 + KnownAmplitudeB*COS(2*PI()*KnownFrequencyB*time+KnownPhaseB)","v":1.8761472894931255E-2},{"$f":"UnknownNoiseB*RANDBETWEEN(0,100)/100 + UnknownAmplitudeB*COS(2*PI()*UnknownFrequencyB*time+UnknownPhaseB)","v":0.79001223533916975}]
[null,null,null,null,null,null,null,null,null,{"$f":"J146+1/samplesPerNanosecond","v":47.333333333333393},null,{"$f":"KnownNoiseA*RANDBETWEEN(0,100)/100 + KnownAmplitudeA*COS(2*PI()*KnownFrequencyA*time+KnownPhaseA)","v":-0.26032304755009206},{"$f":"UnknownNoiseA*RANDBETWEEN(0,100)/100 + UnknownAmplitudeA*COS(2*PI()*UnknownFrequencyA*time+UnknownPhaseA)","v":0.97863772596309839},null,{"$f":"KnownNoiseB*RANDBETWEEN(0,100)/100 + KnownAmplitudeB*COS(2*PI()*KnownFrequencyB*time+KnownPhaseB)","v":4.6635891016239286E-2},{"$f":"UnknownNoiseB*RANDBETWEEN(0,100)/100 + UnknownAmplitudeB*COS(2*PI()*UnknownFrequencyB*time+UnknownPhaseB)","v":0.33075799800549599}]
[null,null,null,null,null,null,null,null,null,{"$f":"J147+1/samplesPerNanosecond","v":47.666666666666728},null,{"$f":"KnownNoiseA*RANDBETWEEN(0,100)/100 + KnownAmplitudeA*COS(2*PI()*KnownFrequencyA*time+KnownPhaseA)","v":-0.23119175896064373},{"$f":"UnknownNoiseA*RANDBETWEEN(0,100)/100 + UnknownAmplitudeA*COS(2*PI()*UnknownFrequencyA*time+UnknownPhaseA)","v":1.0679918918984861},null,{"$f":"KnownNoiseB*RANDBETWEEN(0,100)/100 + KnownAmplitudeB*COS(2*PI()*KnownFrequencyB*time+KnownPhaseB)","v":0.13751270224822171},{"$f":"UnknownNoiseB*RANDBETWEEN(0,100)/100 + UnknownAmplitudeB*COS(2*PI()*UnknownFrequencyB*time+UnknownPhaseB)","v":-3.6431758592843283E-2}]
[null,null,null,null,null,null,null,null,null,{"$f":"J148+1/samplesPerNanosecond","v":48.000000000000064},null,{"$f":"KnownNoiseA*RANDBETWEEN(0,100)/100 + KnownAmplitudeA*COS(2*PI()*KnownFrequencyA*time+KnownPhaseA)","v":-0.21959347934862553},{"$f":"UnknownNoiseA*RANDBETWEEN(0,100)/100 + UnknownAmplitudeA*COS(2*PI()*UnknownFrequencyA*time+UnknownPhaseA)","v":0.96815819232162736},null,{"$f":"KnownNoiseB*RANDBETWEEN(0,100)/100 + KnownAmplitudeB*COS(2*PI()*KnownFrequencyB*time+KnownPhaseB)","v":0.11531844066650339},{"$f":"UnknownNoiseB*RANDBETWEEN(0,100)/100 + UnknownAmplitudeB*COS(2*PI()*UnknownFrequencyB*time+UnknownPhaseB)","v":-0.46678834137816733}]
[null,null,null,null,null,null,null,null,null,{"$f":"J149+1/samplesPerNanosecond","v":48.3333333333334},null,{"$f":"KnownNoiseA*RANDBETWEEN(0,100)/100 + KnownAmplitudeA*COS(2*PI()*KnownFrequencyA*time+KnownPhaseA)","v":-8.8599432342812159E-2},{"$f":"UnknownNoiseA*RANDBETWEEN(0,100)/100 + UnknownAmplitudeA*COS(2*PI()*UnknownFrequencyA*time+UnknownPhaseA)","v":0.63002092933497711},null,{"$f":"KnownNoiseB*RANDBETWEEN(0,100)/100 + KnownAmplitudeB*COS(2*PI()*KnownFrequencyB*time+KnownPhaseB)","v":0.15597976433585431},{"$f":"UnknownNoiseB*RANDBETWEEN(0,100)/100 + UnknownAmplitudeB*COS(2*PI()*UnknownFrequencyB*time+UnknownPhaseB)","v":-0.81253923226371039}]
[null,null,null,null,null,null,null,null,null,{"$f":"J150+1/samplesPerNanosecond","v":48.666666666666735},null,{"$f":"KnownNoiseA*RANDBETWEEN(0,100)/100 + KnownAmplitudeA*COS(2*PI()*KnownFrequencyA*time+KnownPhaseA)","v":-0.12028153520677785},{"$f":"UnknownNoiseA*RANDBETWEEN(0,100)/100 + UnknownAmplitudeA*COS(2*PI()*UnknownFrequencyA*time+UnknownPhaseA)","v":0.25894077796200954},null,{"$f":"KnownNoiseB*RANDBETWEEN(0,100)/100 + KnownAmplitudeB*COS(2*PI()*KnownFrequencyB*time+KnownPhaseB)","v":0.22142358537090479},{"$f":"UnknownNoiseB*RANDBETWEEN(0,100)/100 + UnknownAmplitudeB*COS(2*PI()*UnknownFrequencyB*time+UnknownPhaseB)","v":-0.93196342586736369}]
[null,null,null,null,null,null,null,null,null,{"$f":"J151+1/samplesPerNanosecond","v":49.000000000000071},null,{"$f":"KnownNoiseA*RANDBETWEEN(0,100)/100 + KnownAmplitudeA*COS(2*PI()*KnownFrequencyA*time+KnownPhaseA)","v":-9.6712273340074636E-2},{"$f":"UnknownNoiseA*RANDBETWEEN(0,100)/100 + UnknownAmplitudeA*COS(2*PI()*UnknownFrequencyA*time+UnknownPhaseA)","v":-0.16458438990638233},null,{"$f":"KnownNoiseB*RANDBETWEEN(0,100)/100 + KnownAmplitudeB*COS(2*PI()*KnownFrequencyB*time+KnownPhaseB)","v":0.28457719745498089},{"$f":"UnknownNoiseB*RANDBETWEEN(0,100)/100 + UnknownAmplitudeB*COS(2*PI()*UnknownFrequencyB*time+UnknownPhaseB)","v":-0.89501023881130926}]
[null,null,null,null,null,null,null,null,null,{"$f":"J152+1/samplesPerNanosecond","v":49.333333333333407},null,{"$f":"KnownNoiseA*RANDBETWEEN(0,100)/100 + KnownAmplitudeA*COS(2*PI()*KnownFrequencyA*time+KnownPhaseA)","v":-3.4964573815079232E-2},{"$f":"UnknownNoiseA*RANDBETWEEN(0,100)/100 + UnknownAmplitudeA*COS(2*PI()*UnknownFrequencyA*time+UnknownPhaseA)","v":-0.61231602100435767},null,{"$f":"KnownNoiseB*RANDBETWEEN(0,100)/100 + KnownAmplitudeB*COS(2*PI()*KnownFrequencyB*time+KnownPhaseB)","v":0.26836840271128043},{"$f":"UnknownNoiseB*RANDBETWEEN(0,100)/100 + UnknownAmplitudeB*COS(2*PI()*UnknownFrequencyB*time+UnknownPhaseB)","v":-0.63094281247746109}]
[null,null,null,null,null,null,null,null,null,{"$f":"J153+1/samplesPerNanosecond","v":49.666666666666742},null,{"$f":"KnownNoiseA*RANDBETWEEN(0,100)/100 + KnownAmplitudeA*COS(2*PI()*KnownFrequencyA*time+KnownPhaseA)","v":7.488832418081913E-2},{"$f":"UnknownNoiseA*RANDBETWEEN(0,100)/100 + UnknownAmplitudeA*COS(2*PI()*UnknownFrequencyA*time+UnknownPhaseA)","v":-0.82942993136365517},null,{"$f":"KnownNoiseB*RANDBETWEEN(0,100)/100 + KnownAmplitudeB*COS(2*PI()*KnownFrequencyB*time+KnownPhaseB)","v":0.35072563995775996},{"$f":"UnknownNoiseB*RANDBETWEEN(0,100)/100 + UnknownAmplitudeB*COS(2*PI()*UnknownFrequencyB*time+UnknownPhaseB)","v":-0.21487089657979874}]
[null,null,null,null,null,null,null,null,null,{"$f":"J154+1/samplesPerNanosecond","v":50.000000000000078},null,{"$f":"KnownNoiseA*RANDBETWEEN(0,100)/100 + KnownAmplitudeA*COS(2*PI()*KnownFrequencyA*time+KnownPhaseA)","v":4.8772995977942414E-2},{"$f":"UnknownNoiseA*RANDBETWEEN(0,100)/100 + UnknownAmplitudeA*COS(2*PI()*UnknownFrequencyA*time+UnknownPhaseA)","v":-0.90077728079125763},null,{"$f":"KnownNoiseB*RANDBETWEEN(0,100)/100 + KnownAmplitudeB*COS(2*PI()*KnownFrequencyB*time+KnownPhaseB)","v":0.40257810843853797},{"$f":"UnknownNoiseB*RANDBETWEEN(0,100)/100 + UnknownAmplitudeB*COS(2*PI()*UnknownFrequencyB*time+UnknownPhaseB)","v":0.19033070466240734}]
[null,null,null,null,null,null,null,null,null,{"$f":"J155+1/samplesPerNanosecond","v":50.333333333333414},null,{"$f":"KnownNoiseA*RANDBETWEEN(0,100)/100 + KnownAmplitudeA*COS(2*PI()*KnownFrequencyA*time+KnownPhaseA)","v":6.9615961862184564E-2},{"$f":"UnknownNoiseA*RANDBETWEEN(0,100)/100 + UnknownAmplitudeA*COS(2*PI()*UnknownFrequencyA*time+UnknownPhaseA)","v":-0.83097994200546355},null,{"$f":"KnownNoiseB*RANDBETWEEN(0,100)/100 + KnownAmplitudeB*COS(2*PI()*KnownFrequencyB*time+KnownPhaseB)","v":0.36785589360783999},{"$f":"UnknownNoiseB*RANDBETWEEN(0,100)/100 + UnknownAmplitudeB*COS(2*PI()*UnknownFrequencyB*time+UnknownPhaseB)","v":0.5976897260470474}]
[null,null,null,null,null,null,null,null,null,{"$f":"J156+1/samplesPerNanosecond","v":50.66666666666675},null,{"$f":"KnownNoiseA*RANDBETWEEN(0,100)/100 + KnownAmplitudeA*COS(2*PI()*KnownFrequencyA*time+KnownPhaseA)","v":0.13234381528485575},{"$f":"UnknownNoiseA*RANDBETWEEN(0,100)/100 + UnknownAmplitudeA*COS(2*PI()*UnknownFrequencyA*time+UnknownPhaseA)","v":-0.53212798673835104},null,{"$f":"KnownNoiseB*RANDBETWEEN(0,100)/100 + KnownAmplitudeB*COS(2*PI()*KnownFrequencyB*time+KnownPhaseB)","v":0.49349008909692982},{"$f":"UnknownNoiseB*RANDBETWEEN(0,100)/100 + UnknownAmplitudeB*COS(2*PI()*UnknownFrequencyB*time+UnknownPhaseB)","v":0.91123791577189006}]
[null,null,null,null,null,null,null,null,null,{"$f":"J157+1/samplesPerNanosecond","v":51.000000000000085},null,{"$f":"KnownNoiseA*RANDBETWEEN(0,100)/100 + KnownAmplitudeA*COS(2*PI()*KnownFrequencyA*time+KnownPhaseA)","v":0.24288335094833885},{"$f":"UnknownNoiseA*RANDBETWEEN(0,100)/100 + UnknownAmplitudeA*COS(2*PI()*UnknownFrequencyA*time+UnknownPhaseA)","v":-0.16833539398702679},null,{"$f":"KnownNoiseB*RANDBETWEEN(0,100)/100 + KnownAmplitudeB*COS(2*PI()*KnownFrequencyB*time+KnownPhaseB)","v":0.48641291696980071},{"$f":"UnknownNoiseB*RANDBETWEEN(0,100)/100 + UnknownAmplitudeB*COS(2*PI()*UnknownFrequencyB*time+UnknownPhaseB)","v":1.0529045668515296}]
[null,null,null,null,null,null,null,null,null,{"$f":"J158+1/samplesPerNanosecond","v":51.333333333333421},null,{"$f":"KnownNoiseA*RANDBETWEEN(0,100)/100 + KnownAmplitudeA*COS(2*PI()*KnownFrequencyA*time+KnownPhaseA)","v":0.2821616948530809},{"$f":"UnknownNoiseA*RANDBETWEEN(0,100)/100 + UnknownAmplitudeA*COS(2*PI()*UnknownFrequencyA*time+UnknownPhaseA)","v":0.31495187043482065},null,{"$f":"KnownNoiseB*RANDBETWEEN(0,100)/100 + KnownAmplitudeB*COS(2*PI()*KnownFrequencyB*time+KnownPhaseB)","v":0.49955784812117232},{"$f":"UnknownNoiseB*RANDBETWEEN(0,100)/100 + UnknownAmplitudeB*COS(2*PI()*UnknownFrequencyB*time+UnknownPhaseB)","v":0.97080330009329219}]
[null,null,null,null,null,null,null,null,null,{"$f":"J159+1/samplesPerNanosecond","v":51.666666666666757},null,{"$f":"KnownNoiseA*RANDBETWEEN(0,100)/100 + KnownAmplitudeA*COS(2*PI()*KnownFrequencyA*time+KnownPhaseA)","v":0.24110643029889642},{"$f":"UnknownNoiseA*RANDBETWEEN(0,100)/100 + UnknownAmplitudeA*COS(2*PI()*UnknownFrequencyA*time+UnknownPhaseA)","v":0.69854311694362681},null,{"$f":"KnownNoiseB*RANDBETWEEN(0,100)/100 + KnownAmplitudeB*COS(2*PI()*KnownFrequencyB*time+KnownPhaseB)","v":0.60685971730728372},{"$f":"UnknownNoiseB*RANDBETWEEN(0,100)/100 + UnknownAmplitudeB*COS(2*PI()*UnknownFrequencyB*time+UnknownPhaseB)","v":0.71144013343457491}]
[null,null,null,null,null,null,null,null,null,{"$f":"J160+1/samplesPerNanosecond","v":52.000000000000092},null,{"$f":"KnownNoiseA*RANDBETWEEN(0,100)/100 + KnownAmplitudeA*COS(2*PI()*KnownFrequencyA*time+KnownPhaseA)","v":0.36764572653724892},{"$f":"UnknownNoiseA*RANDBETWEEN(0,100)/100 + UnknownAmplitudeA*COS(2*PI()*UnknownFrequencyA*time+UnknownPhaseA)","v":0.9556483529505021},null,{"$f":"KnownNoiseB*RANDBETWEEN(0,100)/100 + KnownAmplitudeB*COS(2*PI()*KnownFrequencyB*time+KnownPhaseB)","v":0.6072548389230934},{"$f":"UnknownNoiseB*RANDBETWEEN(0,100)/100 + UnknownAmplitudeB*COS(2*PI()*UnknownFrequencyB*time+UnknownPhaseB)","v":0.34179502189055561}]
[null,null,null,null,null,null,null,null,null,{"$f":"J161+1/samplesPerNanosecond","v":52.333333333333428},null,{"$f":"KnownNoiseA*RANDBETWEEN(0,100)/100 + KnownAmplitudeA*COS(2*PI()*KnownFrequencyA*time+KnownPhaseA)","v":0.4067084640887324},{"$f":"UnknownNoiseA*RANDBETWEEN(0,100)/100 + UnknownAmplitudeA*COS(2*PI()*UnknownFrequencyA*time+UnknownPhaseA)","v":1.0809311889267057},null,{"$f":"KnownNoiseB*RANDBETWEEN(0,100)/100 + KnownAmplitudeB*COS(2*PI()*KnownFrequencyB*time+KnownPhaseB)","v":0.67468111808676601},{"$f":"UnknownNoiseB*RANDBETWEEN(0,100)/100 + UnknownAmplitudeB*COS(2*PI()*UnknownFrequencyB*time+UnknownPhaseB)","v":-0.13213596187994986}]
[null,null,null,null,null,null,null,null,null,{"$f":"J162+1/samplesPerNanosecond","v":52.666666666666764},null,{"$f":"KnownNoiseA*RANDBETWEEN(0,100)/100 + KnownAmplitudeA*COS(2*PI()*KnownFrequencyA*time+KnownPhaseA)","v":0.38922435885327356},{"$f":"UnknownNoiseA*RANDBETWEEN(0,100)/100 + UnknownAmplitudeA*COS(2*PI()*UnknownFrequencyA*time+UnknownPhaseA)","v":0.88623956148614014},null,{"$f":"KnownNoiseB*RANDBETWEEN(0,100)/100 + KnownAmplitudeB*COS(2*PI()*KnownFrequencyB*time+KnownPhaseB)","v":0.66207815902412914},{"$f":"UnknownNoiseB*RANDBETWEEN(0,100)/100 + UnknownAmplitudeB*COS(2*PI()*UnknownFrequencyB*time+UnknownPhaseB)","v":-0.49423380857085791}]
[null,null,null,null,null,null,null,null,null,{"$f":"J163+1/samplesPerNanosecond","v":53.000000000000099},null,{"$f":"KnownNoiseA*RANDBETWEEN(0,100)/100 + KnownAmplitudeA*COS(2*PI()*KnownFrequencyA*time+KnownPhaseA)","v":0.48712408696262449},{"$f":"UnknownNoiseA*RANDBETWEEN(0,100)/100 + UnknownAmplitudeA*COS(2*PI()*UnknownFrequencyA*time+UnknownPhaseA)","v":0.62185535882219733},null,{"$f":"KnownNoiseB*RANDBETWEEN(0,100)/100 + KnownAmplitudeB*COS(2*PI()*KnownFrequencyB*time+KnownPhaseB)","v":0.74538737234780794},{"$f":"UnknownNoiseB*RANDBETWEEN(0,100)/100 + UnknownAmplitudeB*COS(2*PI()*UnknownFrequencyB*time+UnknownPhaseB)","v":-0.79838756998335314}]
[null,null,null,null,null,null,null,null,null,{"$f":"J164+1/samplesPerNanosecond","v":53.333333333333435},null,{"$f":"KnownNoiseA*RANDBETWEEN(0,100)/100 + KnownAmplitudeA*COS(2*PI()*KnownFrequencyA*time+KnownPhaseA)","v":0.50533940464338456},{"$f":"UnknownNoiseA*RANDBETWEEN(0,100)/100 + UnknownAmplitudeA*COS(2*PI()*UnknownFrequencyA*time+UnknownPhaseA)","v":0.21060915847658801},null,{"$f":"KnownNoiseB*RANDBETWEEN(0,100)/100 + KnownAmplitudeB*COS(2*PI()*KnownFrequencyB*time+KnownPhaseB)","v":0.73755207636001274},{"$f":"UnknownNoiseB*RANDBETWEEN(0,100)/100 + UnknownAmplitudeB*COS(2*PI()*UnknownFrequencyB*time+UnknownPhaseB)","v":-0.9382154099246317}]
[null,null,null,null,null,null,null,null,null,{"$f":"J165+1/samplesPerNanosecond","v":53.666666666666771},null,{"$f":"KnownNoiseA*RANDBETWEEN(0,100)/100 + KnownAmplitudeA*COS(2*PI()*KnownFrequencyA*time+KnownPhaseA)","v":0.51880326946098032},{"$f":"UnknownNoiseA*RANDBETWEEN(0,100)/100 + UnknownAmplitudeA*COS(2*PI()*UnknownFrequencyA*time+UnknownPhaseA)","v":-0.27315705465501572},null,{"$f":"KnownNoiseB*RANDBETWEEN(0,100)/100 + KnownAmplitudeB*COS(2*PI()*KnownFrequencyB*time+KnownPhaseB)","v":0.73651759776297243},{"$f":"UnknownNoiseB*RANDBETWEEN(0,100)/100 + UnknownAmplitudeB*COS(2*PI()*UnknownFrequencyB*time+UnknownPhaseB)","v":-0.84701160416953747}]
[null,null,null,null,null,null,null,null,null,{"$f":"J166+1/samplesPerNanosecond","v":54.000000000000107},null,{"$f":"KnownNoiseA*RANDBETWEEN(0,100)/100 + KnownAmplitudeA*COS(2*PI()*KnownFrequencyA*time+KnownPhaseA)","v":0.51844995726780907},{"$f":"UnknownNoiseA*RANDBETWEEN(0,100)/100 + UnknownAmplitudeA*COS(2*PI()*UnknownFrequencyA*time+UnknownPhaseA)","v":-0.6103574213884877},null,{"$f":"KnownNoiseB*RANDBETWEEN(0,100)/100 + KnownAmplitudeB*COS(2*PI()*KnownFrequencyB*time+KnownPhaseB)","v":0.76323136700605365},{"$f":"UnknownNoiseB*RANDBETWEEN(0,100)/100 + UnknownAmplitudeB*COS(2*PI()*UnknownFrequencyB*time+UnknownPhaseB)","v":-0.63051588454467355}]
[null,null,null,null,null,null,null,null,null,{"$f":"J167+1/samplesPerNanosecond","v":54.333333333333442},null,{"$f":"KnownNoiseA*RANDBETWEEN(0,100)/100 + KnownAmplitudeA*COS(2*PI()*KnownFrequencyA*time+KnownPhaseA)","v":0.62321517691377493},{"$f":"UnknownNoiseA*RANDBETWEEN(0,100)/100 + UnknownAmplitudeA*COS(2*PI()*UnknownFrequencyA*time+UnknownPhaseA)","v":-0.90228653654956847},null,{"$f":"KnownNoiseB*RANDBETWEEN(0,100)/100 + KnownAmplitudeB*COS(2*PI()*KnownFrequencyB*time+KnownPhaseB)","v":0.84664301006206033},{"$f":"UnknownNoiseB*RANDBETWEEN(0,100)/100 + UnknownAmplitudeB*COS(2*PI()*UnknownFrequencyB*time+UnknownPhaseB)","v":-0.17154558077620335}]
[null,null,null,null,null,null,null,null,null,{"$f":"J168+1/samplesPerNanosecond","v":54.666666666666778},null,{"$f":"KnownNoiseA*RANDBETWEEN(0,100)/100 + KnownAmplitudeA*COS(2*PI()*KnownFrequencyA*time+KnownPhaseA)","v":0.57303618444763094},{"$f":"UnknownNoiseA*RANDBETWEEN(0,100)/100 + UnknownAmplitudeA*COS(2*PI()*UnknownFrequencyA*time+UnknownPhaseA)","v":-0.96945415071458529},null,{"$f":"KnownNoiseB*RANDBETWEEN(0,100)/100 + KnownAmplitudeB*COS(2*PI()*KnownFrequencyB*time+KnownPhaseB)","v":0.79870443789889567},{"$f":"UnknownNoiseB*RANDBETWEEN(0,100)/100 + UnknownAmplitudeB*COS(2*PI()*UnknownFrequencyB*time+UnknownPhaseB)","v":0.2328318627133972}]
[null,null,null,null,null,null,null,null,null,{"$f":"J169+1/samplesPerNanosecond","v":55.000000000000114},null,{"$f":"KnownNoiseA*RANDBETWEEN(0,100)/100 + KnownAmplitudeA*COS(2*PI()*KnownFrequencyA*time+KnownPhaseA)","v":0.64185189160312894},{"$f":"UnknownNoiseA*RANDBETWEEN(0,100)/100 + UnknownAmplitudeA*COS(2*PI()*UnknownFrequencyA*time+UnknownPhaseA)","v":-0.86194446603774799},null,{"$f":"KnownNoiseB*RANDBETWEEN(0,100)/100 + KnownAmplitudeB*COS(2*PI()*KnownFrequencyB*time+KnownPhaseB)","v":0.82936992962692258},{"$f":"UnknownNoiseB*RANDBETWEEN(0,100)/100 + UnknownAmplitudeB*COS(2*PI()*UnknownFrequencyB*time+UnknownPhaseB)","v":0.69940761325727652}]
[null,null,null,null,null,null,null,null,null,{"$f":"J170+1/samplesPerNanosecond","v":55.333333333333449},null,{"$f":"KnownNoiseA*RANDBETWEEN(0,100)/100 + KnownAmplitudeA*COS(2*PI()*KnownFrequencyA*time+KnownPhaseA)","v":0.7366029743357545},{"$f":"UnknownNoiseA*RANDBETWEEN(0,100)/100 + UnknownAmplitudeA*COS(2*PI()*UnknownFrequencyA*time+UnknownPhaseA)","v":-0.5302158502127815},null,{"$f":"KnownNoiseB*RANDBETWEEN(0,100)/100 + KnownAmplitudeB*COS(2*PI()*KnownFrequencyB*time+KnownPhaseB)","v":0.92059621374110545},{"$f":"UnknownNoiseB*RANDBETWEEN(0,100)/100 + UnknownAmplitudeB*COS(2*PI()*UnknownFrequencyB*time+UnknownPhaseB)","v":0.93098052091611416}]
[null,null,null,null,null,null,null,null,null,{"$f":"J171+1/samplesPerNanosecond","v":55.666666666666785},null,{"$f":"KnownNoiseA*RANDBETWEEN(0,100)/100 + KnownAmplitudeA*COS(2*PI()*KnownFrequencyA*time+KnownPhaseA)","v":0.69123197629033872},{"$f":"UnknownNoiseA*RANDBETWEEN(0,100)/100 + UnknownAmplitudeA*COS(2*PI()*UnknownFrequencyA*time+UnknownPhaseA)","v":-5.6777689050963101E-2},null,{"$f":"KnownNoiseB*RANDBETWEEN(0,100)/100 + KnownAmplitudeB*COS(2*PI()*KnownFrequencyB*time+KnownPhaseB)","v":0.90034254356363241},{"$f":"UnknownNoiseB*RANDBETWEEN(0,100)/100 + UnknownAmplitudeB*COS(2*PI()*UnknownFrequencyB*time+UnknownPhaseB)","v":1.0498951271300916}]
[null,null,null,null,null,null,null,null,null,{"$f":"J172+1/samplesPerNanosecond","v":56.000000000000121},null,{"$f":"KnownNoiseA*RANDBETWEEN(0,100)/100 + KnownAmplitudeA*COS(2*PI()*KnownFrequencyA*time+KnownPhaseA)","v":0.73668340909852548},{"$f":"UnknownNoiseA*RANDBETWEEN(0,100)/100 + UnknownAmplitudeA*COS(2*PI()*UnknownFrequencyA*time+UnknownPhaseA)","v":0.35018465405385957},null,{"$f":"KnownNoiseB*RANDBETWEEN(0,100)/100 + KnownAmplitudeB*COS(2*PI()*KnownFrequencyB*time+KnownPhaseB)","v":0.96257076840099365},{"$f":"UnknownNoiseB*RANDBETWEEN(0,100)/100 + UnknownAmplitudeB*COS(2*PI()*UnknownFrequencyB*time+UnknownPhaseB)","v":0.98664133568504175}]
[null,null,null,null,null,null,null,null,null,{"$f":"J173+1/samplesPerNanosecond","v":56.333333333333456},null,{"$f":"KnownNoiseA*RANDBETWEEN(0,100)/100 + KnownAmplitudeA*COS(2*PI()*KnownFrequencyA*time+KnownPhaseA)","v":0.73690385093781707},{"$f":"UnknownNoiseA*RANDBETWEEN(0,100)/100 + UnknownAmplitudeA*COS(2*PI()*UnknownFrequencyA*time+UnknownPhaseA)","v":0.74974705012388498},null,{"$f":"KnownNoiseB*RANDBETWEEN(0,100)/100 + KnownAmplitudeB*COS(2*PI()*KnownFrequencyB*time+KnownPhaseB)","v":0.94424540129782963},{"$f":"UnknownNoiseB*RANDBETWEEN(0,100)/100 + UnknownAmplitudeB*COS(2*PI()*UnknownFrequencyB*time+UnknownPhaseB)","v":0.6721820194701551}]
[null,null,null,null,null,null,null,null,null,{"$f":"J174+1/samplesPerNanosecond","v":56.666666666666792},null,{"$f":"KnownNoiseA*RANDBETWEEN(0,100)/100 + KnownAmplitudeA*COS(2*PI()*KnownFrequencyA*time+KnownPhaseA)","v":0.79384203889948723},{"$f":"UnknownNoiseA*RANDBETWEEN(0,100)/100 + UnknownAmplitudeA*COS(2*PI()*UnknownFrequencyA*time+UnknownPhaseA)","v":0.94933839447753199},null,{"$f":"KnownNoiseB*RANDBETWEEN(0,100)/100 + KnownAmplitudeB*COS(2*PI()*KnownFrequencyB*time+KnownPhaseB)","v":0.94633368039492693},{"$f":"UnknownNoiseB*RANDBETWEEN(0,100)/100 + UnknownAmplitudeB*COS(2*PI()*UnknownFrequencyB*time+UnknownPhaseB)","v":0.23313788970345312}]
[null,null,null,null,null,null,null,null,null,{"$f":"J175+1/samplesPerNanosecond","v":57.000000000000128},null,{"$f":"KnownNoiseA*RANDBETWEEN(0,100)/100 + KnownAmplitudeA*COS(2*PI()*KnownFrequencyA*time+KnownPhaseA)","v":0.81144896007449485},{"$f":"UnknownNoiseA*RANDBETWEEN(0,100)/100 + UnknownAmplitudeA*COS(2*PI()*UnknownFrequencyA*time+UnknownPhaseA)","v":1.0563470990838861},null,{"$f":"KnownNoiseB*RANDBETWEEN(0,100)/100 + KnownAmplitudeB*COS(2*PI()*KnownFrequencyB*time+KnownPhaseB)","v":0.94780562715239502},{"$f":"UnknownNoiseB*RANDBETWEEN(0,100)/100 + UnknownAmplitudeB*COS(2*PI()*UnknownFrequencyB*time+UnknownPhaseB)","v":-0.1854028087025115}]
[null,null,null,null,null,null,null,null,null,{"$f":"J176+1/samplesPerNanosecond","v":57.333333333333464},null,{"$f":"KnownNoiseA*RANDBETWEEN(0,100)/100 + KnownAmplitudeA*COS(2*PI()*KnownFrequencyA*time+KnownPhaseA)","v":0.87567793701853125},{"$f":"UnknownNoiseA*RANDBETWEEN(0,100)/100 + UnknownAmplitudeA*COS(2*PI()*UnknownFrequencyA*time+UnknownPhaseA)","v":0.91610242150607535},null,{"$f":"KnownNoiseB*RANDBETWEEN(0,100)/100 + KnownAmplitudeB*COS(2*PI()*KnownFrequencyB*time+KnownPhaseB)","v":1.0346340985905882},{"$f":"UnknownNoiseB*RANDBETWEEN(0,100)/100 + UnknownAmplitudeB*COS(2*PI()*UnknownFrequencyB*time+UnknownPhaseB)","v":-0.54119839789890756}]
[null,null,null,null,null,null,null,null,null,{"$f":"J177+1/samplesPerNanosecond","v":57.666666666666799},null,{"$f":"KnownNoiseA*RANDBETWEEN(0,100)/100 + KnownAmplitudeA*COS(2*PI()*KnownFrequencyA*time+KnownPhaseA)","v":0.89948470925294033},{"$f":"UnknownNoiseA*RANDBETWEEN(0,100)/100 + UnknownAmplitudeA*COS(2*PI()*UnknownFrequencyA*time+UnknownPhaseA)","v":0.57722249687391514},null,{"$f":"KnownNoiseB*RANDBETWEEN(0,100)/100 + KnownAmplitudeB*COS(2*PI()*KnownFrequencyB*time+KnownPhaseB)","v":1.0607948347180569},{"$f":"UnknownNoiseB*RANDBETWEEN(0,100)/100 + UnknownAmplitudeB*COS(2*PI()*UnknownFrequencyB*time+UnknownPhaseB)","v":-0.86600944641298483}]
[null,null,null,null,null,null,null,null,null,{"$f":"J178+1/samplesPerNanosecond","v":58.000000000000135},null,{"$f":"KnownNoiseA*RANDBETWEEN(0,100)/100 + KnownAmplitudeA*COS(2*PI()*KnownFrequencyA*time+KnownPhaseA)","v":0.94282751175391566},{"$f":"UnknownNoiseA*RANDBETWEEN(0,100)/100 + UnknownAmplitudeA*COS(2*PI()*UnknownFrequencyA*time+UnknownPhaseA)","v":0.20485666979841816},null,{"$f":"KnownNoiseB*RANDBETWEEN(0,100)/100 + KnownAmplitudeB*COS(2*PI()*KnownFrequencyB*time+KnownPhaseB)","v":1.0702665015529369},{"$f":"UnknownNoiseB*RANDBETWEEN(0,100)/100 + UnknownAmplitudeB*COS(2*PI()*UnknownFrequencyB*time+UnknownPhaseB)","v":-0.95594328914395488}]
[null,null,null,null,null,null,null,null,null,{"$f":"J179+1/samplesPerNanosecond","v":58.333333333333471},null,{"$f":"KnownNoiseA*RANDBETWEEN(0,100)/100 + KnownAmplitudeA*COS(2*PI()*KnownFrequencyA*time+KnownPhaseA)","v":0.92966714776549531},{"$f":"UnknownNoiseA*RANDBETWEEN(0,100)/100 + UnknownAmplitudeA*COS(2*PI()*UnknownFrequencyA*time+UnknownPhaseA)","v":-0.2910194922846232},null,{"$f":"KnownNoiseB*RANDBETWEEN(0,100)/100 + KnownAmplitudeB*COS(2*PI()*KnownFrequencyB*time+KnownPhaseB)","v":1.0130307282773243},{"$f":"UnknownNoiseB*RANDBETWEEN(0,100)/100 + UnknownAmplitudeB*COS(2*PI()*UnknownFrequencyB*time+UnknownPhaseB)","v":-0.88469904472363103}]
[null,null,null,null,null,null,null,null,null,{"$f":"J180+1/samplesPerNanosecond","v":58.666666666666806},null,{"$f":"KnownNoiseA*RANDBETWEEN(0,100)/100 + KnownAmplitudeA*COS(2*PI()*KnownFrequencyA*time+KnownPhaseA)","v":0.97696705725328181},{"$f":"UnknownNoiseA*RANDBETWEEN(0,100)/100 + UnknownAmplitudeA*COS(2*PI()*UnknownFrequencyA*time+UnknownPhaseA)","v":-0.67970038821864476},null,{"$f":"KnownNoiseB*RANDBETWEEN(0,100)/100 + KnownAmplitudeB*COS(2*PI()*KnownFrequencyB*time+KnownPhaseB)","v":1.0220721393620911},{"$f":"UnknownNoiseB*RANDBETWEEN(0,100)/100 + UnknownAmplitudeB*COS(2*PI()*UnknownFrequencyB*time+UnknownPhaseB)","v":-0.53945074954779382}]
[null,null,null,null,null,null,null,null,null,{"$f":"J181+1/samplesPerNanosecond","v":59.000000000000142},null,{"$f":"KnownNoiseA*RANDBETWEEN(0,100)/100 + KnownAmplitudeA*COS(2*PI()*KnownFrequencyA*time+KnownPhaseA)","v":1.0096933818321752},{"$f":"UnknownNoiseA*RANDBETWEEN(0,100)/100 + UnknownAmplitudeA*COS(2*PI()*UnknownFrequencyA*time+UnknownPhaseA)","v":-0.92279820938692991},null,{"$f":"KnownNoiseB*RANDBETWEEN(0,100)/100 + KnownAmplitudeB*COS(2*PI()*KnownFrequencyB*time+KnownPhaseB)","v":1.0323783818576904},{"$f":"UnknownNoiseB*RANDBETWEEN(0,100)/100 + UnknownAmplitudeB*COS(2*PI()*UnknownFrequencyB*time+UnknownPhaseB)","v":-0.12058736509308089}]
[null,null,null,null,null,null,null,null,null,{"$f":"J182+1/samplesPerNanosecond","v":59.333333333333478},null,{"$f":"KnownNoiseA*RANDBETWEEN(0,100)/100 + KnownAmplitudeA*COS(2*PI()*KnownFrequencyA*time+KnownPhaseA)","v":1.0188150233085222},{"$f":"UnknownNoiseA*RANDBETWEEN(0,100)/100 + UnknownAmplitudeA*COS(2*PI()*UnknownFrequencyA*time+UnknownPhaseA)","v":-0.89761136489357574},null,{"$f":"KnownNoiseB*RANDBETWEEN(0,100)/100 + KnownAmplitudeB*COS(2*PI()*KnownFrequencyB*time+KnownPhaseB)","v":1.0769401467527724},{"$f":"UnknownNoiseB*RANDBETWEEN(0,100)/100 + UnknownAmplitudeB*COS(2*PI()*UnknownFrequencyB*time+UnknownPhaseB)","v":0.31083328031121271}]
[null,null,null,null,null,null,null,null,null,{"$f":"J183+1/samplesPerNanosecond","v":59.666666666666814},null,{"$f":"KnownNoiseA*RANDBETWEEN(0,100)/100 + KnownAmplitudeA*COS(2*PI()*KnownFrequencyA*time+KnownPhaseA)","v":1.0153036989480604},{"$f":"UnknownNoiseA*RANDBETWEEN(0,100)/100 + UnknownAmplitudeA*COS(2*PI()*UnknownFrequencyA*time+UnknownPhaseA)","v":-0.7857215392016732},null,{"$f":"KnownNoiseB*RANDBETWEEN(0,100)/100 + KnownAmplitudeB*COS(2*PI()*KnownFrequencyB*time+KnownPhaseB)","v":1.0767511855357697},{"$f":"UnknownNoiseB*RANDBETWEEN(0,100)/100 + UnknownAmplitudeB*COS(2*PI()*UnknownFrequencyB*time+UnknownPhaseB)","v":0.72759366221202404}]
[null,null,null,null,null,null,null,null,null,{"$f":"J184+1/samplesPerNanosecond","v":60.000000000000149},null,{"$f":"KnownNoiseA*RANDBETWEEN(0,100)/100 + KnownAmplitudeA*COS(2*PI()*KnownFrequencyA*time+KnownPhaseA)","v":0.98413399075720842},{"$f":"UnknownNoiseA*RANDBETWEEN(0,100)/100 + UnknownAmplitudeA*COS(2*PI()*UnknownFrequencyA*time+UnknownPhaseA)","v":-0.48088855943537878},null,{"$f":"KnownNoiseB*RANDBETWEEN(0,100)/100 + KnownAmplitudeB*COS(2*PI()*KnownFrequencyB*time+KnownPhaseB)","v":1.0778083210247167},{"$f":"UnknownNoiseB*RANDBETWEEN(0,100)/100 + UnknownAmplitudeB*COS(2*PI()*UnknownFrequencyB*time+UnknownPhaseB)","v":0.98946737995958656}]
[null,null,null,null,null,null,null,null,null,{"$f":"J185+1/samplesPerNanosecond","v":60.333333333333485},null,{"$f":"KnownNoiseA*RANDBETWEEN(0,100)/100 + KnownAmplitudeA*COS(2*PI()*KnownFrequencyA*time+KnownPhaseA)","v":1.0002833899018575},{"$f":"UnknownNoiseA*RANDBETWEEN(0,100)/100 + UnknownAmplitudeA*COS(2*PI()*UnknownFrequencyA*time+UnknownPhaseA)","v":-8.8618413688090619E-3},null,{"$f":"KnownNoiseB*RANDBETWEEN(0,100)/100 + KnownAmplitudeB*COS(2*PI()*KnownFrequencyB*time+KnownPhaseB)","v":1.0361114529839166},{"$f":"UnknownNoiseB*RANDBETWEEN(0,100)/100 + UnknownAmplitudeB*COS(2*PI()*UnknownFrequencyB*time+UnknownPhaseB)","v":1.0673598655460614}]
[null,null,null,null,null,null,null,null,null,{"$f":"J186+1/samplesPerNanosecond","v":60.666666666666821},null,{"$f":"KnownNoiseA*RANDBETWEEN(0,100)/100 + KnownAmplitudeA*COS(2*PI()*KnownFrequencyA*time+KnownPhaseA)","v":1.0397323366711126},{"$f":"UnknownNoiseA*RANDBETWEEN(0,100)/100 + UnknownAmplitudeA*COS(2*PI()*UnknownFrequencyA*time+UnknownPhaseA)","v":0.44964651475266254},null,{"$f":"KnownNoiseB*RANDBETWEEN(0,100)/100 + KnownAmplitudeB*COS(2*PI()*KnownFrequencyB*time+KnownPhaseB)","v":1.0616635582776719},{"$f":"UnknownNoiseB*RANDBETWEEN(0,100)/100 + UnknownAmplitudeB*COS(2*PI()*UnknownFrequencyB*time+UnknownPhaseB)","v":0.9641916426707865}]
[null,null,null,null,null,null,null,null,null,{"$f":"J187+1/samplesPerNanosecond","v":61.000000000000156},null,{"$f":"KnownNoiseA*RANDBETWEEN(0,100)/100 + KnownAmplitudeA*COS(2*PI()*KnownFrequencyA*time+KnownPhaseA)","v":0.99946425429661256},{"$f":"UnknownNoiseA*RANDBETWEEN(0,100)/100 + UnknownAmplitudeA*COS(2*PI()*UnknownFrequencyA*time+UnknownPhaseA)","v":0.75820609595965871},null,{"$f":"KnownNoiseB*RANDBETWEEN(0,100)/100 + KnownAmplitudeB*COS(2*PI()*KnownFrequencyB*time+KnownPhaseB)","v":1.0824706857231969},{"$f":"UnknownNoiseB*RANDBETWEEN(0,100)/100 + UnknownAmplitudeB*COS(2*PI()*UnknownFrequencyB*time+UnknownPhaseB)","v":0.68733453747054496}]
[null,null,null,null,null,null,null,null,null,{"$f":"J188+1/samplesPerNanosecond","v":61.333333333333492},null,{"$f":"KnownNoiseA*RANDBETWEEN(0,100)/100 + KnownAmplitudeA*COS(2*PI()*KnownFrequencyA*time+KnownPhaseA)","v":1.056465578424842},{"$f":"UnknownNoiseA*RANDBETWEEN(0,100)/100 + UnknownAmplitudeA*COS(2*PI()*UnknownFrequencyA*time+UnknownPhaseA)","v":0.98666063801746884},null,{"$f":"KnownNoiseB*RANDBETWEEN(0,100)/100 + KnownAmplitudeB*COS(2*PI()*KnownFrequencyB*time+KnownPhaseB)","v":0.98354194536916029},{"$f":"UnknownNoiseB*RANDBETWEEN(0,100)/100 + UnknownAmplitudeB*COS(2*PI()*UnknownFrequencyB*time+UnknownPhaseB)","v":0.27390951312426998}]
[null,null,null,null,null,null,null,null,null,{"$f":"J189+1/samplesPerNanosecond","v":61.666666666666828},null,{"$f":"KnownNoiseA*RANDBETWEEN(0,100)/100 + KnownAmplitudeA*COS(2*PI()*KnownFrequencyA*time+KnownPhaseA)","v":1.0947257807128883},{"$f":"UnknownNoiseA*RANDBETWEEN(0,100)/100 + UnknownAmplitudeA*COS(2*PI()*UnknownFrequencyA*time+UnknownPhaseA)","v":1.0812486760919997},null,{"$f":"KnownNoiseB*RANDBETWEEN(0,100)/100 + KnownAmplitudeB*COS(2*PI()*KnownFrequencyB*time+KnownPhaseB)","v":1.0298894925276334},{"$f":"UnknownNoiseB*RANDBETWEEN(0,100)/100 + UnknownAmplitudeB*COS(2*PI()*UnknownFrequencyB*time+UnknownPhaseB)","v":-0.26010784673004977}]
[null,null,null,null,null,null,null,null,null,{"$f":"J190+1/samplesPerNanosecond","v":62.000000000000163},null,{"$f":"KnownNoiseA*RANDBETWEEN(0,100)/100 + KnownAmplitudeA*COS(2*PI()*KnownFrequencyA*time+KnownPhaseA)","v":1.0232373872709912},{"$f":"UnknownNoiseA*RANDBETWEEN(0,100)/100 + UnknownAmplitudeA*COS(2*PI()*UnknownFrequencyA*time+UnknownPhaseA)","v":0.88781027077657826},null,{"$f":"KnownNoiseB*RANDBETWEEN(0,100)/100 + KnownAmplitudeB*COS(2*PI()*KnownFrequencyB*time+KnownPhaseB)","v":1.0565285066371313},{"$f":"UnknownNoiseB*RANDBETWEEN(0,100)/100 + UnknownAmplitudeB*COS(2*PI()*UnknownFrequencyB*time+UnknownPhaseB)","v":-0.57858115573201541}]
[null,null,null,null,null,null,null,null,null,{"$f":"J191+1/samplesPerNanosecond","v":62.333333333333499},null,{"$f":"KnownNoiseA*RANDBETWEEN(0,100)/100 + KnownAmplitudeA*COS(2*PI()*KnownFrequencyA*time+KnownPhaseA)","v":1.0209959919156857},{"$f":"UnknownNoiseA*RANDBETWEEN(0,100)/100 + UnknownAmplitudeA*COS(2*PI()*UnknownFrequencyA*time+UnknownPhaseA)","v":0.53022751248354927},null,{"$f":"KnownNoiseB*RANDBETWEEN(0,100)/100 + KnownAmplitudeB*COS(2*PI()*KnownFrequencyB*time+KnownPhaseB)","v":0.97947716427255016},{"$f":"UnknownNoiseB*RANDBETWEEN(0,100)/100 + UnknownAmplitudeB*COS(2*PI()*UnknownFrequencyB*time+UnknownPhaseB)","v":-0.90534771631055355}]
[null,null,null,null,null,null,null,null,null,{"$f":"J192+1/samplesPerNanosecond","v":62.666666666666835},null,{"$f":"KnownNoiseA*RANDBETWEEN(0,100)/100 + KnownAmplitudeA*COS(2*PI()*KnownFrequencyA*time+KnownPhaseA)","v":1.008000263788223},{"$f":"UnknownNoiseA*RANDBETWEEN(0,100)/100 + UnknownAmplitudeA*COS(2*PI()*UnknownFrequencyA*time+UnknownPhaseA)","v":8.1808991031449924E-2},null,{"$f":"KnownNoiseB*RANDBETWEEN(0,100)/100 + KnownAmplitudeB*COS(2*PI()*KnownFrequencyB*time+KnownPhaseB)","v":0.98275660771733209},{"$f":"UnknownNoiseB*RANDBETWEEN(0,100)/100 + UnknownAmplitudeB*COS(2*PI()*UnknownFrequencyB*time+UnknownPhaseB)","v":-0.93314522483925932}]
[null,null,null,null,null,null,null,null,null,{"$f":"J193+1/samplesPerNanosecond","v":63.000000000000171},null,{"$f":"KnownNoiseA*RANDBETWEEN(0,100)/100 + KnownAmplitudeA*COS(2*PI()*KnownFrequencyA*time+KnownPhaseA)","v":1.0552519497431734},{"$f":"UnknownNoiseA*RANDBETWEEN(0,100)/100 + UnknownAmplitudeA*COS(2*PI()*UnknownFrequencyA*time+UnknownPhaseA)","v":-0.28305079812422307},null,{"$f":"KnownNoiseB*RANDBETWEEN(0,100)/100 + KnownAmplitudeB*COS(2*PI()*KnownFrequencyB*time+KnownPhaseB)","v":0.99639090742753922},{"$f":"UnknownNoiseB*RANDBETWEEN(0,100)/100 + UnknownAmplitudeB*COS(2*PI()*UnknownFrequencyB*time+UnknownPhaseB)","v":-0.86212639784826639}]
[null,null,null,null,null,null,null,null,null,{"$f":"J194+1/samplesPerNanosecond","v":63.333333333333506},null,{"$f":"KnownNoiseA*RANDBETWEEN(0,100)/100 + KnownAmplitudeA*COS(2*PI()*KnownFrequencyA*time+KnownPhaseA)","v":1.0167558712273983},{"$f":"UnknownNoiseA*RANDBETWEEN(0,100)/100 + UnknownAmplitudeA*COS(2*PI()*UnknownFrequencyA*time+UnknownPhaseA)","v":-0.6532531163667431},null,{"$f":"KnownNoiseB*RANDBETWEEN(0,100)/100 + KnownAmplitudeB*COS(2*PI()*KnownFrequencyB*time+KnownPhaseB)","v":0.91740701996381513},{"$f":"UnknownNoiseB*RANDBETWEEN(0,100)/100 + UnknownAmplitudeB*COS(2*PI()*UnknownFrequencyB*time+UnknownPhaseB)","v":-0.47984608906907772}]
[null,null,null,null,null,null,null,null,null,{"$f":"J195+1/samplesPerNanosecond","v":63.666666666666842},null,{"$f":"KnownNoiseA*RANDBETWEEN(0,100)/100 + KnownAmplitudeA*COS(2*PI()*KnownFrequencyA*time+KnownPhaseA)","v":1.0725199159403331},{"$f":"UnknownNoiseA*RANDBETWEEN(0,100)/100 + UnknownAmplitudeA*COS(2*PI()*UnknownFrequencyA*time+UnknownPhaseA)","v":-0.88592071399938555},null,{"$f":"KnownNoiseB*RANDBETWEEN(0,100)/100 + KnownAmplitudeB*COS(2*PI()*KnownFrequencyB*time+KnownPhaseB)","v":0.93483474102458397},{"$f":"UnknownNoiseB*RANDBETWEEN(0,100)/100 + UnknownAmplitudeB*COS(2*PI()*UnknownFrequencyB*time+UnknownPhaseB)","v":-0.14911992177162639}]
[null,null,null,null,null,null,null,null,null,{"$f":"J196+1/samplesPerNanosecond","v":64.000000000000171},null,{"$f":"KnownNoiseA*RANDBETWEEN(0,100)/100 + KnownAmplitudeA*COS(2*PI()*KnownFrequencyA*time+KnownPhaseA)","v":0.97755502379730241},{"$f":"UnknownNoiseA*RANDBETWEEN(0,100)/100 + UnknownAmplitudeA*COS(2*PI()*UnknownFrequencyA*time+UnknownPhaseA)","v":-0.94626115662547239},null,{"$f":"KnownNoiseB*RANDBETWEEN(0,100)/100 + KnownAmplitudeB*COS(2*PI()*KnownFrequencyB*time+KnownPhaseB)","v":0.93270665249179263},{"$f":"UnknownNoiseB*RANDBETWEEN(0,100)/100 + UnknownAmplitudeB*COS(2*PI()*UnknownFrequencyB*time+UnknownPhaseB)","v":0.33121117562263114}]
[null,null,null,null,null,null,null,null,null,{"$f":"J197+1/samplesPerNanosecond","v":64.333333333333499},null,{"$f":"KnownNoiseA*RANDBETWEEN(0,100)/100 + KnownAmplitudeA*COS(2*PI()*KnownFrequencyA*time+KnownPhaseA)","v":1.0068751680140842},{"$f":"UnknownNoiseA*RANDBETWEEN(0,100)/100 + UnknownAmplitudeA*COS(2*PI()*UnknownFrequencyA*time+UnknownPhaseA)","v":-0.71837740288606766},null,{"$f":"KnownNoiseB*RANDBETWEEN(0,100)/100 + KnownAmplitudeB*COS(2*PI()*KnownFrequencyB*time+KnownPhaseB)","v":0.93405806609587183},{"$f":"UnknownNoiseB*RANDBETWEEN(0,100)/100 + UnknownAmplitudeB*COS(2*PI()*UnknownFrequencyB*time+UnknownPhaseB)","v":0.70614888555104283}]
[null,null,null,null,null,null,null,null,null,{"$f":"J198+1/samplesPerNanosecond","v":64.666666666666828},null,{"$f":"KnownNoiseA*RANDBETWEEN(0,100)/100 + KnownAmplitudeA*COS(2*PI()*KnownFrequencyA*time+KnownPhaseA)","v":1.0274973303074064},{"$f":"UnknownNoiseA*RANDBETWEEN(0,100)/100 + UnknownAmplitudeA*COS(2*PI()*UnknownFrequencyA*time+UnknownPhaseA)","v":-0.39225303759991093},null,{"$f":"KnownNoiseB*RANDBETWEEN(0,100)/100 + KnownAmplitudeB*COS(2*PI()*KnownFrequencyB*time+KnownPhaseB)","v":0.82192696070584481},{"$f":"UnknownNoiseB*RANDBETWEEN(0,100)/100 + UnknownAmplitudeB*COS(2*PI()*UnknownFrequencyB*time+UnknownPhaseB)","v":0.96964421483369556}]
[null,null,null,null,null,null,null,null,null,{"$f":"J199+1/samplesPerNanosecond","v":65.000000000000156},null,{"$f":"KnownNoiseA*RANDBETWEEN(0,100)/100 + KnownAmplitudeA*COS(2*PI()*KnownFrequencyA*time+KnownPhaseA)","v":0.99944147119354187},{"$f":"UnknownNoiseA*RANDBETWEEN(0,100)/100 + UnknownAmplitudeA*COS(2*PI()*UnknownFrequencyA*time+UnknownPhaseA)","v":5.728605729646484E-2},null,{"$f":"KnownNoiseB*RANDBETWEEN(0,100)/100 + KnownAmplitudeB*COS(2*PI()*KnownFrequencyB*time+KnownPhaseB)","v":0.86535391599987466},{"$f":"UnknownNoiseB*RANDBETWEEN(0,100)/100 + UnknownAmplitudeB*COS(2*PI()*UnknownFrequencyB*time+UnknownPhaseB)","v":1.0943001342166507}]
[null,null,null,null,null,null,null,null,null,{"$f":"J200+1/samplesPerNanosecond","v":65.333333333333485},null,{"$f":"KnownNoiseA*RANDBETWEEN(0,100)/100 + KnownAmplitudeA*COS(2*PI()*KnownFrequencyA*time+KnownPhaseA)","v":1.0167304952308056},{"$f":"UnknownNoiseA*RANDBETWEEN(0,100)/100 + UnknownAmplitudeA*COS(2*PI()*UnknownFrequencyA*time+UnknownPhaseA)","v":0.42721755975233738},null,{"$f":"KnownNoiseB*RANDBETWEEN(0,100)/100 + KnownAmplitudeB*COS(2*PI()*KnownFrequencyB*time+KnownPhaseB)","v":0.86338204172129818},{"$f":"UnknownNoiseB*RANDBETWEEN(0,100)/100 + UnknownAmplitudeB*COS(2*PI()*UnknownFrequencyB*time+UnknownPhaseB)","v":0.88051093092327737}]
[null,null,null,null,null,null,null,null,null,{"$f":"J201+1/samplesPerNanosecond","v":65.666666666666814},null,{"$f":"KnownNoiseA*RANDBETWEEN(0,100)/100 + KnownAmplitudeA*COS(2*PI()*KnownFrequencyA*time+KnownPhaseA)","v":0.91539021030651768},{"$f":"UnknownNoiseA*RANDBETWEEN(0,100)/100 + UnknownAmplitudeA*COS(2*PI()*UnknownFrequencyA*time+UnknownPhaseA)","v":0.82683068217646483},null,{"$f":"KnownNoiseB*RANDBETWEEN(0,100)/100 + KnownAmplitudeB*COS(2*PI()*KnownFrequencyB*time+KnownPhaseB)","v":0.7520569010745265},{"$f":"UnknownNoiseB*RANDBETWEEN(0,100)/100 + UnknownAmplitudeB*COS(2*PI()*UnknownFrequencyB*time+UnknownPhaseB)","v":0.63699834528650168}]
[null,null,null,null,null,null,null,null,null,{"$f":"J202+1/samplesPerNanosecond","v":66.000000000000142},null,{"$f":"KnownNoiseA*RANDBETWEEN(0,100)/100 + KnownAmplitudeA*COS(2*PI()*KnownFrequencyA*time+KnownPhaseA)","v":0.98344928301440182},{"$f":"UnknownNoiseA*RANDBETWEEN(0,100)/100 + UnknownAmplitudeA*COS(2*PI()*UnknownFrequencyA*time+UnknownPhaseA)","v":0.982573851864321},null,{"$f":"KnownNoiseB*RANDBETWEEN(0,100)/100 + KnownAmplitudeB*COS(2*PI()*KnownFrequencyB*time+KnownPhaseB)","v":0.75442643194491443},{"$f":"UnknownNoiseB*RANDBETWEEN(0,100)/100 + UnknownAmplitudeB*COS(2*PI()*UnknownFrequencyB*time+UnknownPhaseB)","v":0.14223424821622632}]
[null,null,null,null,null,null,null,null,null,{"$f":"J203+1/samplesPerNanosecond","v":66.333333333333471},null,{"$f":"KnownNoiseA*RANDBETWEEN(0,100)/100 + KnownAmplitudeA*COS(2*PI()*KnownFrequencyA*time+KnownPhaseA)","v":0.95693918775083575},{"$f":"UnknownNoiseA*RANDBETWEEN(0,100)/100 + UnknownAmplitudeA*COS(2*PI()*UnknownFrequencyA*time+UnknownPhaseA)","v":1.0656513250967481},null,{"$f":"KnownNoiseB*RANDBETWEEN(0,100)/100 + KnownAmplitudeB*COS(2*PI()*KnownFrequencyB*time+KnownPhaseB)","v":0.72054086175562715},{"$f":"UnknownNoiseB*RANDBETWEEN(0,100)/100 + UnknownAmplitudeB*COS(2*PI()*UnknownFrequencyB*time+UnknownPhaseB)","v":-0.31212804280985651}]
[null,null,null,null,null,null,null,null,null,{"$f":"J204+1/samplesPerNanosecond","v":66.666666666666799},null,{"$f":"KnownNoiseA*RANDBETWEEN(0,100)/100 + KnownAmplitudeA*COS(2*PI()*KnownFrequencyA*time+KnownPhaseA)","v":0.91289415173116062},{"$f":"UnknownNoiseA*RANDBETWEEN(0,100)/100 + UnknownAmplitudeA*COS(2*PI()*UnknownFrequencyA*time+UnknownPhaseA)","v":0.8004320516388197},null,{"$f":"KnownNoiseB*RANDBETWEEN(0,100)/100 + KnownAmplitudeB*COS(2*PI()*KnownFrequencyB*time+KnownPhaseB)","v":0.67945261977568838},{"$f":"UnknownNoiseB*RANDBETWEEN(0,100)/100 + UnknownAmplitudeB*COS(2*PI()*UnknownFrequencyB*time+UnknownPhaseB)","v":-0.64928512389301751}]
[null,null,null,null,null,null,null,null,null,{"$f":"J205+1/samplesPerNanosecond","v":67.000000000000128},null,{"$f":"KnownNoiseA*RANDBETWEEN(0,100)/100 + KnownAmplitudeA*COS(2*PI()*KnownFrequencyA*time+KnownPhaseA)","v":0.85035109533346498},{"$f":"UnknownNoiseA*RANDBETWEEN(0,100)/100 + UnknownAmplitudeA*COS(2*PI()*UnknownFrequencyA*time+UnknownPhaseA)","v":0.51097901433374737},null,{"$f":"KnownNoiseB*RANDBETWEEN(0,100)/100 + KnownAmplitudeB*COS(2*PI()*KnownFrequencyB*time+KnownPhaseB)","v":0.69521624569070073},{"$f":"UnknownNoiseB*RANDBETWEEN(0,100)/100 + UnknownAmplitudeB*COS(2*PI()*UnknownFrequencyB*time+UnknownPhaseB)","v":-0.89435100366130704}]
[null,null,null,null,null,null,null,null,null,{"$f":"J206+1/samplesPerNanosecond","v":67.333333333333456},null,{"$f":"KnownNoiseA*RANDBETWEEN(0,100)/100 + KnownAmplitudeA*COS(2*PI()*KnownFrequencyA*time+KnownPhaseA)","v":0.8643495664885481},{"$f":"UnknownNoiseA*RANDBETWEEN(0,100)/100 + UnknownAmplitudeA*COS(2*PI()*UnknownFrequencyA*time+UnknownPhaseA)","v":2.9592546489817267E-2},null,{"$f":"KnownNoiseB*RANDBETWEEN(0,100)/100 + KnownAmplitudeB*COS(2*PI()*KnownFrequencyB*time+KnownPhaseB)","v":0.59188829269686927},{"$f":"UnknownNoiseB*RANDBETWEEN(0,100)/100 + UnknownAmplitudeB*COS(2*PI()*UnknownFrequencyB*time+UnknownPhaseB)","v":-0.94082575902534971}]
[null,null,null,null,null,null,null,null,null,{"$f":"J207+1/samplesPerNanosecond","v":67.666666666666785},null,{"$f":"KnownNoiseA*RANDBETWEEN(0,100)/100 + KnownAmplitudeA*COS(2*PI()*KnownFrequencyA*time+KnownPhaseA)","v":0.85893167230037604},{"$f":"UnknownNoiseA*RANDBETWEEN(0,100)/100 + UnknownAmplitudeA*COS(2*PI()*UnknownFrequencyA*time+UnknownPhaseA)","v":-0.32413216701386138},null,{"$f":"KnownNoiseB*RANDBETWEEN(0,100)/100 + KnownAmplitudeB*COS(2*PI()*KnownFrequencyB*time+KnownPhaseB)","v":0.62452722971885155},{"$f":"UnknownNoiseB*RANDBETWEEN(0,100)/100 + UnknownAmplitudeB*COS(2*PI()*UnknownFrequencyB*time+UnknownPhaseB)","v":-0.75035321009509826}]
[null,null,null,null,null,null,null,null,null,{"$f":"J208+1/samplesPerNanosecond","v":68.000000000000114},null,{"$f":"KnownNoiseA*RANDBETWEEN(0,100)/100 + KnownAmplitudeA*COS(2*PI()*KnownFrequencyA*time+KnownPhaseA)","v":0.78314200426282354},{"$f":"UnknownNoiseA*RANDBETWEEN(0,100)/100 + UnknownAmplitudeA*COS(2*PI()*UnknownFrequencyA*time+UnknownPhaseA)","v":-0.72992832264297547},null,{"$f":"KnownNoiseB*RANDBETWEEN(0,100)/100 + KnownAmplitudeB*COS(2*PI()*KnownFrequencyB*time+KnownPhaseB)","v":0.54219333755454457},{"$f":"UnknownNoiseB*RANDBETWEEN(0,100)/100 + UnknownAmplitudeB*COS(2*PI()*UnknownFrequencyB*time+UnknownPhaseB)","v":-0.49280447400458938}]
[null,null,null,null,null,null,null,null,null,{"$f":"J209+1/samplesPerNanosecond","v":68.333333333333442},null,{"$f":"KnownNoiseA*RANDBETWEEN(0,100)/100 + KnownAmplitudeA*COS(2*PI()*KnownFrequencyA*time+KnownPhaseA)","v":0.7990275603967496},{"$f":"UnknownNoiseA*RANDBETWEEN(0,100)/100 + UnknownAmplitudeA*COS(2*PI()*UnknownFrequencyA*time+UnknownPhaseA)","v":-0.96461584934781275},null,{"$f":"KnownNoiseB*RANDBETWEEN(0,100)/100 + KnownAmplitudeB*COS(2*PI()*KnownFrequencyB*time+KnownPhaseB)","v":0.53494860365319274},{"$f":"UnknownNoiseB*RANDBETWEEN(0,100)/100 + UnknownAmplitudeB*COS(2*PI()*UnknownFrequencyB*time+UnknownPhaseB)","v":-2.2268210782825898E-2}]
[null,null,null,null,null,null,null,null,null,{"$f":"J210+1/samplesPerNanosecond","v":68.666666666666771},null,{"$f":"KnownNoiseA*RANDBETWEEN(0,100)/100 + KnownAmplitudeA*COS(2*PI()*KnownFrequencyA*time+KnownPhaseA)","v":0.78263766330232964},{"$f":"UnknownNoiseA*RANDBETWEEN(0,100)/100 + UnknownAmplitudeA*COS(2*PI()*UnknownFrequencyA*time+UnknownPhaseA)","v":-0.88642209317421583},null,{"$f":"KnownNoiseB*RANDBETWEEN(0,100)/100 + KnownAmplitudeB*COS(2*PI()*KnownFrequencyB*time+KnownPhaseB)","v":0.4738566139966921},{"$f":"UnknownNoiseB*RANDBETWEEN(0,100)/100 + UnknownAmplitudeB*COS(2*PI()*UnknownFrequencyB*time+UnknownPhaseB)","v":0.39484334188583498}]
[null,null,null,null,null,null,null,null,null,{"$f":"J211+1/samplesPerNanosecond","v":69.000000000000099},null,{"$f":"KnownNoiseA*RANDBETWEEN(0,100)/100 + KnownAmplitudeA*COS(2*PI()*KnownFrequencyA*time+KnownPhaseA)","v":0.6830238726929615},{"$f":"UnknownNoiseA*RANDBETWEEN(0,100)/100 + UnknownAmplitudeA*COS(2*PI()*UnknownFrequencyA*time+UnknownPhaseA)","v":-0.76298365683898428},null,{"$f":"KnownNoiseB*RANDBETWEEN(0,100)/100 + KnownAmplitudeB*COS(2*PI()*KnownFrequencyB*time+KnownPhaseB)","v":0.42198244033956811},{"$f":"UnknownNoiseB*RANDBETWEEN(0,100)/100 + UnknownAmplitudeB*COS(2*PI()*UnknownFrequencyB*time+UnknownPhaseB)","v":0.73797841552111509}]
[null,null,null,null,null,null,null,null,null,{"$f":"J212+1/samplesPerNanosecond","v":69.333333333333428},null,{"$f":"KnownNoiseA*RANDBETWEEN(0,100)/100 + KnownAmplitudeA*COS(2*PI()*KnownFrequencyA*time+KnownPhaseA)","v":0.69823989537995623},{"$f":"UnknownNoiseA*RANDBETWEEN(0,100)/100 + UnknownAmplitudeA*COS(2*PI()*UnknownFrequencyA*time+UnknownPhaseA)","v":-0.41941951143552025},null,{"$f":"KnownNoiseB*RANDBETWEEN(0,100)/100 + KnownAmplitudeB*COS(2*PI()*KnownFrequencyB*time+KnownPhaseB)","v":0.44239252663549194},{"$f":"UnknownNoiseB*RANDBETWEEN(0,100)/100 + UnknownAmplitudeB*COS(2*PI()*UnknownFrequencyB*time+UnknownPhaseB)","v":0.96946258339896452}]
[null,null,null,null,null,null,null,null,null,{"$f":"J213+1/samplesPerNanosecond","v":69.666666666666757},null,{"$f":"KnownNoiseA*RANDBETWEEN(0,100)/100 + KnownAmplitudeA*COS(2*PI()*KnownFrequencyA*time+KnownPhaseA)","v":0.67234149161283074},{"$f":"UnknownNoiseA*RANDBETWEEN(0,100)/100 + UnknownAmplitudeA*COS(2*PI()*UnknownFrequencyA*time+UnknownPhaseA)","v":0.10553932946661161},null,{"$f":"KnownNoiseB*RANDBETWEEN(0,100)/100 + KnownAmplitudeB*COS(2*PI()*KnownFrequencyB*time+KnownPhaseB)","v":0.36515457313468047},{"$f":"UnknownNoiseB*RANDBETWEEN(0,100)/100 + UnknownAmplitudeB*COS(2*PI()*UnknownFrequencyB*time+UnknownPhaseB)","v":1.0757236622254431}]
[null,null,null,null,null,null,null,null,null,{"$f":"J214+1/samplesPerNanosecond","v":70.000000000000085},null,{"$f":"KnownNoiseA*RANDBETWEEN(0,100)/100 + KnownAmplitudeA*COS(2*PI()*KnownFrequencyA*time+KnownPhaseA)","v":0.58738637600546151},{"$f":"UnknownNoiseA*RANDBETWEEN(0,100)/100 + UnknownAmplitudeA*COS(2*PI()*UnknownFrequencyA*time+UnknownPhaseA)","v":0.50478014655175341},null,{"$f":"KnownNoiseB*RANDBETWEEN(0,100)/100 + KnownAmplitudeB*COS(2*PI()*KnownFrequencyB*time+KnownPhaseB)","v":0.29133741610504582},{"$f":"UnknownNoiseB*RANDBETWEEN(0,100)/100 + UnknownAmplitudeB*COS(2*PI()*UnknownFrequencyB*time+UnknownPhaseB)","v":0.85066154606219446}]
[null,null,null,null,null,null,null,null,null,{"$f":"J215+1/samplesPerNanosecond","v":70.333333333333414},null,{"$f":"KnownNoiseA*RANDBETWEEN(0,100)/100 + KnownAmplitudeA*COS(2*PI()*KnownFrequencyA*time+KnownPhaseA)","v":0.59743411774580735},{"$f":"UnknownNoiseA*RANDBETWEEN(0,100)/100 + UnknownAmplitudeA*COS(2*PI()*UnknownFrequencyA*time+UnknownPhaseA)","v":0.89053587015155922},null,{"$f":"KnownNoiseB*RANDBETWEEN(0,100)/100 + KnownAmplitudeB*COS(2*PI()*KnownFrequencyB*time+KnownPhaseB)","v":0.33501090881224965},{"$f":"UnknownNoiseB*RANDBETWEEN(0,100)/100 + UnknownAmplitudeB*COS(2*PI()*UnknownFrequencyB*time+UnknownPhaseB)","v":0.57627786172665996}]
[null,null,null,null,null,null,null,null,null,{"$f":"J216+1/samplesPerNanosecond","v":70.666666666666742},null,{"$f":"KnownNoiseA*RANDBETWEEN(0,100)/100 + KnownAmplitudeA*COS(2*PI()*KnownFrequencyA*time+KnownPhaseA)","v":0.59454603478559043},{"$f":"UnknownNoiseA*RANDBETWEEN(0,100)/100 + UnknownAmplitudeA*COS(2*PI()*UnknownFrequencyA*time+UnknownPhaseA)","v":1.0530428901947608},null,{"$f":"KnownNoiseB*RANDBETWEEN(0,100)/100 + KnownAmplitudeB*COS(2*PI()*KnownFrequencyB*time+KnownPhaseB)","v":0.29824579743303814},{"$f":"UnknownNoiseB*RANDBETWEEN(0,100)/100 + UnknownAmplitudeB*COS(2*PI()*UnknownFrequencyB*time+UnknownPhaseB)","v":0.12323757855572889}]
[null,null,null,null,null,null,null,null,null,{"$f":"J217+1/samplesPerNanosecond","v":71.000000000000071},null,{"$f":"KnownNoiseA*RANDBETWEEN(0,100)/100 + KnownAmplitudeA*COS(2*PI()*KnownFrequencyA*time+KnownPhaseA)","v":0.54178508681025994},{"$f":"UnknownNoiseA*RANDBETWEEN(0,100)/100 + UnknownAmplitudeA*COS(2*PI()*UnknownFrequencyA*time+UnknownPhaseA)","v":1.0675767636388405},null,{"$f":"KnownNoiseB*RANDBETWEEN(0,100)/100 + KnownAmplitudeB*COS(2*PI()*KnownFrequencyB*time+KnownPhaseB)","v":0.16911359759501848},{"$f":"UnknownNoiseB*RANDBETWEEN(0,100)/100 + UnknownAmplitudeB*COS(2*PI()*UnknownFrequencyB*time+UnknownPhaseB)","v":-0.32134209419270315}]
[null,null,null,null,null,null,null,null,null,{"$f":"J218+1/samplesPerNanosecond","v":71.3333333333334},null,{"$f":"KnownNoiseA*RANDBETWEEN(0,100)/100 + KnownAmplitudeA*COS(2*PI()*KnownFrequencyA*time+KnownPhaseA)","v":0.51621576542234249},{"$f":"UnknownNoiseA*RANDBETWEEN(0,100)/100 + UnknownAmplitudeA*COS(2*PI()*UnknownFrequencyA*time+UnknownPhaseA)","v":0.77404197602380009},null,{"$f":"KnownNoiseB*RANDBETWEEN(0,100)/100 + KnownAmplitudeB*COS(2*PI()*KnownFrequencyB*time+KnownPhaseB)","v":0.14168646961039977},{"$f":"UnknownNoiseB*RANDBETWEEN(0,100)/100 + UnknownAmplitudeB*COS(2*PI()*UnknownFrequencyB*time+UnknownPhaseB)","v":-0.67321758497314854}]
[null,null,null,null,null,null,null,null,null,{"$f":"J219+1/samplesPerNanosecond","v":71.666666666666728},null,{"$f":"KnownNoiseA*RANDBETWEEN(0,100)/100 + KnownAmplitudeA*COS(2*PI()*KnownFrequencyA*time+KnownPhaseA)","v":0.43590397956054672},{"$f":"UnknownNoiseA*RANDBETWEEN(0,100)/100 + UnknownAmplitudeA*COS(2*PI()*UnknownFrequencyA*time+UnknownPhaseA)","v":0.4985887779707453},null,{"$f":"KnownNoiseB*RANDBETWEEN(0,100)/100 + KnownAmplitudeB*COS(2*PI()*KnownFrequencyB*time+KnownPhaseB)","v":0.12403709027871788},{"$f":"UnknownNoiseB*RANDBETWEEN(0,100)/100 + UnknownAmplitudeB*COS(2*PI()*UnknownFrequencyB*time+UnknownPhaseB)","v":-0.86097383059906196}]
[null,null,null,null,null,null,null,null,null,{"$f":"J220+1/samplesPerNanosecond","v":72.000000000000057},null,{"$f":"KnownNoiseA*RANDBETWEEN(0,100)/100 + KnownAmplitudeA*COS(2*PI()*KnownFrequencyA*time+KnownPhaseA)","v":0.36391694154125642},{"$f":"UnknownNoiseA*RANDBETWEEN(0,100)/100 + UnknownAmplitudeA*COS(2*PI()*UnknownFrequencyA*time+UnknownPhaseA)","v":-1.5665811799538285E-2},null,{"$f":"KnownNoiseB*RANDBETWEEN(0,100)/100 + KnownAmplitudeB*COS(2*PI()*KnownFrequencyB*time+KnownPhaseB)","v":0.1212385272264971},{"$f":"UnknownNoiseB*RANDBETWEEN(0,100)/100 + UnknownAmplitudeB*COS(2*PI()*UnknownFrequencyB*time+UnknownPhaseB)","v":-0.97099580312773215}]
[null,null,null,null,null,null,null,null,null,{"$f":"J221+1/samplesPerNanosecond","v":72.333333333333385},null,{"$f":"KnownNoiseA*RANDBETWEEN(0,100)/100 + KnownAmplitudeA*COS(2*PI()*KnownFrequencyA*time+KnownPhaseA)","v":0.33632304766579124},{"$f":"UnknownNoiseA*RANDBETWEEN(0,100)/100 + UnknownAmplitudeA*COS(2*PI()*UnknownFrequencyA*time+UnknownPhaseA)","v":-0.40314719341675581},null,{"$f":"KnownNoiseB*RANDBETWEEN(0,100)/100 + KnownAmplitudeB*COS(2*PI()*KnownFrequencyB*time+KnownPhaseB)","v":9.6364109105302617E-2},{"$f":"UnknownNoiseB*RANDBETWEEN(0,100)/100 + UnknownAmplitudeB*COS(2*PI()*UnknownFrequencyB*time+UnknownPhaseB)","v":-0.76144458677300275}]
[null,null,null,null,null,null,null,null,null,{"$f":"J222+1/samplesPerNanosecond","v":72.666666666666714},null,{"$f":"KnownNoiseA*RANDBETWEEN(0,100)/100 + KnownAmplitudeA*COS(2*PI()*KnownFrequencyA*time+KnownPhaseA)","v":0.3551917588533704},{"$f":"UnknownNoiseA*RANDBETWEEN(0,100)/100 + UnknownAmplitudeA*COS(2*PI()*UnknownFrequencyA*time+UnknownPhaseA)","v":-0.75364346664071546},null,{"$f":"KnownNoiseB*RANDBETWEEN(0,100)/100 + KnownAmplitudeB*COS(2*PI()*KnownFrequencyB*time+KnownPhaseB)","v":-5.5127023594189542E-3},{"$f":"UnknownNoiseB*RANDBETWEEN(0,100)/100 + UnknownAmplitudeB*COS(2*PI()*UnknownFrequencyB*time+UnknownPhaseB)","v":-0.47043210512237699}]
[null,null,null,null,null,null,null,null,null,{"$f":"J223+1/samplesPerNanosecond","v":73.000000000000043},null,{"$f":"KnownNoiseA*RANDBETWEEN(0,100)/100 + KnownAmplitudeA*COS(2*PI()*KnownFrequencyA*time+KnownPhaseA)","v":0.24559347946703436},{"$f":"UnknownNoiseA*RANDBETWEEN(0,100)/100 + UnknownAmplitudeA*COS(2*PI()*UnknownFrequencyA*time+UnknownPhaseA)","v":-0.98185154656985629},null,{"$f":"KnownNoiseB*RANDBETWEEN(0,100)/100 + KnownAmplitudeB*COS(2*PI()*KnownFrequencyB*time+KnownPhaseB)","v":-6.1318440545373887E-2},{"$f":"UnknownNoiseB*RANDBETWEEN(0,100)/100 + UnknownAmplitudeB*COS(2*PI()*UnknownFrequencyB*time+UnknownPhaseB)","v":-2.9158161418695126E-2}]
[null,null,null,null,null,null,null,null,null,{"$f":"J224+1/samplesPerNanosecond","v":73.333333333333371},null,{"$f":"KnownNoiseA*RANDBETWEEN(0,100)/100 + KnownAmplitudeA*COS(2*PI()*KnownFrequencyA*time+KnownPhaseA)","v":0.18559943223343617},{"$f":"UnknownNoiseA*RANDBETWEEN(0,100)/100 + UnknownAmplitudeA*COS(2*PI()*UnknownFrequencyA*time+UnknownPhaseA)","v":-0.93811902874262509},null,{"$f":"KnownNoiseB*RANDBETWEEN(0,100)/100 + KnownAmplitudeB*COS(2*PI()*KnownFrequencyB*time+KnownPhaseB)","v":-7.9979764446284324E-2},{"$f":"UnknownNoiseB*RANDBETWEEN(0,100)/100 + UnknownAmplitudeB*COS(2*PI()*UnknownFrequencyB*time+UnknownPhaseB)","v":0.46160945654416197}]
[null,null,null,null,null,null,null,null,null,{"$f":"J225+1/samplesPerNanosecond","v":73.6666666666667},null,{"$f":"KnownNoiseA*RANDBETWEEN(0,100)/100 + KnownAmplitudeA*COS(2*PI()*KnownFrequencyA*time+KnownPhaseA)","v":0.17228153509663749},{"$f":"UnknownNoiseA*RANDBETWEEN(0,100)/100 + UnknownAmplitudeA*COS(2*PI()*UnknownFrequencyA*time+UnknownPhaseA)","v":-0.67061707830052475},null,{"$f":"KnownNoiseB*RANDBETWEEN(0,100)/100 + KnownAmplitudeB*COS(2*PI()*KnownFrequencyB*time+KnownPhaseB)","v":-0.11542358548066013},{"$f":"UnknownNoiseB*RANDBETWEEN(0,100)/100 + UnknownAmplitudeB*COS(2*PI()*UnknownFrequencyB*time+UnknownPhaseB)","v":0.77199174362022982}]
[null,null,null,null,null,null,null,null,null,{"$f":"J226+1/samplesPerNanosecond","v":74.000000000000028},null,{"$f":"KnownNoiseA*RANDBETWEEN(0,100)/100 + KnownAmplitudeA*COS(2*PI()*KnownFrequencyA*time+KnownPhaseA)","v":0.10571227346098633},{"$f":"UnknownNoiseA*RANDBETWEEN(0,100)/100 + UnknownAmplitudeA*COS(2*PI()*UnknownFrequencyA*time+UnknownPhaseA)","v":-0.3375012343199767},null,{"$f":"KnownNoiseB*RANDBETWEEN(0,100)/100 + KnownAmplitudeB*COS(2*PI()*KnownFrequencyB*time+KnownPhaseB)","v":-0.19857719733606052},{"$f":"UnknownNoiseB*RANDBETWEEN(0,100)/100 + UnknownAmplitudeB*COS(2*PI()*UnknownFrequencyB*time+UnknownPhaseB)","v":1.0408800009968902}]
[null,null,null,null,null,null,null,null,null,{"$f":"J227+1/samplesPerNanosecond","v":74.333333333333357},null,{"$f":"KnownNoiseA*RANDBETWEEN(0,100)/100 + KnownAmplitudeA*COS(2*PI()*KnownFrequencyA*time+KnownPhaseA)","v":0.13796457370399087},{"$f":"UnknownNoiseA*RANDBETWEEN(0,100)/100 + UnknownAmplitudeA*COS(2*PI()*UnknownFrequencyA*time+UnknownPhaseA)","v":8.9771030084221909E-2},null,{"$f":"KnownNoiseB*RANDBETWEEN(0,100)/100 + KnownAmplitudeB*COS(2*PI()*KnownFrequencyB*time+KnownPhaseB)","v":-0.17936840281911037},{"$f":"UnknownNoiseB*RANDBETWEEN(0,100)/100 + UnknownAmplitudeB*COS(2*PI()*UnknownFrequencyB*time+UnknownPhaseB)","v":0.98464453632791715}]
[null,null,null,null,null,null,null,null,null,{"$f":"J228+1/samplesPerNanosecond","v":74.666666666666686},null,{"$f":"KnownNoiseA*RANDBETWEEN(0,100)/100 + KnownAmplitudeA*COS(2*PI()*KnownFrequencyA*time+KnownPhaseA)","v":9.5111675940702967E-2},{"$f":"UnknownNoiseA*RANDBETWEEN(0,100)/100 + UnknownAmplitudeA*COS(2*PI()*UnknownFrequencyA*time+UnknownPhaseA)","v":0.5622191805088399},null,{"$f":"KnownNoiseB*RANDBETWEEN(0,100)/100 + KnownAmplitudeB*COS(2*PI()*KnownFrequencyB*time+KnownPhaseB)","v":-0.24972563984135757},{"$f":"UnknownNoiseB*RANDBETWEEN(0,100)/100 + UnknownAmplitudeB*COS(2*PI()*UnknownFrequencyB*time+UnknownPhaseB)","v":0.88871131168599626}]
[null,null,null,null,null,null,null,null,null,{"$f":"J229+1/samplesPerNanosecond","v":75.000000000000014},null,{"$f":"KnownNoiseA*RANDBETWEEN(0,100)/100 + KnownAmplitudeA*COS(2*PI()*KnownFrequencyA*time+KnownPhaseA)","v":-2.1772996089199595E-2},{"$f":"UnknownNoiseA*RANDBETWEEN(0,100)/100 + UnknownAmplitudeA*COS(2*PI()*UnknownFrequencyA*time+UnknownPhaseA)","v":0.8642415698287228},null,{"$f":"KnownNoiseB*RANDBETWEEN(0,100)/100 + KnownAmplitudeB*COS(2*PI()*KnownFrequencyB*time+KnownPhaseB)","v":-0.32357810854368618},{"$f":"UnknownNoiseB*RANDBETWEEN(0,100)/100 + UnknownAmplitudeB*COS(2*PI()*UnknownFrequencyB*time+UnknownPhaseB)","v":0.55228100243979983}]
[null,null,null,null,null,null,null,null,null,{"$f":"J230+1/samplesPerNanosecond","v":75.333333333333343},null,{"$f":"KnownNoiseA*RANDBETWEEN(0,100)/100 + KnownAmplitudeA*COS(2*PI()*KnownFrequencyA*time+KnownPhaseA)","v":-1.7615961973233361E-2},{"$f":"UnknownNoiseA*RANDBETWEEN(0,100)/100 + UnknownAmplitudeA*COS(2*PI()*UnknownFrequencyA*time+UnknownPhaseA)","v":1.0040387812226759},null,{"$f":"KnownNoiseB*RANDBETWEEN(0,100)/100 + KnownAmplitudeB*COS(2*PI()*KnownFrequencyB*time+KnownPhaseB)","v":-0.30485589371136934},{"$f":"UnknownNoiseB*RANDBETWEEN(0,100)/100 + UnknownAmplitudeB*COS(2*PI()*UnknownFrequencyB*time+UnknownPhaseB)","v":3.4045800069079153E-2}]
[null,null,null,null,null,null,null,null,null,{"$f":"J231+1/samplesPerNanosecond","v":75.666666666666671},null,{"$f":"KnownNoiseA*RANDBETWEEN(0,100)/100 + KnownAmplitudeA*COS(2*PI()*KnownFrequencyA*time+KnownPhaseA)","v":-9.7343815164016037E-2},{"$f":"UnknownNoiseA*RANDBETWEEN(0,100)/100 + UnknownAmplitudeA*COS(2*PI()*UnknownFrequencyA*time+UnknownPhaseA)","v":1.0120529672267233},null,{"$f":"KnownNoiseB*RANDBETWEEN(0,100)/100 + KnownAmplitudeB*COS(2*PI()*KnownFrequencyB*time+KnownPhaseB)","v":-0.38349008898582831},{"$f":"UnknownNoiseB*RANDBETWEEN(0,100)/100 + UnknownAmplitudeB*COS(2*PI()*UnknownFrequencyB*time+UnknownPhaseB)","v":-0.32063073321293334}]
[null,null,null,null,null,null,null,null,null,{"$f":"J232+1/samplesPerNanosecond","v":76},null,{"$f":"KnownNoiseA*RANDBETWEEN(0,100)/100 + KnownAmplitudeA*COS(2*PI()*KnownFrequencyA*time+KnownPhaseA)","v":-5.3883351058387152E-2},{"$f":"UnknownNoiseA*RANDBETWEEN(0,100)/100 + UnknownAmplitudeA*COS(2*PI()*UnknownFrequencyA*time+UnknownPhaseA)","v":0.81671933798657126},null,{"$f":"KnownNoiseB*RANDBETWEEN(0,100)/100 + KnownAmplitudeB*COS(2*PI()*KnownFrequencyB*time+KnownPhaseB)","v":-0.37841291706955066},{"$f":"UnknownNoiseB*RANDBETWEEN(0,100)/100 + UnknownAmplitudeB*COS(2*PI()*UnknownFrequencyB*time+UnknownPhaseB)","v":-0.67729029654426121}]
[null,null,null,null,null,null,null,null,null,{"$f":"J233+1/samplesPerNanosecond","v":76.333333333333329},null,{"$f":"KnownNoiseA*RANDBETWEEN(0,100)/100 + KnownAmplitudeA*COS(2*PI()*KnownFrequencyA*time+KnownPhaseA)","v":-0.13016169473375666},{"$f":"UnknownNoiseA*RANDBETWEEN(0,100)/100 + UnknownAmplitudeA*COS(2*PI()*UnknownFrequencyA*time+UnknownPhaseA)","v":0.42917146307058623},null,{"$f":"KnownNoiseB*RANDBETWEEN(0,100)/100 + KnownAmplitudeB*COS(2*PI()*KnownFrequencyB*time+KnownPhaseB)","v":-0.44255784801458442},{"$f":"UnknownNoiseB*RANDBETWEEN(0,100)/100 + UnknownAmplitudeB*COS(2*PI()*UnknownFrequencyB*time+UnknownPhaseB)","v":-0.88817673250721585}]
[null,null,null,null,null,null,null,null,null,{"$f":"J234+1/samplesPerNanosecond","v":76.666666666666657},null,{"$f":"KnownNoiseA*RANDBETWEEN(0,100)/100 + KnownAmplitudeA*COS(2*PI()*KnownFrequencyA*time+KnownPhaseA)","v":-0.14510643040717228},{"$f":"UnknownNoiseA*RANDBETWEEN(0,100)/100 + UnknownAmplitudeA*COS(2*PI()*UnknownFrequencyA*time+UnknownPhaseA)","v":-4.7839127326750122E-2},null,{"$f":"KnownNoiseB*RANDBETWEEN(0,100)/100 + KnownAmplitudeB*COS(2*PI()*KnownFrequencyB*time+KnownPhaseB)","v":-0.46285971740255466},{"$f":"UnknownNoiseB*RANDBETWEEN(0,100)/100 + UnknownAmplitudeB*COS(2*PI()*UnknownFrequencyB*time+UnknownPhaseB)","v":-0.90467261017936296}]
[null,null,null,null,null,null,null,null,null,{"$f":"J235+1/samplesPerNanosecond","v":76.999999999999986},null,{"$f":"KnownNoiseA*RANDBETWEEN(0,100)/100 + KnownAmplitudeA*COS(2*PI()*KnownFrequencyA*time+KnownPhaseA)","v":-0.24964572664435278},{"$f":"UnknownNoiseA*RANDBETWEEN(0,100)/100 + UnknownAmplitudeA*COS(2*PI()*UnknownFrequencyA*time+UnknownPhaseA)","v":-0.43098216587006172},null,{"$f":"KnownNoiseB*RANDBETWEEN(0,100)/100 + KnownAmplitudeB*COS(2*PI()*KnownFrequencyB*time+KnownPhaseB)","v":-0.530254839015872},{"$f":"UnknownNoiseB*RANDBETWEEN(0,100)/100 + UnknownAmplitudeB*COS(2*PI()*UnknownFrequencyB*time+UnknownPhaseB)","v":-0.75547102719940662}]
[null,null,null,null,null,null,null,null,null,{"$f":"J236+1/samplesPerNanosecond","v":77.333333333333314},null,{"$f":"KnownNoiseA*RANDBETWEEN(0,100)/100 + KnownAmplitudeA*COS(2*PI()*KnownFrequencyA*time+KnownPhaseA)","v":-0.23870846397324591},{"$f":"UnknownNoiseA*RANDBETWEEN(0,100)/100 + UnknownAmplitudeA*COS(2*PI()*UnknownFrequencyA*time+UnknownPhaseA)","v":-0.77932095924074729},null,{"$f":"KnownNoiseB*RANDBETWEEN(0,100)/100 + KnownAmplitudeB*COS(2*PI()*KnownFrequencyB*time+KnownPhaseB)","v":-0.51068111798833904},{"$f":"UnknownNoiseB*RANDBETWEEN(0,100)/100 + UnknownAmplitudeB*COS(2*PI()*UnknownFrequencyB*time+UnknownPhaseB)","v":-0.40683854479011539}]
[null,null,null,null,null,null,null,null,null,{"$f":"J237+1/samplesPerNanosecond","v":77.666666666666643},null,{"$f":"KnownNoiseA*RANDBETWEEN(0,100)/100 + KnownAmplitudeA*COS(2*PI()*KnownFrequencyA*time+KnownPhaseA)","v":-0.2702243589574721},{"$f":"UnknownNoiseA*RANDBETWEEN(0,100)/100 + UnknownAmplitudeA*COS(2*PI()*UnknownFrequencyA*time+UnknownPhaseA)","v":-0.93960194940607389},null,{"$f":"KnownNoiseB*RANDBETWEEN(0,100)/100 + KnownAmplitudeB*COS(2*PI()*KnownFrequencyB*time+KnownPhaseB)","v":-0.59707815911143947},{"$f":"UnknownNoiseB*RANDBETWEEN(0,100)/100 + UnknownAmplitudeB*COS(2*PI()*UnknownFrequencyB*time+UnknownPhaseB)","v":7.0836439874938442E-3}]
[null,null,null,null,null,null,null,null,null,{"$f":"J238+1/samplesPerNanosecond","v":77.999999999999972},null,{"$f":"KnownNoiseA*RANDBETWEEN(0,100)/100 + KnownAmplitudeA*COS(2*PI()*KnownFrequencyA*time+KnownPhaseA)","v":-0.33412408685071315},{"$f":"UnknownNoiseA*RANDBETWEEN(0,100)/100 + UnknownAmplitudeA*COS(2*PI()*UnknownFrequencyA*time+UnknownPhaseA)","v":-0.87738304216702545},null,{"$f":"KnownNoiseB*RANDBETWEEN(0,100)/100 + KnownAmplitudeB*COS(2*PI()*KnownFrequencyB*time+KnownPhaseB)","v":-0.64138737225569309},{"$f":"UnknownNoiseB*RANDBETWEEN(0,100)/100 + UnknownAmplitudeB*COS(2*PI()*UnknownFrequencyB*time+UnknownPhaseB)","v":0.50639138346729184}]
[null,null,null,null,null,null,null,null,null,{"$f":"J239+1/samplesPerNanosecond","v":78.3333333333333},null,{"$f":"KnownNoiseA*RANDBETWEEN(0,100)/100 + KnownAmplitudeA*COS(2*PI()*KnownFrequencyA*time+KnownPhaseA)","v":-0.40133940474394697},{"$f":"UnknownNoiseA*RANDBETWEEN(0,100)/100 + UnknownAmplitudeA*COS(2*PI()*UnknownFrequencyA*time+UnknownPhaseA)","v":-0.67935942773100688},null,{"$f":"KnownNoiseB*RANDBETWEEN(0,100)/100 + KnownAmplitudeB*COS(2*PI()*KnownFrequencyB*time+KnownPhaseB)","v":-0.62755207644124245},{"$f":"UnknownNoiseB*RANDBETWEEN(0,100)/100 + UnknownAmplitudeB*COS(2*PI()*UnknownFrequencyB*time+UnknownPhaseB)","v":0.81410294951832718}]
[null,null,null,null,null,null,null,null,null,{"$f":"J240+1/samplesPerNanosecond","v":78.666666666666629},null,{"$f":"KnownNoiseA*RANDBETWEEN(0,100)/100 + KnownAmplitudeA*COS(2*PI()*KnownFrequencyA*time+KnownPhaseA)","v":-0.39480326955945827},{"$f":"UnknownNoiseA*RANDBETWEEN(0,100)/100 + UnknownAmplitudeA*COS(2*PI()*UnknownFrequencyA*time+UnknownPhaseA)","v":-0.24661419980608809},null,{"$f":"KnownNoiseB*RANDBETWEEN(0,100)/100 + KnownAmplitudeB*COS(2*PI()*KnownFrequencyB*time+KnownPhaseB)","v":-0.6355175978409453},{"$f":"UnknownNoiseB*RANDBETWEEN(0,100)/100 + UnknownAmplitudeB*COS(2*PI()*UnknownFrequencyB*time+UnknownPhaseB)","v":1.0768600479794683}]
[null,null,null,null,null,null,null,null,null,{"$f":"J241+1/samplesPerNanosecond","v":78.999999999999957},null,{"$f":"KnownNoiseA*RANDBETWEEN(0,100)/100 + KnownAmplitudeA*COS(2*PI()*KnownFrequencyA*time+KnownPhaseA)","v":-0.4174499571627231},{"$f":"UnknownNoiseA*RANDBETWEEN(0,100)/100 + UnknownAmplitudeA*COS(2*PI()*UnknownFrequencyA*time+UnknownPhaseA)","v":0.20585426997965645},null,{"$f":"KnownNoiseB*RANDBETWEEN(0,100)/100 + KnownAmplitudeB*COS(2*PI()*KnownFrequencyB*time+KnownPhaseB)","v":-0.68723136692460307},{"$f":"UnknownNoiseB*RANDBETWEEN(0,100)/100 + UnknownAmplitudeB*COS(2*PI()*UnknownFrequencyB*time+UnknownPhaseB)","v":1.0380831650571813}]
[null,null,null,null,null,null,null,null,null,{"$f":"J242+1/samplesPerNanosecond","v":79.333333333333286},null,{"$f":"KnownNoiseA*RANDBETWEEN(0,100)/100 + KnownAmplitudeA*COS(2*PI()*KnownFrequencyA*time+KnownPhaseA)","v":-0.47421517700756982},{"$f":"UnknownNoiseA*RANDBETWEEN(0,100)/100 + UnknownAmplitudeA*COS(2*PI()*UnknownFrequencyA*time+UnknownPhaseA)","v":0.62342240394418069},null,{"$f":"KnownNoiseB*RANDBETWEEN(0,100)/100 + KnownAmplitudeB*COS(2*PI()*KnownFrequencyB*time+KnownPhaseB)","v":-0.76964301013311531},{"$f":"UnknownNoiseB*RANDBETWEEN(0,100)/100 + UnknownAmplitudeB*COS(2*PI()*UnknownFrequencyB*time+UnknownPhaseB)","v":0.77173335913531393}]
[null,null,null,null,null,null,null,null,null,{"$f":"J243+1/samplesPerNanosecond","v":79.666666666666615},null,{"$f":"KnownNoiseA*RANDBETWEEN(0,100)/100 + KnownAmplitudeA*COS(2*PI()*KnownFrequencyA*time+KnownPhaseA)","v":-0.48103618434802359},{"$f":"UnknownNoiseA*RANDBETWEEN(0,100)/100 + UnknownAmplitudeA*COS(2*PI()*UnknownFrequencyA*time+UnknownPhaseA)","v":0.87587274203269361},null,{"$f":"KnownNoiseB*RANDBETWEEN(0,100)/100 + KnownAmplitudeB*COS(2*PI()*KnownFrequencyB*time+KnownPhaseB)","v":-0.73970443782527939},{"$f":"UnknownNoiseB*RANDBETWEEN(0,100)/100 + UnknownAmplitudeB*COS(2*PI()*UnknownFrequencyB*time+UnknownPhaseB)","v":0.43411890731055186}]
[null,null,null,null,null,null,null,null,null,{"$f":"J244+1/samplesPerNanosecond","v":79.999999999999943},null,{"$f":"KnownNoiseA*RANDBETWEEN(0,100)/100 + KnownAmplitudeA*COS(2*PI()*KnownFrequencyA*time+KnownPhaseA)","v":-0.55985189150652548},{"$f":"UnknownNoiseA*RANDBETWEEN(0,100)/100 + UnknownAmplitudeA*COS(2*PI()*UnknownFrequencyA*time+UnknownPhaseA)","v":1.0235388005466615},null,{"$f":"KnownNoiseB*RANDBETWEEN(0,100)/100 + KnownAmplitudeB*COS(2*PI()*KnownFrequencyB*time+KnownPhaseB)","v":-0.72936992955742086},{"$f":"UnknownNoiseB*RANDBETWEEN(0,100)/100 + UnknownAmplitudeB*COS(2*PI()*UnknownFrequencyB*time+UnknownPhaseB)","v":2.7785701544405191E-2}]
[null,null,null,null,null,null,null,null,null,{"$f":"J245+1/samplesPerNanosecond","v":80.333333333333272},null,{"$f":"KnownNoiseA*RANDBETWEEN(0,100)/100 + KnownAmplitudeA*COS(2*PI()*KnownFrequencyA*time+KnownPhaseA)","v":-0.5696029744213027},{"$f":"UnknownNoiseA*RANDBETWEEN(0,100)/100 + UnknownAmplitudeA*COS(2*PI()*UnknownFrequencyA*time+UnknownPhaseA)","v":0.98411409805257732},null,{"$f":"KnownNoiseB*RANDBETWEEN(0,100)/100 + KnownAmplitudeB*COS(2*PI()*KnownFrequencyB*time+KnownPhaseB)","v":-0.77159621380086496},{"$f":"UnknownNoiseB*RANDBETWEEN(0,100)/100 + UnknownAmplitudeB*COS(2*PI()*UnknownFrequencyB*time+UnknownPhaseB)","v":-0.39387703119274065}]
[null,null,null,null,null,null,null,null,null,{"$f":"J246+1/samplesPerNanosecond","v":80.6666666666666},null,{"$f":"KnownNoiseA*RANDBETWEEN(0,100)/100 + KnownAmplitudeA*COS(2*PI()*KnownFrequencyA*time+KnownPhaseA)","v":-0.64423197620024597},{"$f":"UnknownNoiseA*RANDBETWEEN(0,100)/100 + UnknownAmplitudeA*COS(2*PI()*UnknownFrequencyA*time+UnknownPhaseA)","v":0.69654831306845622},null,{"$f":"KnownNoiseB*RANDBETWEEN(0,100)/100 + KnownAmplitudeB*COS(2*PI()*KnownFrequencyB*time+KnownPhaseB)","v":-0.81634254350271784},{"$f":"UnknownNoiseB*RANDBETWEEN(0,100)/100 + UnknownAmplitudeB*COS(2*PI()*UnknownFrequencyB*time+UnknownPhaseB)","v":-0.76141971434599431}]
[null,null,null,null,null,null,null,null,null,{"$f":"J247+1/samplesPerNanosecond","v":80.999999999999929},null,{"$f":"KnownNoiseA*RANDBETWEEN(0,100)/100 + KnownAmplitudeA*COS(2*PI()*KnownFrequencyA*time+KnownPhaseA)","v":-0.64168340917781741},{"$f":"UnknownNoiseA*RANDBETWEEN(0,100)/100 + UnknownAmplitudeA*COS(2*PI()*UnknownFrequencyA*time+UnknownPhaseA)","v":0.32284432379882877},null,{"$f":"KnownNoiseB*RANDBETWEEN(0,100)/100 + KnownAmplitudeB*COS(2*PI()*KnownFrequencyB*time+KnownPhaseB)","v":-0.86057076845268776},{"$f":"UnknownNoiseB*RANDBETWEEN(0,100)/100 + UnknownAmplitudeB*COS(2*PI()*UnknownFrequencyB*time+UnknownPhaseB)","v":-0.88392635770979322}]
[null,null,null,null,null,null,null,null,null,{"$f":"J248+1/samplesPerNanosecond","v":81.333333333333258},null,{"$f":"KnownNoiseA*RANDBETWEEN(0,100)/100 + KnownAmplitudeA*COS(2*PI()*KnownFrequencyA*time+KnownPhaseA)","v":-0.69190385085486694},{"$f":"UnknownNoiseA*RANDBETWEEN(0,100)/100 + UnknownAmplitudeA*COS(2*PI()*UnknownFrequencyA*time+UnknownPhaseA)","v":-6.8800657942727966E-2},null,{"$f":"KnownNoiseB*RANDBETWEEN(0,100)/100 + KnownAmplitudeB*COS(2*PI()*KnownFrequencyB*time+KnownPhaseB)","v":-0.83924540124592961},{"$f":"UnknownNoiseB*RANDBETWEEN(0,100)/100 + UnknownAmplitudeB*COS(2*PI()*UnknownFrequencyB*time+UnknownPhaseB)","v":-0.87287973137470176}]
[null,null,null,null,null,null,null,null,null,{"$f":"J249+1/samplesPerNanosecond","v":81.666666666666586},null,{"$f":"KnownNoiseA*RANDBETWEEN(0,100)/100 + KnownAmplitudeA*COS(2*PI()*KnownFrequencyA*time+KnownPhaseA)","v":-0.74184203882032995},{"$f":"UnknownNoiseA*RANDBETWEEN(0,100)/100 + UnknownAmplitudeA*COS(2*PI()*UnknownFrequencyA*time+UnknownPhaseA)","v":-0.53352635261733183},null,{"$f":"KnownNoiseB*RANDBETWEEN(0,100)/100 + KnownAmplitudeB*COS(2*PI()*KnownFrequencyB*time+KnownPhaseB)","v":-0.85633368034767465},{"$f":"UnknownNoiseB*RANDBETWEEN(0,100)/100 + UnknownAmplitudeB*COS(2*PI()*UnknownFrequencyB*time+UnknownPhaseB)","v":-0.68350824774215035}]
[null,null,null,null,null,null,null,null,null,{"$f":"J250+1/samplesPerNanosecond","v":81.999999999999915},null,{"$f":"KnownNoiseA*RANDBETWEEN(0,100)/100 + KnownAmplitudeA*COS(2*PI()*KnownFrequencyA*time+KnownPhaseA)","v":-0.76044896014337426},{"$f":"UnknownNoiseA*RANDBETWEEN(0,100)/100 + UnknownAmplitudeA*COS(2*PI()*UnknownFrequencyA*time+UnknownPhaseA)","v":-0.83188835860811428},null,{"$f":"KnownNoiseB*RANDBETWEEN(0,100)/100 + KnownAmplitudeB*COS(2*PI()*KnownFrequencyB*time+KnownPhaseB)","v":-0.88980562719132938},{"$f":"UnknownNoiseB*RANDBETWEEN(0,100)/100 + UnknownAmplitudeB*COS(2*PI()*UnknownFrequencyB*time+UnknownPhaseB)","v":-0.38713644021105825}]
[null,null,null,null,null,null,null,null,null,{"$f":"J251+1/samplesPerNanosecond","v":82.333333333333243},null,{"$f":"KnownNoiseA*RANDBETWEEN(0,100)/100 + KnownAmplitudeA*COS(2*PI()*KnownFrequencyA*time+KnownPhaseA)","v":-0.76267793694736918},{"$f":"UnknownNoiseA*RANDBETWEEN(0,100)/100 + UnknownAmplitudeA*COS(2*PI()*UnknownFrequencyA*time+UnknownPhaseA)","v":-0.96884747966631679},null,{"$f":"KnownNoiseB*RANDBETWEEN(0,100)/100 + KnownAmplitudeB*COS(2*PI()*KnownFrequencyB*time+KnownPhaseB)","v":-0.93463409855287183},{"$f":"UnknownNoiseB*RANDBETWEEN(0,100)/100 + UnknownAmplitudeB*COS(2*PI()*UnknownFrequencyB*time+UnknownPhaseB)","v":6.8330290275272862E-2}]
[null,null,null,null,null,null,null,null,null,{"$f":"J252+1/samplesPerNanosecond","v":82.666666666666572},null,{"$f":"KnownNoiseA*RANDBETWEEN(0,100)/100 + KnownAmplitudeA*COS(2*PI()*KnownFrequencyA*time+KnownPhaseA)","v":-0.74248470931426391},{"$f":"UnknownNoiseA*RANDBETWEEN(0,100)/100 + UnknownAmplitudeA*COS(2*PI()*UnknownFrequencyA*time+UnknownPhaseA)","v":-0.87425135772569795},null,{"$f":"KnownNoiseB*RANDBETWEEN(0,100)/100 + KnownAmplitudeB*COS(2*PI()*KnownFrequencyB*time+KnownPhaseB)","v":-0.95179483474813065},{"$f":"UnknownNoiseB*RANDBETWEEN(0,100)/100 + UnknownAmplitudeB*COS(2*PI()*UnknownFrequencyB*time+UnknownPhaseB)","v":0.5030734739722742}]
[null,null,null,null,null,null,null,null,null,{"$f":"J253+1/samplesPerNanosecond","v":82.999999999999901},null,{"$f":"KnownNoiseA*RANDBETWEEN(0,100)/100 + KnownAmplitudeA*COS(2*PI()*KnownFrequencyA*time+KnownPhaseA)","v":-0.82282751181129643},{"$f":"UnknownNoiseA*RANDBETWEEN(0,100)/100 + UnknownAmplitudeA*COS(2*PI()*UnknownFrequencyA*time+UnknownPhaseA)","v":-0.60629724356326231},null,{"$f":"KnownNoiseB*RANDBETWEEN(0,100)/100 + KnownAmplitudeB*COS(2*PI()*KnownFrequencyB*time+KnownPhaseB)","v":-0.91726650157849754},{"$f":"UnknownNoiseB*RANDBETWEEN(0,100)/100 + UnknownAmplitudeB*COS(2*PI()*UnknownFrequencyB*time+UnknownPhaseB)","v":0.84023091692784657}]
[null,null,null,null,null,null,null,null,null,{"$f":"J254+1/samplesPerNanosecond","v":83.333333333333229},null,{"$f":"KnownNoiseA*RANDBETWEEN(0,100)/100 + KnownAmplitudeA*COS(2*PI()*KnownFrequencyA*time+KnownPhaseA)","v":-0.81766714770724369},{"$f":"UnknownNoiseA*RANDBETWEEN(0,100)/100 + UnknownAmplitudeA*COS(2*PI()*UnknownFrequencyA*time+UnknownPhaseA)","v":-0.25687684861191973},null,{"$f":"KnownNoiseB*RANDBETWEEN(0,100)/100 + KnownAmplitudeB*COS(2*PI()*KnownFrequencyB*time+KnownPhaseB)","v":-0.96503072825438674},{"$f":"UnknownNoiseB*RANDBETWEEN(0,100)/100 + UnknownAmplitudeB*COS(2*PI()*UnknownFrequencyB*time+UnknownPhaseB)","v":1.0133724617083859}]
[null,null,null,null,null,null,null,null,null,{"$f":"J255+1/samplesPerNanosecond","v":83.666666666666558},null,{"$f":"KnownNoiseA*RANDBETWEEN(0,100)/100 + KnownAmplitudeA*COS(2*PI()*KnownFrequencyA*time+KnownPhaseA)","v":-0.8029670573024823},{"$f":"UnknownNoiseA*RANDBETWEEN(0,100)/100 + UnknownAmplitudeA*COS(2*PI()*UnknownFrequencyA*time+UnknownPhaseA)","v":0.17366253454268754},null,{"$f":"KnownNoiseB*RANDBETWEEN(0,100)/100 + KnownAmplitudeB*COS(2*PI()*KnownFrequencyB*time+KnownPhaseB)","v":-0.93007213937849853},{"$f":"UnknownNoiseB*RANDBETWEEN(0,100)/100 + UnknownAmplitudeB*COS(2*PI()*UnknownFrequencyB*time+UnknownPhaseB)","v":1.0370662273535873}]
[null,null,null,null,null,null,null,null,null,{"$f":"J256+1/samplesPerNanosecond","v":83.999999999999886},null,{"$f":"KnownNoiseA*RANDBETWEEN(0,100)/100 + KnownAmplitudeA*COS(2*PI()*KnownFrequencyA*time+KnownPhaseA)","v":-0.86869338178305411},{"$f":"UnknownNoiseA*RANDBETWEEN(0,100)/100 + UnknownAmplitudeA*COS(2*PI()*UnknownFrequencyA*time+UnknownPhaseA)","v":0.60828068218324294},null,{"$f":"KnownNoiseB*RANDBETWEEN(0,100)/100 + KnownAmplitudeB*COS(2*PI()*KnownFrequencyB*time+KnownPhaseB)","v":-0.98337838184482085},{"$f":"UnknownNoiseB*RANDBETWEEN(0,100)/100 + UnknownAmplitudeB*COS(2*PI()*UnknownFrequencyB*time+UnknownPhaseB)","v":0.79180594114800085}]
[null,null,null,null,null,null,null,null,null,{"$f":"J257+1/samplesPerNanosecond","v":84.333333333333215},null,{"$f":"KnownNoiseA*RANDBETWEEN(0,100)/100 + KnownAmplitudeA*COS(2*PI()*KnownFrequencyA*time+KnownPhaseA)","v":-0.92381502334919707},{"$f":"UnknownNoiseA*RANDBETWEEN(0,100)/100 + UnknownAmplitudeA*COS(2*PI()*UnknownFrequencyA*time+UnknownPhaseA)","v":0.87935958825061122},null,{"$f":"KnownNoiseB*RANDBETWEEN(0,100)/100 + KnownAmplitudeB*COS(2*PI()*KnownFrequencyB*time+KnownPhaseB)","v":-0.90094014675991185},{"$f":"UnknownNoiseB*RANDBETWEEN(0,100)/100 + UnknownAmplitudeB*COS(2*PI()*UnknownFrequencyB*time+UnknownPhaseB)","v":0.44690565927777293}]
[null,null,null,null,null,null,null,null,null,{"$f":"J258+1/samplesPerNanosecond","v":84.666666666666544},null,{"$f":"KnownNoiseA*RANDBETWEEN(0,100)/100 + KnownAmplitudeA*COS(2*PI()*KnownFrequencyA*time+KnownPhaseA)","v":-0.87130369898436189},{"$f":"UnknownNoiseA*RANDBETWEEN(0,100)/100 + UnknownAmplitudeA*COS(2*PI()*UnknownFrequencyA*time+UnknownPhaseA)","v":1.0085265285538294},null,{"$f":"KnownNoiseB*RANDBETWEEN(0,100)/100 + KnownAmplitudeB*COS(2*PI()*KnownFrequencyB*time+KnownPhaseB)","v":-0.950751185538252},{"$f":"UnknownNoiseB*RANDBETWEEN(0,100)/100 + UnknownAmplitudeB*COS(2*PI()*UnknownFrequencyB*time+UnknownPhaseB)","v":-3.8415755647820071E-2}]

{"sheet":"Sheet2","index":1,"n_rows":0,"n_cols":0,"rows_kept":0,"cut":false,"hidden":false,"merged":[]}

{"sheet":"Sheet3","index":2,"n_rows":0,"n_cols":0,"rows_kept":0,"cut":false,"hidden":false,"merged":[]}